Workbook

Sheet Übersicht
A1: Schritt 1 und 2 Vorbereitungsphase
B2: Die ersten zwei Schritte sind als Vorbereitung zum Leitfaden gedacht | E2: Diese vier Punkte sind in diesem Excel-Tool enthalten | K2: Implementierung kann weiter ausgearbeitet werden, je nach dem ob erforderlich

Sheet Schritt_3_Bogen_RG
A1: Schritt 3 Reifegrad des Unternehmens
A2: Fragen ↓ | B2: Entwicklungsstufen →
A3: Bewertung | B3: 1 | C3: 2 | D3: 3 | E3: 4 | F3: 5
A4: Maschinen (Prozesse) erfassen, die kritisch zu bewerten sind | B4: 1
A5: Wie erfolgt die Datenverarbeitung in der Produktion | B5: keine Verarbeitung von Daten | C5: Speicherung von Daten zur Dokumentation | D5: Auswertung von Daten zur Prozessüberwachung | E5: Auswertung zur Prozessplanung/-steuerung | F5: Automatische Prozessplanung/- steuerung
A6: Maschine zu Maschine Kommunikation (M2M) | B6: keine Kommunikation | C6: Feldbus-Schnittstellen | D6: Industrial Ethernet- Schnittstellen | E6: Maschinen verfügen über Zugang zum Internet | F6: Webdienste (M2M-Software)
A7: Unternehmensweite Vernetzung mit der Produktion | B7: Keine Vernetzung der Produktion mit anderen Unternehmensbereichen | C7: Informationsaustausch über Mail/Telekommunikation | D7: Einheitliche Datenformate und Regeln zum Datenaustausch | E7: Einheitliche Dateiformate und Abteilungsübergreifend vernetzte Datenserver | F7: Abteilungsübergreifende, vollständig vernetzte IT-Lösungen
A8: IKT Infrastruktur in der Produktion | B8: Informationsaustausch über Mail/Telekommunikation | C8: Zentrale Datenserver in der Produktion | D8: Internetbasierte Portale mit gemeinsamer Datennutzung | E8: Automatisierter Informationsaustausch (z.B. Auftragsnachverfolgung) | F8: Zulieferer/Kunden sind vollständig in Prozessgestaltung integriert
A9: Mensch-Maschine Schnittstelle | B9: Kein Informationsaustausch zwischen Mensch Maschine | C9: Einsatz lokaler Anzeigegeräte | D9: Zentrale/ dezentrale Produktionsüberwachung/-steuerung | E9: Einsatz mobiler Anzeigegeräte | F9: Erweiterte und assistierte Realität
A11: Schritt 3 Auswertung
A12: Anzahl der Teilnehmer bei der Befragung | B12: 3
A13: Nummer des aktuellen Teilnehmer | B13: 1
A15: Reifegrad Industrie 4.0 (angepasst an PdM) Detailierte Teilnehmer-Antworten
A16: Teilnehmernummer | B16: Teilnehmer 1 | C16: Teilnehmer 2 | D16: Teilnehmer 3 | E16: Teilnehmer 4
A17: kritische Maschinen/Prozesse | B17: siehe Schritt_4_1_kritische_Maschinen
A18: Datenverarbeitung in der Produktion | B18: 1 | C18: 2 | D18: 2 | E18: 1
A19: Maschine zu Maschine Kommunikation (M2M) | B19: 2 | C19: 2 | D19: 3 | E19: 4
A20: Unternehmensweite Vernetzung mit der Produktion | B20: 3 | C20: 2 | D20: 4 | E20: 1
A21: IKT Infrastruktur in der Produktion | B21: 4 | C21: 2 | D21: 5 | E21: 4
A22: Mensch-Maschine Schnittstelle | B22: 5 | C22: 2 | D22: 4 | E22: 5
A24: Mittelwert über alle Teilnehmer
A25: kritische Maschinen/Prozesse | B25: =Schritt_4_1_kr_Maschinen!$N$7 -> 2.583333333
A26: Datenverarbeitung in der Produktion | B26: =AVERAGE(18:18) -> 1.5
A27: Maschine zu Maschine Kommunikation (M2M) | B27: =AVERAGE(19:19) -> 2.75
A28: Unternehmensweite Vernetzung mit der Produktion | B28: =AVERAGE(20:20) -> 2.5
A29: IKT Infrastruktur in der Produktion | B29: =AVERAGE(21:21) -> 3.75
A30: Mensch-Maschine Schnittstelle | B30: =AVERAGE(22:22) -> 4
A31: Mittelwert | B31: =AVERAGE(B25:B30) -> 2.847222222
A32: Reifegrad [%] | B32: =B31*100/5 -> 56.94444444

Sheet Schritt_4_1_kr_Maschinen
A1: Schritt 4.1 Ermittlung der kritischen Maschinen
A2: Maschinen (Prozesse) die kritisch zu bewerten Das sind Maschinen, die mehrfach vorkommende, ungeplante Störungen oder Ausfälle aufweisen; die keine volle Leistungsauslastung haben; die ungenügendes Ersatzteilmanagement haben. | D2: Bestehen an der Maschine/Anlage Probleme? Wenn ja, bitte im Schritt 4.2 benennen | E2: Inwieweit behindert das Problem die Produktion? | F2: Steht der fragliche Prozess im Zusammenhang mit anderen Prozessen und wird ein Ausfall auch diese beeinflussen? | G2: Ausweichmöglichkeiten | P2: Zu den Spalten D und E
G3: Ist die Maschine/Anlage redundant? | H3: Gibt es die Möglichkeit auf andere Maschine/Anlage (durch Umrüstung) auszuweichen? | I3: Besteht es die Möglichkeit durch Vergabe an Lieferanten den Auftrag fertigzustellen | J3: Ist die Maschine im Schichtbetrieb (z.B vollkontinuierlich 24/7 Schichtbetrieb)? | K3: Gibt es für die Maschine die Ersatzteilversorgung? | L3: Mittelwert der einzelnen Maschinen | M3: Hilfsspalte zu K | N3: Mittelwert Ergebnis Maschinen insgesamt | P3: sehr stark | Q3: 1
P4: stark | Q4: 2
P5: mittelmäßig | Q5: 3
A6: Seriennummer | B6: Maschinenname | C6: Baujahr | P6: gering | Q6: 4
A7: 1 | B7: Druckluftversorgung 2 | C7: 2005 | D7: nein | E7: 5 | F7: 5 | G7: nein | H7: ja | I7: nein | J7: ja | K7: ja | L7: =IF(ISERROR(AVERAGE(E7,F7,Hilfstabelle!I6:M6)),"",AVERAGE(E7,F7,Hilfstabelle!I6:M6)) -> 3.285714286 | M7: =IF(ISERROR(L7+RAND()/1000),"",L7+RAND()/1000) -> 3.28637534 | N7: =AVERAGE($L$7:$L$106) -> 2.583333333 | P7: gar nicht | Q7: 5
A8: 2 | B8: Wasserversorgung | C8: 2006 | D8: nein | E8: 5 | F8: 5 | G8: nein | H8: ja | I8: nein | J8: ja | K8: ja | L8: =IF(ISERROR(AVERAGE(E8,F8,Hilfstabelle!I7:M7)),"",AVERAGE(E8,F8,Hilfstabelle!I7:M7)) -> 3.285714286 | M8: =IF(ISERROR(L8+RAND()/1000),"",L8+RAND()/1000) -> 3.286382268
A9: 3 | B9: Druckluftversorgung 1 | C9: 2000 | D9: nein | E9: 5 | F9: 5 | G9: nein | H9: nein | I9: nein | J9: nein | K9: ja | L9: =IF(ISERROR(AVERAGE(E9,F9,Hilfstabelle!I8:M8)),"",AVERAGE(E9,F9,Hilfstabelle!I8:M8)) -> 3.285714286 | M9: 3.285745299
A10: 4 | B10: Wasserversorgung | C10: 1997 | D10: nein | E10: 5 | F10: 5 | G10: nein | H10: ja | I10: nein | J10: ja | K10: nein | L10: =IF(ISERROR(AVERAGE(E10,F10,Hilfstabelle!I9:M9)),"",AVERAGE(E10,F10,Hilfstabelle!I9:M9)) -> 2.714285714 | M10: 2.714440017 | P10: keine Eintragung der Werte/Auswertefeld
A11: 5 | B11: Bohrmaschine | C11: 2018 | D11: ja | E11: 1 | F11: 1 | G11: nein | H11: ja | I11: nein | J11: ja | K11: ja | L11: =IF(ISERROR(AVERAGE(E11,F11,Hilfstabelle!I10:M10)),"",AVERAGE(E11,F11,Hilfstabelle!I10:M10)) -> 2.142857143 | M11: 2.14333425 | P11: keine Eintragung der Werte/Auswertefeld
A12: 6 | B12: Bohrmaschine | C12: 2015 | D12: ja | E12: 1 | F12: 1 | G12: ja | H12: ja | I12: nein | J12: ja | K12: ja | L12: =IF(ISERROR(AVERAGE(E12,F12,Hilfstabelle!I11:M11)),"",AVERAGE(E12,F12,Hilfstabelle!I11:M11)) -> 2.714285714 | M12: 2.715248101
A13: 7 | B13: Kantbank | C13: 2004 | D13: ja | E13: 1 | F13: 1 | G13: ja | H13: nein | I13: nein | J13: ja | K13: ja | L13: =IF(ISERROR(AVERAGE(E13,F13,Hilfstabelle!I12:M12)),"",AVERAGE(E13,F13,Hilfstabelle!I12:M12)) -> 2.142857143 | M13: 2.143261866
A14: 8 | B14: Kantbank | C14: 2000 | D14: ja | E14: 1 | F14: 1 | G14: nein | H14: ja | I14: nein | J14: nein | K14: nein | L14: =IF(ISERROR(AVERAGE(E14,F14,Hilfstabelle!I13:M13)),"",AVERAGE(E14,F14,Hilfstabelle!I13:M13)) -> 2.142857143 | M14: 2.14309636
A15: 9 | B15: Wasserstrahlschneidanlage 1 | C15: 2010 | D15: ja | E15: 3 | F15: 3 | G15: ja | H15: ja | I15: nein | J15: ja | K15: ja | L15: =IF(ISERROR(AVERAGE(E15,F15,Hilfstabelle!I14:M14)),"",AVERAGE(E15,F15,Hilfstabelle!I14:M14)) -> 3.285714286 | M15: 3.286708673
A16: 10 | B16: Wasserstrahlschneidanlage 2 | C16: 2009 | D16: ja | E16: 3 | F16: 3 | G16: nein | H16: ja | I16: nein | J16: ja | K16: nein | L16: =IF(ISERROR(AVERAGE(E16,F16,Hilfstabelle!I15:M15)),"",AVERAGE(E16,F16,Hilfstabelle!I15:M15)) -> 2.142857143 | M16: 2.143439301
A17: 11 | B17: Schweißanlage | C17: 2008 | D17: ja | E17: 1 | F17: 3 | G17: nein | H17: nein | I17: nein | J17: nein | K17: nein | L17: =IF(ISERROR(AVERAGE(E17,F17,Hilfstabelle!I16:M16)),"",AVERAGE(E17,F17,Hilfstabelle!I16:M16)) -> 1.857142857 | M17: 1.857291668
A18: 12 | B18: Schweißanlage | C18: 2019 | D18: ja | E18: 1 | F18: 3 | G18: nein | H18: ja | I18: nein | J18: ja | K18: nicht bekannt | L18: =IF(ISERROR(AVERAGE(E18,F18,Hilfstabelle!I17:M17)),"",AVERAGE(E18,F18,Hilfstabelle!I17:M17)) -> 2 | M18: 2.000295697
L19: =IF(ISERROR(AVERAGE(E19,F19,Hilfstabelle!I18:M18)),"",AVERAGE(E19,F19,Hilfstabelle!I18:M18)) -> 
L20: =IF(ISERROR(AVERAGE(E20,F20,Hilfstabelle!I19:M19)),"",AVERAGE(E20,F20,Hilfstabelle!I19:M19)) -> 
L21: =IF(ISERROR(AVERAGE(E21,F21,Hilfstabelle!I20:M20)),"",AVERAGE(E21,F21,Hilfstabelle!I20:M20)) -> 
L22: =IF(ISERROR(AVERAGE(E22,F22,Hilfstabelle!I21:M21)),"",AVERAGE(E22,F22,Hilfstabelle!I21:M21)) -> 
L23: =IF(ISERROR(AVERAGE(E23,F23,Hilfstabelle!I22:M22)),"",AVERAGE(E23,F23,Hilfstabelle!I22:M22)) -> 
L24: =IF(ISERROR(AVERAGE(E24,F24,Hilfstabelle!I23:M23)),"",AVERAGE(E24,F24,Hilfstabelle!I23:M23)) -> 
L25: =IF(ISERROR(AVERAGE(E25,F25,Hilfstabelle!I24:M24)),"",AVERAGE(E25,F25,Hilfstabelle!I24:M24)) -> 
L26: =IF(ISERROR(AVERAGE(E26,F26,Hilfstabelle!I25:M25)),"",AVERAGE(E26,F26,Hilfstabelle!I25:M25)) -> 
L27: =IF(ISERROR(AVERAGE(E27,F27,Hilfstabelle!I26:M26)),"",AVERAGE(E27,F27,Hilfstabelle!I26:M26)) -> 
L28: =IF(ISERROR(AVERAGE(E28,F28,Hilfstabelle!I27:M27)),"",AVERAGE(E28,F28,Hilfstabelle!I27:M27)) -> 
L29: =IF(ISERROR(AVERAGE(E29,F29,Hilfstabelle!I28:M28)),"",AVERAGE(E29,F29,Hilfstabelle!I28:M28)) -> 
L30: =IF(ISERROR(AVERAGE(E30,F30,Hilfstabelle!I29:M29)),"",AVERAGE(E30,F30,Hilfstabelle!I29:M29)) -> 
L31: =IF(ISERROR(AVERAGE(E31,F31,Hilfstabelle!I30:M30)),"",AVERAGE(E31,F31,Hilfstabelle!I30:M30)) -> 
L32: =IF(ISERROR(AVERAGE(E32,F32,Hilfstabelle!I31:M31)),"",AVERAGE(E32,F32,Hilfstabelle!I31:M31)) -> 
L33: =IF(ISERROR(AVERAGE(E33,F33,Hilfstabelle!I32:M32)),"",AVERAGE(E33,F33,Hilfstabelle!I32:M32)) -> 
L34: =IF(ISERROR(AVERAGE(E34,F34,Hilfstabelle!I33:M33)),"",AVERAGE(E34,F34,Hilfstabelle!I33:M33)) -> 
L35: =IF(ISERROR(AVERAGE(E35,F35,Hilfstabelle!I34:M34)),"",AVERAGE(E35,F35,Hilfstabelle!I34:M34)) -> 
L36: =IF(ISERROR(AVERAGE(E36,F36,Hilfstabelle!I35:M35)),"",AVERAGE(E36,F36,Hilfstabelle!I35:M35)) -> 
L37: =IF(ISERROR(AVERAGE(E37,F37,Hilfstabelle!I36:M36)),"",AVERAGE(E37,F37,Hilfstabelle!I36:M36)) -> 
L38: =IF(ISERROR(AVERAGE(E38,F38,Hilfstabelle!I37:M37)),"",AVERAGE(E38,F38,Hilfstabelle!I37:M37)) -> 
L39: =IF(ISERROR(AVERAGE(E39,F39,Hilfstabelle!I38:M38)),"",AVERAGE(E39,F39,Hilfstabelle!I38:M38)) -> 
L40: =IF(ISERROR(AVERAGE(E40,F40,Hilfstabelle!I39:M39)),"",AVERAGE(E40,F40,Hilfstabelle!I39:M39)) -> 
L41: =IF(ISERROR(AVERAGE(E41,F41,Hilfstabelle!I40:M40)),"",AVERAGE(E41,F41,Hilfstabelle!I40:M40)) -> 
L42: =IF(ISERROR(AVERAGE(E42,F42,Hilfstabelle!I41:M41)),"",AVERAGE(E42,F42,Hilfstabelle!I41:M41)) -> 
L43: =IF(ISERROR(AVERAGE(E43,F43,Hilfstabelle!I42:M42)),"",AVERAGE(E43,F43,Hilfstabelle!I42:M42)) -> 
L44: =IF(ISERROR(AVERAGE(E44,F44,Hilfstabelle!I43:M43)),"",AVERAGE(E44,F44,Hilfstabelle!I43:M43)) -> 
L45: =IF(ISERROR(AVERAGE(E45,F45,Hilfstabelle!I44:M44)),"",AVERAGE(E45,F45,Hilfstabelle!I44:M44)) -> 
L46: =IF(ISERROR(AVERAGE(E46,F46,Hilfstabelle!I45:M45)),"",AVERAGE(E46,F46,Hilfstabelle!I45:M45)) -> 
L47: =IF(ISERROR(AVERAGE(E47,F47,Hilfstabelle!I46:M46)),"",AVERAGE(E47,F47,Hilfstabelle!I46:M46)) -> 
L48: =IF(ISERROR(AVERAGE(E48,F48,Hilfstabelle!I47:M47)),"",AVERAGE(E48,F48,Hilfstabelle!I47:M47)) -> 
L49: =IF(ISERROR(AVERAGE(E49,F49,Hilfstabelle!I48:M48)),"",AVERAGE(E49,F49,Hilfstabelle!I48:M48)) -> 
L50: =IF(ISERROR(AVERAGE(E50,F50,Hilfstabelle!I49:M49)),"",AVERAGE(E50,F50,Hilfstabelle!I49:M49)) -> 
L51: =IF(ISERROR(AVERAGE(E51,F51,Hilfstabelle!I50:M50)),"",AVERAGE(E51,F51,Hilfstabelle!I50:M50)) -> 
L52: =IF(ISERROR(AVERAGE(E52,F52,Hilfstabelle!I51:M51)),"",AVERAGE(E52,F52,Hilfstabelle!I51:M51)) -> 
L53: =IF(ISERROR(AVERAGE(E53,F53,Hilfstabelle!I52:M52)),"",AVERAGE(E53,F53,Hilfstabelle!I52:M52)) -> 
L54: =IF(ISERROR(AVERAGE(E54,F54,Hilfstabelle!I53:M53)),"",AVERAGE(E54,F54,Hilfstabelle!I53:M53)) -> 
L55: =IF(ISERROR(AVERAGE(E55,F55,Hilfstabelle!I54:M54)),"",AVERAGE(E55,F55,Hilfstabelle!I54:M54)) -> 
L56: =IF(ISERROR(AVERAGE(E56,F56,Hilfstabelle!I55:M55)),"",AVERAGE(E56,F56,Hilfstabelle!I55:M55)) -> 
L57: =IF(ISERROR(AVERAGE(E57,F57,Hilfstabelle!I56:M56)),"",AVERAGE(E57,F57,Hilfstabelle!I56:M56)) -> 
L58: =IF(ISERROR(AVERAGE(E58,F58,Hilfstabelle!I57:M57)),"",AVERAGE(E58,F58,Hilfstabelle!I57:M57)) -> 
L59: =IF(ISERROR(AVERAGE(E59,F59,Hilfstabelle!I58:M58)),"",AVERAGE(E59,F59,Hilfstabelle!I58:M58)) -> 
L60: =IF(ISERROR(AVERAGE(E60,F60,Hilfstabelle!I59:M59)),"",AVERAGE(E60,F60,Hilfstabelle!I59:M59)) -> 
L61: =IF(ISERROR(AVERAGE(E61,F61,Hilfstabelle!I60:M60)),"",AVERAGE(E61,F61,Hilfstabelle!I60:M60)) -> 
L62: =IF(ISERROR(AVERAGE(E62,F62,Hilfstabelle!I61:M61)),"",AVERAGE(E62,F62,Hilfstabelle!I61:M61)) -> 
L63: =IF(ISERROR(AVERAGE(E63,F63,Hilfstabelle!I62:M62)),"",AVERAGE(E63,F63,Hilfstabelle!I62:M62)) -> 
L64: =IF(ISERROR(AVERAGE(E64,F64,Hilfstabelle!I63:M63)),"",AVERAGE(E64,F64,Hilfstabelle!I63:M63)) -> 
L65: =IF(ISERROR(AVERAGE(E65,F65,Hilfstabelle!I64:M64)),"",AVERAGE(E65,F65,Hilfstabelle!I64:M64)) -> 
L66: =IF(ISERROR(AVERAGE(E66,F66,Hilfstabelle!I65:M65)),"",AVERAGE(E66,F66,Hilfstabelle!I65:M65)) -> 
L67: =IF(ISERROR(AVERAGE(E67,F67,Hilfstabelle!I66:M66)),"",AVERAGE(E67,F67,Hilfstabelle!I66:M66)) -> 
L68: =IF(ISERROR(AVERAGE(E68,F68,Hilfstabelle!I67:M67)),"",AVERAGE(E68,F68,Hilfstabelle!I67:M67)) -> 
L69: =IF(ISERROR(AVERAGE(E69,F69,Hilfstabelle!I68:M68)),"",AVERAGE(E69,F69,Hilfstabelle!I68:M68)) -> 
L70: =IF(ISERROR(AVERAGE(E70,F70,Hilfstabelle!I69:M69)),"",AVERAGE(E70,F70,Hilfstabelle!I69:M69)) -> 
L71: =IF(ISERROR(AVERAGE(E71,F71,Hilfstabelle!I70:M70)),"",AVERAGE(E71,F71,Hilfstabelle!I70:M70)) -> 
L72: =IF(ISERROR(AVERAGE(E72,F72,Hilfstabelle!I71:M71)),"",AVERAGE(E72,F72,Hilfstabelle!I71:M71)) ->  | M72: =IF(ISERROR(L72+RAND()/1000),"",L72+RAND()/1000) -> 
L73: =IF(ISERROR(AVERAGE(E73,F73,Hilfstabelle!I72:M72)),"",AVERAGE(E73,F73,Hilfstabelle!I72:M72)) -> 
L74: =IF(ISERROR(AVERAGE(E74,F74,Hilfstabelle!I73:M73)),"",AVERAGE(E74,F74,Hilfstabelle!I73:M73)) -> 
L75: =IF(ISERROR(AVERAGE(E75,F75,Hilfstabelle!I74:M74)),"",AVERAGE(E75,F75,Hilfstabelle!I74:M74)) -> 
L76: =IF(ISERROR(AVERAGE(E76,F76,Hilfstabelle!I75:M75)),"",AVERAGE(E76,F76,Hilfstabelle!I75:M75)) -> 
L77: =IF(ISERROR(AVERAGE(E77,F77,Hilfstabelle!I76:M76)),"",AVERAGE(E77,F77,Hilfstabelle!I76:M76)) -> 
L78: =IF(ISERROR(AVERAGE(E78,F78,Hilfstabelle!I77:M77)),"",AVERAGE(E78,F78,Hilfstabelle!I77:M77)) -> 
L79: =IF(ISERROR(AVERAGE(E79,F79,Hilfstabelle!I78:M78)),"",AVERAGE(E79,F79,Hilfstabelle!I78:M78)) -> 
L80: =IF(ISERROR(AVERAGE(E80,F80,Hilfstabelle!I79:M79)),"",AVERAGE(E80,F80,Hilfstabelle!I79:M79)) -> 
L81: =IF(ISERROR(AVERAGE(E81,F81,Hilfstabelle!I80:M80)),"",AVERAGE(E81,F81,Hilfstabelle!I80:M80)) -> 
L82: =IF(ISERROR(AVERAGE(E82,F82,Hilfstabelle!I81:M81)),"",AVERAGE(E82,F82,Hilfstabelle!I81:M81)) -> 
L83: =IF(ISERROR(AVERAGE(E83,F83,Hilfstabelle!I82:M82)),"",AVERAGE(E83,F83,Hilfstabelle!I82:M82)) -> 
L84: =IF(ISERROR(AVERAGE(E84,F84,Hilfstabelle!I83:M83)),"",AVERAGE(E84,F84,Hilfstabelle!I83:M83)) -> 
L85: =IF(ISERROR(AVERAGE(E85,F85,Hilfstabelle!I84:M84)),"",AVERAGE(E85,F85,Hilfstabelle!I84:M84)) -> 
L86: =IF(ISERROR(AVERAGE(E86,F86,Hilfstabelle!I85:M85)),"",AVERAGE(E86,F86,Hilfstabelle!I85:M85)) -> 
L87: =IF(ISERROR(AVERAGE(E87,F87,Hilfstabelle!I86:M86)),"",AVERAGE(E87,F87,Hilfstabelle!I86:M86)) -> 
L88: =IF(ISERROR(AVERAGE(E88,F88,Hilfstabelle!I87:M87)),"",AVERAGE(E88,F88,Hilfstabelle!I87:M87)) -> 
L89: =IF(ISERROR(AVERAGE(E89,F89,Hilfstabelle!I88:M88)),"",AVERAGE(E89,F89,Hilfstabelle!I88:M88)) -> 
L90: =IF(ISERROR(AVERAGE(E90,F90,Hilfstabelle!I89:M89)),"",AVERAGE(E90,F90,Hilfstabelle!I89:M89)) -> 
L91: =IF(ISERROR(AVERAGE(E91,F91,Hilfstabelle!I90:M90)),"",AVERAGE(E91,F91,Hilfstabelle!I90:M90)) -> 
L92: =IF(ISERROR(AVERAGE(E92,F92,Hilfstabelle!I91:M91)),"",AVERAGE(E92,F92,Hilfstabelle!I91:M91)) -> 
L93: =IF(ISERROR(AVERAGE(E93,F93,Hilfstabelle!I92:M92)),"",AVERAGE(E93,F93,Hilfstabelle!I92:M92)) -> 
L94: =IF(ISERROR(AVERAGE(E94,F94,Hilfstabelle!I93:M93)),"",AVERAGE(E94,F94,Hilfstabelle!I93:M93)) -> 
L95: =IF(ISERROR(AVERAGE(E95,F95,Hilfstabelle!I94:M94)),"",AVERAGE(E95,F95,Hilfstabelle!I94:M94)) -> 
L96: =IF(ISERROR(AVERAGE(E96,F96,Hilfstabelle!I95:M95)),"",AVERAGE(E96,F96,Hilfstabelle!I95:M95)) -> 
L97: =IF(ISERROR(AVERAGE(E97,F97,Hilfstabelle!I96:M96)),"",AVERAGE(E97,F97,Hilfstabelle!I96:M96)) -> 
L98: =IF(ISERROR(AVERAGE(E98,F98,Hilfstabelle!I97:M97)),"",AVERAGE(E98,F98,Hilfstabelle!I97:M97)) -> 
L99: =IF(ISERROR(AVERAGE(E99,F99,Hilfstabelle!I98:M98)),"",AVERAGE(E99,F99,Hilfstabelle!I98:M98)) -> 
L100: =IF(ISERROR(AVERAGE(E100,F100,Hilfstabelle!I99:M99)),"",AVERAGE(E100,F100,Hilfstabelle!I99:M99)) -> 
L101: =IF(ISERROR(AVERAGE(E101,F101,Hilfstabelle!I100:M100)),"",AVERAGE(E101,F101,Hilfstabelle!I100:M100)) -> 
L102: =IF(ISERROR(AVERAGE(E102,F102,Hilfstabelle!I101:M101)),"",AVERAGE(E102,F102,Hilfstabelle!I101:M101)) -> 
L103: =IF(ISERROR(AVERAGE(E103,F103,Hilfstabelle!I102:M102)),"",AVERAGE(E103,F103,Hilfstabelle!I102:M102)) -> 
L104: =IF(ISERROR(AVERAGE(E104,F104,Hilfstabelle!I103:M103)),"",AVERAGE(E104,F104,Hilfstabelle!I103:M103)) -> 
L105: =IF(ISERROR(AVERAGE(E105,F105,Hilfstabelle!I104:M104)),"",AVERAGE(E105,F105,Hilfstabelle!I104:M104)) -> 
L106: =IF(ISERROR(AVERAGE(E106,F106,Hilfstabelle!I105:M105)),"",AVERAGE(E106,F106,Hilfstabelle!I105:M105)) -> 
A107: Anzahl aller Maschinen | B107: =COUNT(A7:A106) -> 12

Sheet zu Schritt_4_1_KM
A1: Automatische Sortierung der Maschinen nach dem Mittelwert der Bewertung aus dem Schritt_4_1_kritische_Maschinen zur Ermittlung der 20% der kritischen Maschinen
A2: Seriennummer | B2: Maschinenname | C2: Baujahr | D2: Probleme | E2: Mittelwert der einzelnen Maschinen | F2: %Gesamt | G2: kumulierte Summe % Gesamt
J6: Paretowert | K6: % der betrachteten Maschinen für die detaillierte Auswertung
A7: =INDEX(Schritt_4_1_kr_Maschinen!A:A,MATCH(E7,Schritt_4_1_kr_Maschinen!M:M,0)) -> 11 | B7: =INDEX(Schritt_4_1_kr_Maschinen!B:B,MATCH(E7,Schritt_4_1_kr_Maschinen!M:M,0)) -> Schweißanlage | C7: =INDEX(Schritt_4_1_kr_Maschinen!C:C,MATCH(E7,Schritt_4_1_kr_Maschinen!M:M,0)) -> 2008 | D7: =INDEX(Schritt_4_1_kr_Maschinen!D:D,MATCH(E7,Schritt_4_1_kr_Maschinen!M:M,0)) -> ja | E7: =IF(ISERROR((SMALL(Schritt_4_1_kr_Maschinen!$M$7:$M$106, ROWS($E$7:E7)))),"",(SMALL(Schritt_4_1_kr_Maschinen!$M$7:$M$106, ROWS($E$7:E7)))) -> 1.857291668 | F7: =IF(ISERROR((SUM(E7)/SUM($E$7:$E$106))),"",SUM(E7)/SUM($E$7:$E$106)) -> 0.05990177709 | G7: =SUM($F$7:F7) -> 0.05990177709 | J7: 0.8 | K7: =1-J7 -> 0.2
A8: =INDEX(Schritt_4_1_kr_Maschinen!A:A,MATCH(E8,Schritt_4_1_kr_Maschinen!M:M,0)) -> 12 | B8: =INDEX(Schritt_4_1_kr_Maschinen!B:B,MATCH(E8,Schritt_4_1_kr_Maschinen!M:M,0)) -> Schweißanlage | C8: =INDEX(Schritt_4_1_kr_Maschinen!C:C,MATCH(E8,Schritt_4_1_kr_Maschinen!M:M,0)) -> 2019 | D8: =INDEX(Schritt_4_1_kr_Maschinen!D:D,MATCH(E8,Schritt_4_1_kr_Maschinen!M:M,0)) -> ja | E8: =IF(ISERROR((SMALL(Schritt_4_1_kr_Maschinen!$M$7:$M$106, ROWS($E$7:E8)))),"",(SMALL(Schritt_4_1_kr_Maschinen!$M$7:$M$106, ROWS($E$7:E8)))) -> 2.000295697 | F8: =IF(ISERROR((SUM(E8)/SUM($E$7:$E$106))),"",SUM(E8)/SUM($E$7:$E$106)) -> 0.06451397428 | G8: =SUM($F$7:F8) -> 0.1244157514 | K8: =ROUNDUP(Schritt_4_1_kr_Maschinen!B107*'zu Schritt_4_1_KM'!K7,0) -> 3
A9: =INDEX(Schritt_4_1_kr_Maschinen!A:A,MATCH(E9,Schritt_4_1_kr_Maschinen!M:M,0)) -> 8 | B9: =INDEX(Schritt_4_1_kr_Maschinen!B:B,MATCH(E9,Schritt_4_1_kr_Maschinen!M:M,0)) -> Kantbank | C9: =INDEX(Schritt_4_1_kr_Maschinen!C:C,MATCH(E9,Schritt_4_1_kr_Maschinen!M:M,0)) -> 2000 | D9: =INDEX(Schritt_4_1_kr_Maschinen!D:D,MATCH(E9,Schritt_4_1_kr_Maschinen!M:M,0)) -> ja | E9: =IF(ISERROR((SMALL(Schritt_4_1_kr_Maschinen!$M$7:$M$106, ROWS($E$7:E9)))),"",(SMALL(Schritt_4_1_kr_Maschinen!$M$7:$M$106, ROWS($E$7:E9)))) -> 2.14309636 | F9: 0.0691196125 | G9: =SUM($F$7:F9) -> 0.1935353639
A10: =INDEX(Schritt_4_1_kr_Maschinen!A:A,MATCH(E10,Schritt_4_1_kr_Maschinen!M:M,0)) -> 7 | B10: =INDEX(Schritt_4_1_kr_Maschinen!B:B,MATCH(E10,Schritt_4_1_kr_Maschinen!M:M,0)) -> Kantbank | C10: =INDEX(Schritt_4_1_kr_Maschinen!C:C,MATCH(E10,Schritt_4_1_kr_Maschinen!M:M,0)) -> 2004 | D10: =INDEX(Schritt_4_1_kr_Maschinen!D:D,MATCH(E10,Schritt_4_1_kr_Maschinen!M:M,0)) -> ja | E10: =IF(ISERROR((SMALL(Schritt_4_1_kr_Maschinen!$M$7:$M$106, ROWS($E$7:E10)))),"",(SMALL(Schritt_4_1_kr_Maschinen!$M$7:$M$106, ROWS($E$7:E10)))) -> 2.143261866 | F10: 0.06912495046 | G10: =SUM($F$7:F10) -> 0.2626603143
A11: =INDEX(Schritt_4_1_kr_Maschinen!A:A,MATCH(E11,Schritt_4_1_kr_Maschinen!M:M,0)) -> 5 | B11: =INDEX(Schritt_4_1_kr_Maschinen!B:B,MATCH(E11,Schritt_4_1_kr_Maschinen!M:M,0)) -> Bohrmaschine | C11: =INDEX(Schritt_4_1_kr_Maschinen!C:C,MATCH(E11,Schritt_4_1_kr_Maschinen!M:M,0)) -> 2018 | D11: =INDEX(Schritt_4_1_kr_Maschinen!D:D,MATCH(E11,Schritt_4_1_kr_Maschinen!M:M,0)) -> ja | E11: =IF(ISERROR((SMALL(Schritt_4_1_kr_Maschinen!$M$7:$M$106, ROWS($E$7:E11)))),"",(SMALL(Schritt_4_1_kr_Maschinen!$M$7:$M$106, ROWS($E$7:E11)))) -> 2.14333425 | F11: 0.06912728501 | G11: =SUM($F$7:F11) -> 0.3317875993
A12: =INDEX(Schritt_4_1_kr_Maschinen!A:A,MATCH(E12,Schritt_4_1_kr_Maschinen!M:M,0)) -> 10 | B12: =INDEX(Schritt_4_1_kr_Maschinen!B:B,MATCH(E12,Schritt_4_1_kr_Maschinen!M:M,0)) -> Wasserstrahlschneidanlage 2 | C12: =INDEX(Schritt_4_1_kr_Maschinen!C:C,MATCH(E12,Schritt_4_1_kr_Maschinen!M:M,0)) -> 2009 | D12: =INDEX(Schritt_4_1_kr_Maschinen!D:D,MATCH(E12,Schritt_4_1_kr_Maschinen!M:M,0)) -> ja | E12: =IF(ISERROR((SMALL(Schritt_4_1_kr_Maschinen!$M$7:$M$106, ROWS($E$7:E12)))),"",(SMALL(Schritt_4_1_kr_Maschinen!$M$7:$M$106, ROWS($E$7:E12)))) -> 2.143439301 | F12: 0.06913067312 | G12: =SUM($F$7:F12) -> 0.4009182725
A13: =INDEX(Schritt_4_1_kr_Maschinen!A:A,MATCH(E13,Schritt_4_1_kr_Maschinen!M:M,0)) -> 4 | B13: =INDEX(Schritt_4_1_kr_Maschinen!B:B,MATCH(E13,Schritt_4_1_kr_Maschinen!M:M,0)) -> Wasserversorgung | C13: =INDEX(Schritt_4_1_kr_Maschinen!C:C,MATCH(E13,Schritt_4_1_kr_Maschinen!M:M,0)) -> 1997 | D13: =INDEX(Schritt_4_1_kr_Maschinen!D:D,MATCH(E13,Schritt_4_1_kr_Maschinen!M:M,0)) -> nein | E13: =IF(ISERROR((SMALL(Schritt_4_1_kr_Maschinen!$M$7:$M$106, ROWS($E$7:E13)))),"",(SMALL(Schritt_4_1_kr_Maschinen!$M$7:$M$106, ROWS($E$7:E13)))) -> 2.714440017 | F13: 0.08754671309 | G13: =SUM($F$7:F13) -> 0.4884649856
A14: =INDEX(Schritt_4_1_kr_Maschinen!A:A,MATCH(E14,Schritt_4_1_kr_Maschinen!M:M,0)) -> 6 | B14: =INDEX(Schritt_4_1_kr_Maschinen!B:B,MATCH(E14,Schritt_4_1_kr_Maschinen!M:M,0)) -> Bohrmaschine | C14: =INDEX(Schritt_4_1_kr_Maschinen!C:C,MATCH(E14,Schritt_4_1_kr_Maschinen!M:M,0)) -> 2015 | D14: =INDEX(Schritt_4_1_kr_Maschinen!D:D,MATCH(E14,Schritt_4_1_kr_Maschinen!M:M,0)) -> ja | E14: =IF(ISERROR((SMALL(Schritt_4_1_kr_Maschinen!$M$7:$M$106, ROWS($E$7:E14)))),"",(SMALL(Schritt_4_1_kr_Maschinen!$M$7:$M$106, ROWS($E$7:E14)))) -> 2.715248101 | F14: 0.08757277561 | G14: =SUM($F$7:F14) -> 0.5760377612
A15: =INDEX(Schritt_4_1_kr_Maschinen!A:A,MATCH(E15,Schritt_4_1_kr_Maschinen!M:M,0)) -> 3 | B15: =INDEX(Schritt_4_1_kr_Maschinen!B:B,MATCH(E15,Schritt_4_1_kr_Maschinen!M:M,0)) -> Druckluftversorgung 1 | C15: =INDEX(Schritt_4_1_kr_Maschinen!C:C,MATCH(E15,Schritt_4_1_kr_Maschinen!M:M,0)) -> 2000 | D15: =INDEX(Schritt_4_1_kr_Maschinen!D:D,MATCH(E15,Schritt_4_1_kr_Maschinen!M:M,0)) -> nein | E15: =IF(ISERROR((SMALL(Schritt_4_1_kr_Maschinen!$M$7:$M$106, ROWS($E$7:E15)))),"",(SMALL(Schritt_4_1_kr_Maschinen!$M$7:$M$106, ROWS($E$7:E15)))) -> 3.285745299 | F15: 0.105972576 | G15: =SUM($F$7:F15) -> 0.6820103372
A16: =INDEX(Schritt_4_1_kr_Maschinen!A:A,MATCH(E16,Schritt_4_1_kr_Maschinen!M:M,0)) -> 1 | B16: =INDEX(Schritt_4_1_kr_Maschinen!B:B,MATCH(E16,Schritt_4_1_kr_Maschinen!M:M,0)) -> Druckluftversorgung 2 | C16: =INDEX(Schritt_4_1_kr_Maschinen!C:C,MATCH(E16,Schritt_4_1_kr_Maschinen!M:M,0)) -> 2005 | D16: =INDEX(Schritt_4_1_kr_Maschinen!D:D,MATCH(E16,Schritt_4_1_kr_Maschinen!M:M,0)) -> nein | E16: =IF(ISERROR((SMALL(Schritt_4_1_kr_Maschinen!$M$7:$M$106, ROWS($E$7:E16)))),"",(SMALL(Schritt_4_1_kr_Maschinen!$M$7:$M$106, ROWS($E$7:E16)))) -> 3.28637534 | F16: 0.1059928962 | G16: =SUM($F$7:F16) -> 0.7880032334
A17: =INDEX(Schritt_4_1_kr_Maschinen!A:A,MATCH(E17,Schritt_4_1_kr_Maschinen!M:M,0)) -> 2 | B17: =INDEX(Schritt_4_1_kr_Maschinen!B:B,MATCH(E17,Schritt_4_1_kr_Maschinen!M:M,0)) -> Wasserversorgung | C17: =INDEX(Schritt_4_1_kr_Maschinen!C:C,MATCH(E17,Schritt_4_1_kr_Maschinen!M:M,0)) -> 2006 | D17: =INDEX(Schritt_4_1_kr_Maschinen!D:D,MATCH(E17,Schritt_4_1_kr_Maschinen!M:M,0)) -> nein | E17: =IF(ISERROR((SMALL(Schritt_4_1_kr_Maschinen!$M$7:$M$106, ROWS($E$7:E17)))),"",(SMALL(Schritt_4_1_kr_Maschinen!$M$7:$M$106, ROWS($E$7:E17)))) -> 3.286382268 | F17: 0.1059931197 | G17: =SUM($F$7:F17) -> 0.8939963531
A18: =INDEX(Schritt_4_1_kr_Maschinen!A:A,MATCH(E18,Schritt_4_1_kr_Maschinen!M:M,0)) -> 9 | B18: =INDEX(Schritt_4_1_kr_Maschinen!B:B,MATCH(E18,Schritt_4_1_kr_Maschinen!M:M,0)) -> Wasserstrahlschneidanlage 1 | C18: =INDEX(Schritt_4_1_kr_Maschinen!C:C,MATCH(E18,Schritt_4_1_kr_Maschinen!M:M,0)) -> 2010 | D18: =INDEX(Schritt_4_1_kr_Maschinen!D:D,MATCH(E18,Schritt_4_1_kr_Maschinen!M:M,0)) -> ja | E18: =IF(ISERROR((SMALL(Schritt_4_1_kr_Maschinen!$M$7:$M$106, ROWS($E$7:E18)))),"",(SMALL(Schritt_4_1_kr_Maschinen!$M$7:$M$106, ROWS($E$7:E18)))) -> 3.286708673 | F18: 0.1060036469 | G18: =SUM($F$7:F18) -> 1
A19: =INDEX(Schritt_4_1_kr_Maschinen!A:A,MATCH(E19,Schritt_4_1_kr_Maschinen!M:M,0)) -> 0 | B19: =INDEX(Schritt_4_1_kr_Maschinen!B:B,MATCH(E19,Schritt_4_1_kr_Maschinen!M:M,0)) -> 0 | C19: =INDEX(Schritt_4_1_kr_Maschinen!C:C,MATCH(E19,Schritt_4_1_kr_Maschinen!M:M,0)) -> 0 | D19: =INDEX(Schritt_4_1_kr_Maschinen!D:D,MATCH(E19,Schritt_4_1_kr_Maschinen!M:M,0)) -> 0 | E19: =IF(ISERROR((SMALL(Schritt_4_1_kr_Maschinen!$M$7:$M$106, ROWS($E$7:E19)))),"",(SMALL(Schritt_4_1_kr_Maschinen!$M$7:$M$106, ROWS($E$7:E19)))) ->  | F19: 0 | G19: =SUM($F$7:F19) -> 1
A20: =INDEX(Schritt_4_1_kr_Maschinen!A:A,MATCH(E20,Schritt_4_1_kr_Maschinen!M:M,0)) -> 0 | B20: =INDEX(Schritt_4_1_kr_Maschinen!B:B,MATCH(E20,Schritt_4_1_kr_Maschinen!M:M,0)) -> 0 | C20: =INDEX(Schritt_4_1_kr_Maschinen!C:C,MATCH(E20,Schritt_4_1_kr_Maschinen!M:M,0)) -> 0 | D20: =INDEX(Schritt_4_1_kr_Maschinen!D:D,MATCH(E20,Schritt_4_1_kr_Maschinen!M:M,0)) -> 0 | E20: =IF(ISERROR((SMALL(Schritt_4_1_kr_Maschinen!$M$7:$M$106, ROWS($E$7:E20)))),"",(SMALL(Schritt_4_1_kr_Maschinen!$M$7:$M$106, ROWS($E$7:E20)))) ->  | F20: 0 | G20: =SUM($F$7:F20) -> 1
A21: =INDEX(Schritt_4_1_kr_Maschinen!A:A,MATCH(E21,Schritt_4_1_kr_Maschinen!M:M,0)) -> 0 | B21: =INDEX(Schritt_4_1_kr_Maschinen!B:B,MATCH(E21,Schritt_4_1_kr_Maschinen!M:M,0)) -> 0 | C21: =INDEX(Schritt_4_1_kr_Maschinen!C:C,MATCH(E21,Schritt_4_1_kr_Maschinen!M:M,0)) -> 0 | D21: =INDEX(Schritt_4_1_kr_Maschinen!D:D,MATCH(E21,Schritt_4_1_kr_Maschinen!M:M,0)) -> 0 | E21: =IF(ISERROR((SMALL(Schritt_4_1_kr_Maschinen!$M$7:$M$106, ROWS($E$7:E21)))),"",(SMALL(Schritt_4_1_kr_Maschinen!$M$7:$M$106, ROWS($E$7:E21)))) ->  | F21: 0 | G21: =SUM($F$7:F21) -> 1
A22: =INDEX(Schritt_4_1_kr_Maschinen!A:A,MATCH(E22,Schritt_4_1_kr_Maschinen!M:M,0)) -> 0 | B22: =INDEX(Schritt_4_1_kr_Maschinen!B:B,MATCH(E22,Schritt_4_1_kr_Maschinen!M:M,0)) -> 0 | C22: =INDEX(Schritt_4_1_kr_Maschinen!C:C,MATCH(E22,Schritt_4_1_kr_Maschinen!M:M,0)) -> 0 | D22: =INDEX(Schritt_4_1_kr_Maschinen!D:D,MATCH(E22,Schritt_4_1_kr_Maschinen!M:M,0)) -> 0 | E22: =IF(ISERROR((SMALL(Schritt_4_1_kr_Maschinen!$M$7:$M$106, ROWS($E$7:E22)))),"",(SMALL(Schritt_4_1_kr_Maschinen!$M$7:$M$106, ROWS($E$7:E22)))) ->  | F22: 0 | G22: =SUM($F$7:F22) -> 1
A23: =INDEX(Schritt_4_1_kr_Maschinen!A:A,MATCH(E23,Schritt_4_1_kr_Maschinen!M:M,0)) -> 0 | B23: =INDEX(Schritt_4_1_kr_Maschinen!B:B,MATCH(E23,Schritt_4_1_kr_Maschinen!M:M,0)) -> 0 | C23: =INDEX(Schritt_4_1_kr_Maschinen!C:C,MATCH(E23,Schritt_4_1_kr_Maschinen!M:M,0)) -> 0 | D23: =INDEX(Schritt_4_1_kr_Maschinen!D:D,MATCH(E23,Schritt_4_1_kr_Maschinen!M:M,0)) -> 0 | E23: =IF(ISERROR((SMALL(Schritt_4_1_kr_Maschinen!$M$7:$M$106, ROWS($E$7:E23)))),"",(SMALL(Schritt_4_1_kr_Maschinen!$M$7:$M$106, ROWS($E$7:E23)))) ->  | F23: 0 | G23: =SUM($F$7:F23) -> 1
A24: =INDEX(Schritt_4_1_kr_Maschinen!A:A,MATCH(E24,Schritt_4_1_kr_Maschinen!M:M,0)) -> 0 | B24: =INDEX(Schritt_4_1_kr_Maschinen!B:B,MATCH(E24,Schritt_4_1_kr_Maschinen!M:M,0)) -> 0 | C24: =INDEX(Schritt_4_1_kr_Maschinen!C:C,MATCH(E24,Schritt_4_1_kr_Maschinen!M:M,0)) -> 0 | D24: =INDEX(Schritt_4_1_kr_Maschinen!D:D,MATCH(E24,Schritt_4_1_kr_Maschinen!M:M,0)) -> 0 | E24: =IF(ISERROR((SMALL(Schritt_4_1_kr_Maschinen!$M$7:$M$106, ROWS($E$7:E24)))),"",(SMALL(Schritt_4_1_kr_Maschinen!$M$7:$M$106, ROWS($E$7:E24)))) ->  | F24: 0 | G24: =SUM($F$7:F24) -> 1
A25: =INDEX(Schritt_4_1_kr_Maschinen!A:A,MATCH(E25,Schritt_4_1_kr_Maschinen!M:M,0)) -> 0 | B25: =INDEX(Schritt_4_1_kr_Maschinen!B:B,MATCH(E25,Schritt_4_1_kr_Maschinen!M:M,0)) -> 0 | C25: =INDEX(Schritt_4_1_kr_Maschinen!C:C,MATCH(E25,Schritt_4_1_kr_Maschinen!M:M,0)) -> 0 | D25: =INDEX(Schritt_4_1_kr_Maschinen!D:D,MATCH(E25,Schritt_4_1_kr_Maschinen!M:M,0)) -> 0 | E25: =IF(ISERROR((SMALL(Schritt_4_1_kr_Maschinen!$M$7:$M$106, ROWS($E$7:E25)))),"",(SMALL(Schritt_4_1_kr_Maschinen!$M$7:$M$106, ROWS($E$7:E25)))) ->  | F25: 0 | G25: =SUM($F$7:F25) -> 1
A26: =INDEX(Schritt_4_1_kr_Maschinen!A:A,MATCH(E26,Schritt_4_1_kr_Maschinen!M:M,0)) -> 0 | B26: =INDEX(Schritt_4_1_kr_Maschinen!B:B,MATCH(E26,Schritt_4_1_kr_Maschinen!M:M,0)) -> 0 | C26: =INDEX(Schritt_4_1_kr_Maschinen!C:C,MATCH(E26,Schritt_4_1_kr_Maschinen!M:M,0)) -> 0 | D26: =INDEX(Schritt_4_1_kr_Maschinen!D:D,MATCH(E26,Schritt_4_1_kr_Maschinen!M:M,0)) -> 0 | E26: =IF(ISERROR((SMALL(Schritt_4_1_kr_Maschinen!$M$7:$M$106, ROWS($E$7:E26)))),"",(SMALL(Schritt_4_1_kr_Maschinen!$M$7:$M$106, ROWS($E$7:E26)))) ->  | F26: 0 | G26: =SUM($F$7:F26) -> 1
A27: =INDEX(Schritt_4_1_kr_Maschinen!A:A,MATCH(E27,Schritt_4_1_kr_Maschinen!M:M,0)) -> 0 | B27: =INDEX(Schritt_4_1_kr_Maschinen!B:B,MATCH(E27,Schritt_4_1_kr_Maschinen!M:M,0)) -> 0 | C27: =INDEX(Schritt_4_1_kr_Maschinen!C:C,MATCH(E27,Schritt_4_1_kr_Maschinen!M:M,0)) -> 0 | D27: =INDEX(Schritt_4_1_kr_Maschinen!D:D,MATCH(E27,Schritt_4_1_kr_Maschinen!M:M,0)) -> 0 | E27: =IF(ISERROR((SMALL(Schritt_4_1_kr_Maschinen!$M$7:$M$106, ROWS($E$7:E27)))),"",(SMALL(Schritt_4_1_kr_Maschinen!$M$7:$M$106, ROWS($E$7:E27)))) ->  | F27: 0 | G27: =SUM($F$7:F27) -> 1
A28: =INDEX(Schritt_4_1_kr_Maschinen!A:A,MATCH(E28,Schritt_4_1_kr_Maschinen!M:M,0)) -> 0 | B28: =INDEX(Schritt_4_1_kr_Maschinen!B:B,MATCH(E28,Schritt_4_1_kr_Maschinen!M:M,0)) -> 0 | C28: =INDEX(Schritt_4_1_kr_Maschinen!C:C,MATCH(E28,Schritt_4_1_kr_Maschinen!M:M,0)) -> 0 | D28: =INDEX(Schritt_4_1_kr_Maschinen!D:D,MATCH(E28,Schritt_4_1_kr_Maschinen!M:M,0)) -> 0 | E28: =IF(ISERROR((SMALL(Schritt_4_1_kr_Maschinen!$M$7:$M$106, ROWS($E$7:E28)))),"",(SMALL(Schritt_4_1_kr_Maschinen!$M$7:$M$106, ROWS($E$7:E28)))) ->  | F28: 0 | G28: =SUM($F$7:F28) -> 1
A29: =INDEX(Schritt_4_1_kr_Maschinen!A:A,MATCH(E29,Schritt_4_1_kr_Maschinen!M:M,0)) -> 0 | B29: =INDEX(Schritt_4_1_kr_Maschinen!B:B,MATCH(E29,Schritt_4_1_kr_Maschinen!M:M,0)) -> 0 | C29: =INDEX(Schritt_4_1_kr_Maschinen!C:C,MATCH(E29,Schritt_4_1_kr_Maschinen!M:M,0)) -> 0 | D29: =INDEX(Schritt_4_1_kr_Maschinen!D:D,MATCH(E29,Schritt_4_1_kr_Maschinen!M:M,0)) -> 0 | E29: =IF(ISERROR((SMALL(Schritt_4_1_kr_Maschinen!$M$7:$M$106, ROWS($E$7:E29)))),"",(SMALL(Schritt_4_1_kr_Maschinen!$M$7:$M$106, ROWS($E$7:E29)))) ->  | F29: 0 | G29: =SUM($F$7:F29) -> 1
A30: =INDEX(Schritt_4_1_kr_Maschinen!A:A,MATCH(E30,Schritt_4_1_kr_Maschinen!M:M,0)) -> 0 | B30: =INDEX(Schritt_4_1_kr_Maschinen!B:B,MATCH(E30,Schritt_4_1_kr_Maschinen!M:M,0)) -> 0 | C30: =INDEX(Schritt_4_1_kr_Maschinen!C:C,MATCH(E30,Schritt_4_1_kr_Maschinen!M:M,0)) -> 0 | D30: =INDEX(Schritt_4_1_kr_Maschinen!D:D,MATCH(E30,Schritt_4_1_kr_Maschinen!M:M,0)) -> 0 | E30: =IF(ISERROR((SMALL(Schritt_4_1_kr_Maschinen!$M$7:$M$106, ROWS($E$7:E30)))),"",(SMALL(Schritt_4_1_kr_Maschinen!$M$7:$M$106, ROWS($E$7:E30)))) ->  | F30: 0 | G30: =SUM($F$7:F30) -> 1
A31: =INDEX(Schritt_4_1_kr_Maschinen!A:A,MATCH(E31,Schritt_4_1_kr_Maschinen!M:M,0)) -> 0 | B31: =INDEX(Schritt_4_1_kr_Maschinen!B:B,MATCH(E31,Schritt_4_1_kr_Maschinen!M:M,0)) -> 0 | C31: =INDEX(Schritt_4_1_kr_Maschinen!C:C,MATCH(E31,Schritt_4_1_kr_Maschinen!M:M,0)) -> 0 | D31: =INDEX(Schritt_4_1_kr_Maschinen!D:D,MATCH(E31,Schritt_4_1_kr_Maschinen!M:M,0)) -> 0 | E31: =IF(ISERROR((SMALL(Schritt_4_1_kr_Maschinen!$M$7:$M$106, ROWS($E$7:E31)))),"",(SMALL(Schritt_4_1_kr_Maschinen!$M$7:$M$106, ROWS($E$7:E31)))) ->  | F31: 0 | G31: =SUM($F$7:F31) -> 1
A32: =INDEX(Schritt_4_1_kr_Maschinen!A:A,MATCH(E32,Schritt_4_1_kr_Maschinen!M:M,0)) -> 0 | B32: =INDEX(Schritt_4_1_kr_Maschinen!B:B,MATCH(E32,Schritt_4_1_kr_Maschinen!M:M,0)) -> 0 | C32: =INDEX(Schritt_4_1_kr_Maschinen!C:C,MATCH(E32,Schritt_4_1_kr_Maschinen!M:M,0)) -> 0 | D32: =INDEX(Schritt_4_1_kr_Maschinen!D:D,MATCH(E32,Schritt_4_1_kr_Maschinen!M:M,0)) -> 0 | E32: =IF(ISERROR((SMALL(Schritt_4_1_kr_Maschinen!$M$7:$M$106, ROWS($E$7:E32)))),"",(SMALL(Schritt_4_1_kr_Maschinen!$M$7:$M$106, ROWS($E$7:E32)))) ->  | F32: 0 | G32: =SUM($F$7:F32) -> 1
A33: =INDEX(Schritt_4_1_kr_Maschinen!A:A,MATCH(E33,Schritt_4_1_kr_Maschinen!M:M,0)) -> 0 | B33: =INDEX(Schritt_4_1_kr_Maschinen!B:B,MATCH(E33,Schritt_4_1_kr_Maschinen!M:M,0)) -> 0 | C33: =INDEX(Schritt_4_1_kr_Maschinen!C:C,MATCH(E33,Schritt_4_1_kr_Maschinen!M:M,0)) -> 0 | D33: =INDEX(Schritt_4_1_kr_Maschinen!D:D,MATCH(E33,Schritt_4_1_kr_Maschinen!M:M,0)) -> 0 | E33: =IF(ISERROR((SMALL(Schritt_4_1_kr_Maschinen!$M$7:$M$106, ROWS($E$7:E33)))),"",(SMALL(Schritt_4_1_kr_Maschinen!$M$7:$M$106, ROWS($E$7:E33)))) ->  | F33: 0 | G33: =SUM($F$7:F33) -> 1
A34: =INDEX(Schritt_4_1_kr_Maschinen!A:A,MATCH(E34,Schritt_4_1_kr_Maschinen!M:M,0)) -> 0 | B34: =INDEX(Schritt_4_1_kr_Maschinen!B:B,MATCH(E34,Schritt_4_1_kr_Maschinen!M:M,0)) -> 0 | C34: =INDEX(Schritt_4_1_kr_Maschinen!C:C,MATCH(E34,Schritt_4_1_kr_Maschinen!M:M,0)) -> 0 | D34: =INDEX(Schritt_4_1_kr_Maschinen!D:D,MATCH(E34,Schritt_4_1_kr_Maschinen!M:M,0)) -> 0 | E34: =IF(ISERROR((SMALL(Schritt_4_1_kr_Maschinen!$M$7:$M$106, ROWS($E$7:E34)))),"",(SMALL(Schritt_4_1_kr_Maschinen!$M$7:$M$106, ROWS($E$7:E34)))) ->  | F34: 0 | G34: =SUM($F$7:F34) -> 1
A35: =INDEX(Schritt_4_1_kr_Maschinen!A:A,MATCH(E35,Schritt_4_1_kr_Maschinen!M:M,0)) -> 0 | B35: =INDEX(Schritt_4_1_kr_Maschinen!B:B,MATCH(E35,Schritt_4_1_kr_Maschinen!M:M,0)) -> 0 | C35: =INDEX(Schritt_4_1_kr_Maschinen!C:C,MATCH(E35,Schritt_4_1_kr_Maschinen!M:M,0)) -> 0 | D35: =INDEX(Schritt_4_1_kr_Maschinen!D:D,MATCH(E35,Schritt_4_1_kr_Maschinen!M:M,0)) -> 0 | E35: =IF(ISERROR((SMALL(Schritt_4_1_kr_Maschinen!$M$7:$M$106, ROWS($E$7:E35)))),"",(SMALL(Schritt_4_1_kr_Maschinen!$M$7:$M$106, ROWS($E$7:E35)))) ->  | F35: 0 | G35: =SUM($F$7:F35) -> 1
A36: =INDEX(Schritt_4_1_kr_Maschinen!A:A,MATCH(E36,Schritt_4_1_kr_Maschinen!M:M,0)) -> 0 | B36: =INDEX(Schritt_4_1_kr_Maschinen!B:B,MATCH(E36,Schritt_4_1_kr_Maschinen!M:M,0)) -> 0 | C36: =INDEX(Schritt_4_1_kr_Maschinen!C:C,MATCH(E36,Schritt_4_1_kr_Maschinen!M:M,0)) -> 0 | D36: =INDEX(Schritt_4_1_kr_Maschinen!D:D,MATCH(E36,Schritt_4_1_kr_Maschinen!M:M,0)) -> 0 | E36: =IF(ISERROR((SMALL(Schritt_4_1_kr_Maschinen!$M$7:$M$106, ROWS($E$7:E36)))),"",(SMALL(Schritt_4_1_kr_Maschinen!$M$7:$M$106, ROWS($E$7:E36)))) ->  | F36: 0 | G36: =SUM($F$7:F36) -> 1
A37: =INDEX(Schritt_4_1_kr_Maschinen!A:A,MATCH(E37,Schritt_4_1_kr_Maschinen!M:M,0)) -> 0 | B37: =INDEX(Schritt_4_1_kr_Maschinen!B:B,MATCH(E37,Schritt_4_1_kr_Maschinen!M:M,0)) -> 0 | C37: =INDEX(Schritt_4_1_kr_Maschinen!C:C,MATCH(E37,Schritt_4_1_kr_Maschinen!M:M,0)) -> 0 | D37: =INDEX(Schritt_4_1_kr_Maschinen!D:D,MATCH(E37,Schritt_4_1_kr_Maschinen!M:M,0)) -> 0 | E37: =IF(ISERROR((SMALL(Schritt_4_1_kr_Maschinen!$M$7:$M$106, ROWS($E$7:E37)))),"",(SMALL(Schritt_4_1_kr_Maschinen!$M$7:$M$106, ROWS($E$7:E37)))) ->  | F37: 0 | G37: =SUM($F$7:F37) -> 1
A38: =INDEX(Schritt_4_1_kr_Maschinen!A:A,MATCH(E38,Schritt_4_1_kr_Maschinen!M:M,0)) -> 0 | B38: =INDEX(Schritt_4_1_kr_Maschinen!B:B,MATCH(E38,Schritt_4_1_kr_Maschinen!M:M,0)) -> 0 | C38: =INDEX(Schritt_4_1_kr_Maschinen!C:C,MATCH(E38,Schritt_4_1_kr_Maschinen!M:M,0)) -> 0 | D38: =INDEX(Schritt_4_1_kr_Maschinen!D:D,MATCH(E38,Schritt_4_1_kr_Maschinen!M:M,0)) -> 0 | E38: =IF(ISERROR((SMALL(Schritt_4_1_kr_Maschinen!$M$7:$M$106, ROWS($E$7:E38)))),"",(SMALL(Schritt_4_1_kr_Maschinen!$M$7:$M$106, ROWS($E$7:E38)))) ->  | F38: 0 | G38: =SUM($F$7:F38) -> 1
A39: =INDEX(Schritt_4_1_kr_Maschinen!A:A,MATCH(E39,Schritt_4_1_kr_Maschinen!M:M,0)) -> 0 | B39: =INDEX(Schritt_4_1_kr_Maschinen!B:B,MATCH(E39,Schritt_4_1_kr_Maschinen!M:M,0)) -> 0 | C39: =INDEX(Schritt_4_1_kr_Maschinen!C:C,MATCH(E39,Schritt_4_1_kr_Maschinen!M:M,0)) -> 0 | D39: =INDEX(Schritt_4_1_kr_Maschinen!D:D,MATCH(E39,Schritt_4_1_kr_Maschinen!M:M,0)) -> 0 | E39: =IF(ISERROR((SMALL(Schritt_4_1_kr_Maschinen!$M$7:$M$106, ROWS($E$7:E39)))),"",(SMALL(Schritt_4_1_kr_Maschinen!$M$7:$M$106, ROWS($E$7:E39)))) ->  | F39: 0 | G39: =SUM($F$7:F39) -> 1
A40: =INDEX(Schritt_4_1_kr_Maschinen!A:A,MATCH(E40,Schritt_4_1_kr_Maschinen!M:M,0)) -> 0 | B40: =INDEX(Schritt_4_1_kr_Maschinen!B:B,MATCH(E40,Schritt_4_1_kr_Maschinen!M:M,0)) -> 0 | C40: =INDEX(Schritt_4_1_kr_Maschinen!C:C,MATCH(E40,Schritt_4_1_kr_Maschinen!M:M,0)) -> 0 | D40: =INDEX(Schritt_4_1_kr_Maschinen!D:D,MATCH(E40,Schritt_4_1_kr_Maschinen!M:M,0)) -> 0 | E40: =IF(ISERROR((SMALL(Schritt_4_1_kr_Maschinen!$M$7:$M$106, ROWS($E$7:E40)))),"",(SMALL(Schritt_4_1_kr_Maschinen!$M$7:$M$106, ROWS($E$7:E40)))) ->  | F40: 0 | G40: =SUM($F$7:F40) -> 1
A41: =INDEX(Schritt_4_1_kr_Maschinen!A:A,MATCH(E41,Schritt_4_1_kr_Maschinen!M:M,0)) -> 0 | B41: =INDEX(Schritt_4_1_kr_Maschinen!B:B,MATCH(E41,Schritt_4_1_kr_Maschinen!M:M,0)) -> 0 | C41: =INDEX(Schritt_4_1_kr_Maschinen!C:C,MATCH(E41,Schritt_4_1_kr_Maschinen!M:M,0)) -> 0 | D41: =INDEX(Schritt_4_1_kr_Maschinen!D:D,MATCH(E41,Schritt_4_1_kr_Maschinen!M:M,0)) -> 0 | E41: =IF(ISERROR((SMALL(Schritt_4_1_kr_Maschinen!$M$7:$M$106, ROWS($E$7:E41)))),"",(SMALL(Schritt_4_1_kr_Maschinen!$M$7:$M$106, ROWS($E$7:E41)))) ->  | F41: 0 | G41: =SUM($F$7:F41) -> 1
A42: =INDEX(Schritt_4_1_kr_Maschinen!A:A,MATCH(E42,Schritt_4_1_kr_Maschinen!M:M,0)) -> 0 | B42: =INDEX(Schritt_4_1_kr_Maschinen!B:B,MATCH(E42,Schritt_4_1_kr_Maschinen!M:M,0)) -> 0 | C42: =INDEX(Schritt_4_1_kr_Maschinen!C:C,MATCH(E42,Schritt_4_1_kr_Maschinen!M:M,0)) -> 0 | D42: =INDEX(Schritt_4_1_kr_Maschinen!D:D,MATCH(E42,Schritt_4_1_kr_Maschinen!M:M,0)) -> 0 | E42: =IF(ISERROR((SMALL(Schritt_4_1_kr_Maschinen!$M$7:$M$106, ROWS($E$7:E42)))),"",(SMALL(Schritt_4_1_kr_Maschinen!$M$7:$M$106, ROWS($E$7:E42)))) ->  | F42: 0 | G42: =SUM($F$7:F42) -> 1
A43: =INDEX(Schritt_4_1_kr_Maschinen!A:A,MATCH(E43,Schritt_4_1_kr_Maschinen!M:M,0)) -> 0 | B43: =INDEX(Schritt_4_1_kr_Maschinen!B:B,MATCH(E43,Schritt_4_1_kr_Maschinen!M:M,0)) -> 0 | C43: =INDEX(Schritt_4_1_kr_Maschinen!C:C,MATCH(E43,Schritt_4_1_kr_Maschinen!M:M,0)) -> 0 | D43: =INDEX(Schritt_4_1_kr_Maschinen!D:D,MATCH(E43,Schritt_4_1_kr_Maschinen!M:M,0)) -> 0 | E43: =IF(ISERROR((SMALL(Schritt_4_1_kr_Maschinen!$M$7:$M$106, ROWS($E$7:E43)))),"",(SMALL(Schritt_4_1_kr_Maschinen!$M$7:$M$106, ROWS($E$7:E43)))) ->  | F43: 0 | G43: =SUM($F$7:F43) -> 1
A44: =INDEX(Schritt_4_1_kr_Maschinen!A:A,MATCH(E44,Schritt_4_1_kr_Maschinen!M:M,0)) -> 0 | B44: =INDEX(Schritt_4_1_kr_Maschinen!B:B,MATCH(E44,Schritt_4_1_kr_Maschinen!M:M,0)) -> 0 | C44: =INDEX(Schritt_4_1_kr_Maschinen!C:C,MATCH(E44,Schritt_4_1_kr_Maschinen!M:M,0)) -> 0 | D44: =INDEX(Schritt_4_1_kr_Maschinen!D:D,MATCH(E44,Schritt_4_1_kr_Maschinen!M:M,0)) -> 0 | E44: =IF(ISERROR((SMALL(Schritt_4_1_kr_Maschinen!$M$7:$M$106, ROWS($E$7:E44)))),"",(SMALL(Schritt_4_1_kr_Maschinen!$M$7:$M$106, ROWS($E$7:E44)))) ->  | F44: 0 | G44: =SUM($F$7:F44) -> 1
A45: =INDEX(Schritt_4_1_kr_Maschinen!A:A,MATCH(E45,Schritt_4_1_kr_Maschinen!M:M,0)) -> 0 | B45: =INDEX(Schritt_4_1_kr_Maschinen!B:B,MATCH(E45,Schritt_4_1_kr_Maschinen!M:M,0)) -> 0 | C45: =INDEX(Schritt_4_1_kr_Maschinen!C:C,MATCH(E45,Schritt_4_1_kr_Maschinen!M:M,0)) -> 0 | D45: =INDEX(Schritt_4_1_kr_Maschinen!D:D,MATCH(E45,Schritt_4_1_kr_Maschinen!M:M,0)) -> 0 | E45: =IF(ISERROR((SMALL(Schritt_4_1_kr_Maschinen!$M$7:$M$106, ROWS($E$7:E45)))),"",(SMALL(Schritt_4_1_kr_Maschinen!$M$7:$M$106, ROWS($E$7:E45)))) ->  | F45: 0 | G45: =SUM($F$7:F45) -> 1
A46: =INDEX(Schritt_4_1_kr_Maschinen!A:A,MATCH(E46,Schritt_4_1_kr_Maschinen!M:M,0)) -> 0 | B46: =INDEX(Schritt_4_1_kr_Maschinen!B:B,MATCH(E46,Schritt_4_1_kr_Maschinen!M:M,0)) -> 0 | C46: =INDEX(Schritt_4_1_kr_Maschinen!C:C,MATCH(E46,Schritt_4_1_kr_Maschinen!M:M,0)) -> 0 | D46: =INDEX(Schritt_4_1_kr_Maschinen!D:D,MATCH(E46,Schritt_4_1_kr_Maschinen!M:M,0)) -> 0 | E46: =IF(ISERROR((SMALL(Schritt_4_1_kr_Maschinen!$M$7:$M$106, ROWS($E$7:E46)))),"",(SMALL(Schritt_4_1_kr_Maschinen!$M$7:$M$106, ROWS($E$7:E46)))) ->  | F46: 0 | G46: =SUM($F$7:F46) -> 1
A47: =INDEX(Schritt_4_1_kr_Maschinen!A:A,MATCH(E47,Schritt_4_1_kr_Maschinen!M:M,0)) -> 0 | B47: =INDEX(Schritt_4_1_kr_Maschinen!B:B,MATCH(E47,Schritt_4_1_kr_Maschinen!M:M,0)) -> 0 | C47: =INDEX(Schritt_4_1_kr_Maschinen!C:C,MATCH(E47,Schritt_4_1_kr_Maschinen!M:M,0)) -> 0 | D47: =INDEX(Schritt_4_1_kr_Maschinen!D:D,MATCH(E47,Schritt_4_1_kr_Maschinen!M:M,0)) -> 0 | E47: =IF(ISERROR((SMALL(Schritt_4_1_kr_Maschinen!$M$7:$M$106, ROWS($E$7:E47)))),"",(SMALL(Schritt_4_1_kr_Maschinen!$M$7:$M$106, ROWS($E$7:E47)))) ->  | F47: 0 | G47: =SUM($F$7:F47) -> 1
A48: =INDEX(Schritt_4_1_kr_Maschinen!A:A,MATCH(E48,Schritt_4_1_kr_Maschinen!M:M,0)) -> 0 | B48: =INDEX(Schritt_4_1_kr_Maschinen!B:B,MATCH(E48,Schritt_4_1_kr_Maschinen!M:M,0)) -> 0 | C48: =INDEX(Schritt_4_1_kr_Maschinen!C:C,MATCH(E48,Schritt_4_1_kr_Maschinen!M:M,0)) -> 0 | D48: =INDEX(Schritt_4_1_kr_Maschinen!D:D,MATCH(E48,Schritt_4_1_kr_Maschinen!M:M,0)) -> 0 | E48: =IF(ISERROR((SMALL(Schritt_4_1_kr_Maschinen!$M$7:$M$106, ROWS($E$7:E48)))),"",(SMALL(Schritt_4_1_kr_Maschinen!$M$7:$M$106, ROWS($E$7:E48)))) ->  | F48: 0 | G48: =SUM($F$7:F48) -> 1
A49: =INDEX(Schritt_4_1_kr_Maschinen!A:A,MATCH(E49,Schritt_4_1_kr_Maschinen!M:M,0)) -> 0 | B49: =INDEX(Schritt_4_1_kr_Maschinen!B:B,MATCH(E49,Schritt_4_1_kr_Maschinen!M:M,0)) -> 0 | C49: =INDEX(Schritt_4_1_kr_Maschinen!C:C,MATCH(E49,Schritt_4_1_kr_Maschinen!M:M,0)) -> 0 | D49: =INDEX(Schritt_4_1_kr_Maschinen!D:D,MATCH(E49,Schritt_4_1_kr_Maschinen!M:M,0)) -> 0 | E49: =IF(ISERROR((SMALL(Schritt_4_1_kr_Maschinen!$M$7:$M$106, ROWS($E$7:E49)))),"",(SMALL(Schritt_4_1_kr_Maschinen!$M$7:$M$106, ROWS($E$7:E49)))) ->  | F49: 0 | G49: =SUM($F$7:F49) -> 1
A50: =INDEX(Schritt_4_1_kr_Maschinen!A:A,MATCH(E50,Schritt_4_1_kr_Maschinen!M:M,0)) -> 0 | B50: =INDEX(Schritt_4_1_kr_Maschinen!B:B,MATCH(E50,Schritt_4_1_kr_Maschinen!M:M,0)) -> 0 | C50: =INDEX(Schritt_4_1_kr_Maschinen!C:C,MATCH(E50,Schritt_4_1_kr_Maschinen!M:M,0)) -> 0 | D50: =INDEX(Schritt_4_1_kr_Maschinen!D:D,MATCH(E50,Schritt_4_1_kr_Maschinen!M:M,0)) -> 0 | E50: =IF(ISERROR((SMALL(Schritt_4_1_kr_Maschinen!$M$7:$M$106, ROWS($E$7:E50)))),"",(SMALL(Schritt_4_1_kr_Maschinen!$M$7:$M$106, ROWS($E$7:E50)))) ->  | F50: 0 | G50: =SUM($F$7:F50) -> 1
A51: =INDEX(Schritt_4_1_kr_Maschinen!A:A,MATCH(E51,Schritt_4_1_kr_Maschinen!M:M,0)) -> 0 | B51: =INDEX(Schritt_4_1_kr_Maschinen!B:B,MATCH(E51,Schritt_4_1_kr_Maschinen!M:M,0)) -> 0 | C51: =INDEX(Schritt_4_1_kr_Maschinen!C:C,MATCH(E51,Schritt_4_1_kr_Maschinen!M:M,0)) -> 0 | D51: =INDEX(Schritt_4_1_kr_Maschinen!D:D,MATCH(E51,Schritt_4_1_kr_Maschinen!M:M,0)) -> 0 | E51: =IF(ISERROR((SMALL(Schritt_4_1_kr_Maschinen!$M$7:$M$106, ROWS($E$7:E51)))),"",(SMALL(Schritt_4_1_kr_Maschinen!$M$7:$M$106, ROWS($E$7:E51)))) ->  | F51: 0 | G51: =SUM($F$7:F51) -> 1
A52: =INDEX(Schritt_4_1_kr_Maschinen!A:A,MATCH(E52,Schritt_4_1_kr_Maschinen!M:M,0)) -> 0 | B52: =INDEX(Schritt_4_1_kr_Maschinen!B:B,MATCH(E52,Schritt_4_1_kr_Maschinen!M:M,0)) -> 0 | C52: =INDEX(Schritt_4_1_kr_Maschinen!C:C,MATCH(E52,Schritt_4_1_kr_Maschinen!M:M,0)) -> 0 | D52: =INDEX(Schritt_4_1_kr_Maschinen!D:D,MATCH(E52,Schritt_4_1_kr_Maschinen!M:M,0)) -> 0 | E52: =IF(ISERROR((SMALL(Schritt_4_1_kr_Maschinen!$M$7:$M$106, ROWS($E$7:E52)))),"",(SMALL(Schritt_4_1_kr_Maschinen!$M$7:$M$106, ROWS($E$7:E52)))) ->  | F52: 0 | G52: =SUM($F$7:F52) -> 1
A53: =INDEX(Schritt_4_1_kr_Maschinen!A:A,MATCH(E53,Schritt_4_1_kr_Maschinen!M:M,0)) -> 0 | B53: =INDEX(Schritt_4_1_kr_Maschinen!B:B,MATCH(E53,Schritt_4_1_kr_Maschinen!M:M,0)) -> 0 | C53: =INDEX(Schritt_4_1_kr_Maschinen!C:C,MATCH(E53,Schritt_4_1_kr_Maschinen!M:M,0)) -> 0 | D53: =INDEX(Schritt_4_1_kr_Maschinen!D:D,MATCH(E53,Schritt_4_1_kr_Maschinen!M:M,0)) -> 0 | E53: =IF(ISERROR((SMALL(Schritt_4_1_kr_Maschinen!$M$7:$M$106, ROWS($E$7:E53)))),"",(SMALL(Schritt_4_1_kr_Maschinen!$M$7:$M$106, ROWS($E$7:E53)))) ->  | F53: 0 | G53: =SUM($F$7:F53) -> 1
A54: =INDEX(Schritt_4_1_kr_Maschinen!A:A,MATCH(E54,Schritt_4_1_kr_Maschinen!M:M,0)) -> 0 | B54: =INDEX(Schritt_4_1_kr_Maschinen!B:B,MATCH(E54,Schritt_4_1_kr_Maschinen!M:M,0)) -> 0 | C54: =INDEX(Schritt_4_1_kr_Maschinen!C:C,MATCH(E54,Schritt_4_1_kr_Maschinen!M:M,0)) -> 0 | D54: =INDEX(Schritt_4_1_kr_Maschinen!D:D,MATCH(E54,Schritt_4_1_kr_Maschinen!M:M,0)) -> 0 | E54: =IF(ISERROR((SMALL(Schritt_4_1_kr_Maschinen!$M$7:$M$106, ROWS($E$7:E54)))),"",(SMALL(Schritt_4_1_kr_Maschinen!$M$7:$M$106, ROWS($E$7:E54)))) ->  | F54: 0 | G54: =SUM($F$7:F54) -> 1
A55: =INDEX(Schritt_4_1_kr_Maschinen!A:A,MATCH(E55,Schritt_4_1_kr_Maschinen!M:M,0)) -> 0 | B55: =INDEX(Schritt_4_1_kr_Maschinen!B:B,MATCH(E55,Schritt_4_1_kr_Maschinen!M:M,0)) -> 0 | C55: =INDEX(Schritt_4_1_kr_Maschinen!C:C,MATCH(E55,Schritt_4_1_kr_Maschinen!M:M,0)) -> 0 | D55: =INDEX(Schritt_4_1_kr_Maschinen!D:D,MATCH(E55,Schritt_4_1_kr_Maschinen!M:M,0)) -> 0 | E55: =IF(ISERROR((SMALL(Schritt_4_1_kr_Maschinen!$M$7:$M$106, ROWS($E$7:E55)))),"",(SMALL(Schritt_4_1_kr_Maschinen!$M$7:$M$106, ROWS($E$7:E55)))) ->  | F55: 0 | G55: =SUM($F$7:F55) -> 1
A56: =INDEX(Schritt_4_1_kr_Maschinen!A:A,MATCH(E56,Schritt_4_1_kr_Maschinen!M:M,0)) -> 0 | B56: =INDEX(Schritt_4_1_kr_Maschinen!B:B,MATCH(E56,Schritt_4_1_kr_Maschinen!M:M,0)) -> 0 | C56: =INDEX(Schritt_4_1_kr_Maschinen!C:C,MATCH(E56,Schritt_4_1_kr_Maschinen!M:M,0)) -> 0 | D56: =INDEX(Schritt_4_1_kr_Maschinen!D:D,MATCH(E56,Schritt_4_1_kr_Maschinen!M:M,0)) -> 0 | E56: =IF(ISERROR((SMALL(Schritt_4_1_kr_Maschinen!$M$7:$M$106, ROWS($E$7:E56)))),"",(SMALL(Schritt_4_1_kr_Maschinen!$M$7:$M$106, ROWS($E$7:E56)))) ->  | F56: 0 | G56: =SUM($F$7:F56) -> 1
A57: =INDEX(Schritt_4_1_kr_Maschinen!A:A,MATCH(E57,Schritt_4_1_kr_Maschinen!M:M,0)) -> 0 | B57: =INDEX(Schritt_4_1_kr_Maschinen!B:B,MATCH(E57,Schritt_4_1_kr_Maschinen!M:M,0)) -> 0 | C57: =INDEX(Schritt_4_1_kr_Maschinen!C:C,MATCH(E57,Schritt_4_1_kr_Maschinen!M:M,0)) -> 0 | D57: =INDEX(Schritt_4_1_kr_Maschinen!D:D,MATCH(E57,Schritt_4_1_kr_Maschinen!M:M,0)) -> 0 | E57: =IF(ISERROR((SMALL(Schritt_4_1_kr_Maschinen!$M$7:$M$106, ROWS($E$7:E57)))),"",(SMALL(Schritt_4_1_kr_Maschinen!$M$7:$M$106, ROWS($E$7:E57)))) ->  | F57: 0 | G57: =SUM($F$7:F57) -> 1
A58: =INDEX(Schritt_4_1_kr_Maschinen!A:A,MATCH(E58,Schritt_4_1_kr_Maschinen!M:M,0)) -> 0 | B58: =INDEX(Schritt_4_1_kr_Maschinen!B:B,MATCH(E58,Schritt_4_1_kr_Maschinen!M:M,0)) -> 0 | C58: =INDEX(Schritt_4_1_kr_Maschinen!C:C,MATCH(E58,Schritt_4_1_kr_Maschinen!M:M,0)) -> 0 | D58: =INDEX(Schritt_4_1_kr_Maschinen!D:D,MATCH(E58,Schritt_4_1_kr_Maschinen!M:M,0)) -> 0 | E58: =IF(ISERROR((SMALL(Schritt_4_1_kr_Maschinen!$M$7:$M$106, ROWS($E$7:E58)))),"",(SMALL(Schritt_4_1_kr_Maschinen!$M$7:$M$106, ROWS($E$7:E58)))) ->  | F58: 0 | G58: =SUM($F$7:F58) -> 1
A59: =INDEX(Schritt_4_1_kr_Maschinen!A:A,MATCH(E59,Schritt_4_1_kr_Maschinen!M:M,0)) -> 0 | B59: =INDEX(Schritt_4_1_kr_Maschinen!B:B,MATCH(E59,Schritt_4_1_kr_Maschinen!M:M,0)) -> 0 | C59: =INDEX(Schritt_4_1_kr_Maschinen!C:C,MATCH(E59,Schritt_4_1_kr_Maschinen!M:M,0)) -> 0 | D59: =INDEX(Schritt_4_1_kr_Maschinen!D:D,MATCH(E59,Schritt_4_1_kr_Maschinen!M:M,0)) -> 0 | E59: =IF(ISERROR((SMALL(Schritt_4_1_kr_Maschinen!$M$7:$M$106, ROWS($E$7:E59)))),"",(SMALL(Schritt_4_1_kr_Maschinen!$M$7:$M$106, ROWS($E$7:E59)))) ->  | F59: 0 | G59: =SUM($F$7:F59) -> 1
A60: =INDEX(Schritt_4_1_kr_Maschinen!A:A,MATCH(E60,Schritt_4_1_kr_Maschinen!M:M,0)) -> 0 | B60: =INDEX(Schritt_4_1_kr_Maschinen!B:B,MATCH(E60,Schritt_4_1_kr_Maschinen!M:M,0)) -> 0 | C60: =INDEX(Schritt_4_1_kr_Maschinen!C:C,MATCH(E60,Schritt_4_1_kr_Maschinen!M:M,0)) -> 0 | D60: =INDEX(Schritt_4_1_kr_Maschinen!D:D,MATCH(E60,Schritt_4_1_kr_Maschinen!M:M,0)) -> 0 | E60: =IF(ISERROR((SMALL(Schritt_4_1_kr_Maschinen!$M$7:$M$106, ROWS($E$7:E60)))),"",(SMALL(Schritt_4_1_kr_Maschinen!$M$7:$M$106, ROWS($E$7:E60)))) ->  | F60: 0 | G60: =SUM($F$7:F60) -> 1
A61: =INDEX(Schritt_4_1_kr_Maschinen!A:A,MATCH(E61,Schritt_4_1_kr_Maschinen!M:M,0)) -> 0 | B61: =INDEX(Schritt_4_1_kr_Maschinen!B:B,MATCH(E61,Schritt_4_1_kr_Maschinen!M:M,0)) -> 0 | C61: =INDEX(Schritt_4_1_kr_Maschinen!C:C,MATCH(E61,Schritt_4_1_kr_Maschinen!M:M,0)) -> 0 | D61: =INDEX(Schritt_4_1_kr_Maschinen!D:D,MATCH(E61,Schritt_4_1_kr_Maschinen!M:M,0)) -> 0 | E61: =IF(ISERROR((SMALL(Schritt_4_1_kr_Maschinen!$M$7:$M$106, ROWS($E$7:E61)))),"",(SMALL(Schritt_4_1_kr_Maschinen!$M$7:$M$106, ROWS($E$7:E61)))) ->  | F61: 0 | G61: =SUM($F$7:F61) -> 1
A62: =INDEX(Schritt_4_1_kr_Maschinen!A:A,MATCH(E62,Schritt_4_1_kr_Maschinen!M:M,0)) -> 0 | B62: =INDEX(Schritt_4_1_kr_Maschinen!B:B,MATCH(E62,Schritt_4_1_kr_Maschinen!M:M,0)) -> 0 | C62: =INDEX(Schritt_4_1_kr_Maschinen!C:C,MATCH(E62,Schritt_4_1_kr_Maschinen!M:M,0)) -> 0 | D62: =INDEX(Schritt_4_1_kr_Maschinen!D:D,MATCH(E62,Schritt_4_1_kr_Maschinen!M:M,0)) -> 0 | E62: =IF(ISERROR((SMALL(Schritt_4_1_kr_Maschinen!$M$7:$M$106, ROWS($E$7:E62)))),"",(SMALL(Schritt_4_1_kr_Maschinen!$M$7:$M$106, ROWS($E$7:E62)))) ->  | F62: 0 | G62: =SUM($F$7:F62) -> 1
A63: =INDEX(Schritt_4_1_kr_Maschinen!A:A,MATCH(E63,Schritt_4_1_kr_Maschinen!M:M,0)) -> 0 | B63: =INDEX(Schritt_4_1_kr_Maschinen!B:B,MATCH(E63,Schritt_4_1_kr_Maschinen!M:M,0)) -> 0 | C63: =INDEX(Schritt_4_1_kr_Maschinen!C:C,MATCH(E63,Schritt_4_1_kr_Maschinen!M:M,0)) -> 0 | D63: =INDEX(Schritt_4_1_kr_Maschinen!D:D,MATCH(E63,Schritt_4_1_kr_Maschinen!M:M,0)) -> 0 | E63: =IF(ISERROR((SMALL(Schritt_4_1_kr_Maschinen!$M$7:$M$106, ROWS($E$7:E63)))),"",(SMALL(Schritt_4_1_kr_Maschinen!$M$7:$M$106, ROWS($E$7:E63)))) ->  | F63: 0 | G63: =SUM($F$7:F63) -> 1
A64: =INDEX(Schritt_4_1_kr_Maschinen!A:A,MATCH(E64,Schritt_4_1_kr_Maschinen!M:M,0)) -> 0 | B64: =INDEX(Schritt_4_1_kr_Maschinen!B:B,MATCH(E64,Schritt_4_1_kr_Maschinen!M:M,0)) -> 0 | C64: =INDEX(Schritt_4_1_kr_Maschinen!C:C,MATCH(E64,Schritt_4_1_kr_Maschinen!M:M,0)) -> 0 | D64: =INDEX(Schritt_4_1_kr_Maschinen!D:D,MATCH(E64,Schritt_4_1_kr_Maschinen!M:M,0)) -> 0 | E64: =IF(ISERROR((SMALL(Schritt_4_1_kr_Maschinen!$M$7:$M$106, ROWS($E$7:E64)))),"",(SMALL(Schritt_4_1_kr_Maschinen!$M$7:$M$106, ROWS($E$7:E64)))) ->  | F64: 0 | G64: =SUM($F$7:F64) -> 1
A65: =INDEX(Schritt_4_1_kr_Maschinen!A:A,MATCH(E65,Schritt_4_1_kr_Maschinen!M:M,0)) -> 0 | B65: =INDEX(Schritt_4_1_kr_Maschinen!B:B,MATCH(E65,Schritt_4_1_kr_Maschinen!M:M,0)) -> 0 | C65: =INDEX(Schritt_4_1_kr_Maschinen!C:C,MATCH(E65,Schritt_4_1_kr_Maschinen!M:M,0)) -> 0 | D65: =INDEX(Schritt_4_1_kr_Maschinen!D:D,MATCH(E65,Schritt_4_1_kr_Maschinen!M:M,0)) -> 0 | E65: =IF(ISERROR((SMALL(Schritt_4_1_kr_Maschinen!$M$7:$M$106, ROWS($E$7:E65)))),"",(SMALL(Schritt_4_1_kr_Maschinen!$M$7:$M$106, ROWS($E$7:E65)))) ->  | F65: 0 | G65: =SUM($F$7:F65) -> 1
A66: =INDEX(Schritt_4_1_kr_Maschinen!A:A,MATCH(E66,Schritt_4_1_kr_Maschinen!M:M,0)) -> 0 | B66: =INDEX(Schritt_4_1_kr_Maschinen!B:B,MATCH(E66,Schritt_4_1_kr_Maschinen!M:M,0)) -> 0 | C66: =INDEX(Schritt_4_1_kr_Maschinen!C:C,MATCH(E66,Schritt_4_1_kr_Maschinen!M:M,0)) -> 0 | D66: =INDEX(Schritt_4_1_kr_Maschinen!D:D,MATCH(E66,Schritt_4_1_kr_Maschinen!M:M,0)) -> 0 | E66: =IF(ISERROR((SMALL(Schritt_4_1_kr_Maschinen!$M$7:$M$106, ROWS($E$7:E66)))),"",(SMALL(Schritt_4_1_kr_Maschinen!$M$7:$M$106, ROWS($E$7:E66)))) ->  | F66: 0 | G66: =SUM($F$7:F66) -> 1
A67: =INDEX(Schritt_4_1_kr_Maschinen!A:A,MATCH(E67,Schritt_4_1_kr_Maschinen!M:M,0)) -> 0 | B67: =INDEX(Schritt_4_1_kr_Maschinen!B:B,MATCH(E67,Schritt_4_1_kr_Maschinen!M:M,0)) -> 0 | C67: =INDEX(Schritt_4_1_kr_Maschinen!C:C,MATCH(E67,Schritt_4_1_kr_Maschinen!M:M,0)) -> 0 | D67: =INDEX(Schritt_4_1_kr_Maschinen!D:D,MATCH(E67,Schritt_4_1_kr_Maschinen!M:M,0)) -> 0 | E67: =IF(ISERROR((SMALL(Schritt_4_1_kr_Maschinen!$M$7:$M$106, ROWS($E$7:E67)))),"",(SMALL(Schritt_4_1_kr_Maschinen!$M$7:$M$106, ROWS($E$7:E67)))) ->  | F67: 0 | G67: =SUM($F$7:F67) -> 1
A68: =INDEX(Schritt_4_1_kr_Maschinen!A:A,MATCH(E68,Schritt_4_1_kr_Maschinen!M:M,0)) -> 0 | B68: =INDEX(Schritt_4_1_kr_Maschinen!B:B,MATCH(E68,Schritt_4_1_kr_Maschinen!M:M,0)) -> 0 | C68: =INDEX(Schritt_4_1_kr_Maschinen!C:C,MATCH(E68,Schritt_4_1_kr_Maschinen!M:M,0)) -> 0 | D68: =INDEX(Schritt_4_1_kr_Maschinen!D:D,MATCH(E68,Schritt_4_1_kr_Maschinen!M:M,0)) -> 0 | E68: =IF(ISERROR((SMALL(Schritt_4_1_kr_Maschinen!$M$7:$M$106, ROWS($E$7:E68)))),"",(SMALL(Schritt_4_1_kr_Maschinen!$M$7:$M$106, ROWS($E$7:E68)))) ->  | F68: 0 | G68: =SUM($F$7:F68) -> 1
A69: =INDEX(Schritt_4_1_kr_Maschinen!A:A,MATCH(E69,Schritt_4_1_kr_Maschinen!M:M,0)) -> 0 | B69: =INDEX(Schritt_4_1_kr_Maschinen!B:B,MATCH(E69,Schritt_4_1_kr_Maschinen!M:M,0)) -> 0 | C69: =INDEX(Schritt_4_1_kr_Maschinen!C:C,MATCH(E69,Schritt_4_1_kr_Maschinen!M:M,0)) -> 0 | D69: =INDEX(Schritt_4_1_kr_Maschinen!D:D,MATCH(E69,Schritt_4_1_kr_Maschinen!M:M,0)) -> 0 | E69: =IF(ISERROR((SMALL(Schritt_4_1_kr_Maschinen!$M$7:$M$106, ROWS($E$7:E69)))),"",(SMALL(Schritt_4_1_kr_Maschinen!$M$7:$M$106, ROWS($E$7:E69)))) ->  | F69: 0 | G69: =SUM($F$7:F69) -> 1
A70: =INDEX(Schritt_4_1_kr_Maschinen!A:A,MATCH(E70,Schritt_4_1_kr_Maschinen!M:M,0)) -> 0 | B70: =INDEX(Schritt_4_1_kr_Maschinen!B:B,MATCH(E70,Schritt_4_1_kr_Maschinen!M:M,0)) -> 0 | C70: =INDEX(Schritt_4_1_kr_Maschinen!C:C,MATCH(E70,Schritt_4_1_kr_Maschinen!M:M,0)) -> 0 | D70: =INDEX(Schritt_4_1_kr_Maschinen!D:D,MATCH(E70,Schritt_4_1_kr_Maschinen!M:M,0)) -> 0 | E70: =IF(ISERROR((SMALL(Schritt_4_1_kr_Maschinen!$M$7:$M$106, ROWS($E$7:E70)))),"",(SMALL(Schritt_4_1_kr_Maschinen!$M$7:$M$106, ROWS($E$7:E70)))) ->  | F70: 0 | G70: =SUM($F$7:F70) -> 1
A71: =INDEX(Schritt_4_1_kr_Maschinen!A:A,MATCH(E71,Schritt_4_1_kr_Maschinen!M:M,0)) -> 0 | B71: =INDEX(Schritt_4_1_kr_Maschinen!B:B,MATCH(E71,Schritt_4_1_kr_Maschinen!M:M,0)) -> 0 | C71: =INDEX(Schritt_4_1_kr_Maschinen!C:C,MATCH(E71,Schritt_4_1_kr_Maschinen!M:M,0)) -> 0 | D71: =INDEX(Schritt_4_1_kr_Maschinen!D:D,MATCH(E71,Schritt_4_1_kr_Maschinen!M:M,0)) -> 0 | E71: =IF(ISERROR((SMALL(Schritt_4_1_kr_Maschinen!$M$7:$M$106, ROWS($E$7:E71)))),"",(SMALL(Schritt_4_1_kr_Maschinen!$M$7:$M$106, ROWS($E$7:E71)))) ->  | F71: 0 | G71: =SUM($F$7:F71) -> 1
A72: =INDEX(Schritt_4_1_kr_Maschinen!A:A,MATCH(E72,Schritt_4_1_kr_Maschinen!M:M,0)) -> 0 | B72: =INDEX(Schritt_4_1_kr_Maschinen!B:B,MATCH(E72,Schritt_4_1_kr_Maschinen!M:M,0)) -> 0 | C72: =INDEX(Schritt_4_1_kr_Maschinen!C:C,MATCH(E72,Schritt_4_1_kr_Maschinen!M:M,0)) -> 0 | D72: =INDEX(Schritt_4_1_kr_Maschinen!D:D,MATCH(E72,Schritt_4_1_kr_Maschinen!M:M,0)) -> 0 | E72: =IF(ISERROR((SMALL(Schritt_4_1_kr_Maschinen!$M$7:$M$106, ROWS($E$7:E72)))),"",(SMALL(Schritt_4_1_kr_Maschinen!$M$7:$M$106, ROWS($E$7:E72)))) ->  | F72: =IF(ISERROR((SUM(E72)/SUM($E$7:$E$106))),"",SUM(E72)/SUM($E$7:$E$106)) -> 0 | G72: =SUM($F$7:F72) -> 1
A73: =INDEX(Schritt_4_1_kr_Maschinen!A:A,MATCH(E73,Schritt_4_1_kr_Maschinen!M:M,0)) -> 0 | B73: =INDEX(Schritt_4_1_kr_Maschinen!B:B,MATCH(E73,Schritt_4_1_kr_Maschinen!M:M,0)) -> 0 | C73: =INDEX(Schritt_4_1_kr_Maschinen!C:C,MATCH(E73,Schritt_4_1_kr_Maschinen!M:M,0)) -> 0 | D73: =INDEX(Schritt_4_1_kr_Maschinen!D:D,MATCH(E73,Schritt_4_1_kr_Maschinen!M:M,0)) -> 0 | E73: =IF(ISERROR((SMALL(Schritt_4_1_kr_Maschinen!$M$7:$M$106, ROWS($E$7:E73)))),"",(SMALL(Schritt_4_1_kr_Maschinen!$M$7:$M$106, ROWS($E$7:E73)))) ->  | F73: 0 | G73: =SUM($F$7:F73) -> 1
A74: =INDEX(Schritt_4_1_kr_Maschinen!A:A,MATCH(E74,Schritt_4_1_kr_Maschinen!M:M,0)) -> 0 | B74: =INDEX(Schritt_4_1_kr_Maschinen!B:B,MATCH(E74,Schritt_4_1_kr_Maschinen!M:M,0)) -> 0 | C74: =INDEX(Schritt_4_1_kr_Maschinen!C:C,MATCH(E74,Schritt_4_1_kr_Maschinen!M:M,0)) -> 0 | D74: =INDEX(Schritt_4_1_kr_Maschinen!D:D,MATCH(E74,Schritt_4_1_kr_Maschinen!M:M,0)) -> 0 | E74: =IF(ISERROR((SMALL(Schritt_4_1_kr_Maschinen!$M$7:$M$106, ROWS($E$7:E74)))),"",(SMALL(Schritt_4_1_kr_Maschinen!$M$7:$M$106, ROWS($E$7:E74)))) ->  | F74: 0 | G74: =SUM($F$7:F74) -> 1
A75: =INDEX(Schritt_4_1_kr_Maschinen!A:A,MATCH(E75,Schritt_4_1_kr_Maschinen!M:M,0)) -> 0 | B75: =INDEX(Schritt_4_1_kr_Maschinen!B:B,MATCH(E75,Schritt_4_1_kr_Maschinen!M:M,0)) -> 0 | C75: =INDEX(Schritt_4_1_kr_Maschinen!C:C,MATCH(E75,Schritt_4_1_kr_Maschinen!M:M,0)) -> 0 | D75: =INDEX(Schritt_4_1_kr_Maschinen!D:D,MATCH(E75,Schritt_4_1_kr_Maschinen!M:M,0)) -> 0 | E75: =IF(ISERROR((SMALL(Schritt_4_1_kr_Maschinen!$M$7:$M$106, ROWS($E$7:E75)))),"",(SMALL(Schritt_4_1_kr_Maschinen!$M$7:$M$106, ROWS($E$7:E75)))) ->  | F75: 0 | G75: =SUM($F$7:F75) -> 1
A76: =INDEX(Schritt_4_1_kr_Maschinen!A:A,MATCH(E76,Schritt_4_1_kr_Maschinen!M:M,0)) -> 0 | B76: =INDEX(Schritt_4_1_kr_Maschinen!B:B,MATCH(E76,Schritt_4_1_kr_Maschinen!M:M,0)) -> 0 | C76: =INDEX(Schritt_4_1_kr_Maschinen!C:C,MATCH(E76,Schritt_4_1_kr_Maschinen!M:M,0)) -> 0 | D76: =INDEX(Schritt_4_1_kr_Maschinen!D:D,MATCH(E76,Schritt_4_1_kr_Maschinen!M:M,0)) -> 0 | E76: =IF(ISERROR((SMALL(Schritt_4_1_kr_Maschinen!$M$7:$M$106, ROWS($E$7:E76)))),"",(SMALL(Schritt_4_1_kr_Maschinen!$M$7:$M$106, ROWS($E$7:E76)))) ->  | F76: 0 | G76: =SUM($F$7:F76) -> 1
A77: =INDEX(Schritt_4_1_kr_Maschinen!A:A,MATCH(E77,Schritt_4_1_kr_Maschinen!M:M,0)) -> 0 | B77: =INDEX(Schritt_4_1_kr_Maschinen!B:B,MATCH(E77,Schritt_4_1_kr_Maschinen!M:M,0)) -> 0 | C77: =INDEX(Schritt_4_1_kr_Maschinen!C:C,MATCH(E77,Schritt_4_1_kr_Maschinen!M:M,0)) -> 0 | D77: =INDEX(Schritt_4_1_kr_Maschinen!D:D,MATCH(E77,Schritt_4_1_kr_Maschinen!M:M,0)) -> 0 | E77: =IF(ISERROR((SMALL(Schritt_4_1_kr_Maschinen!$M$7:$M$106, ROWS($E$7:E77)))),"",(SMALL(Schritt_4_1_kr_Maschinen!$M$7:$M$106, ROWS($E$7:E77)))) ->  | F77: 0 | G77: =SUM($F$7:F77) -> 1
A78: =INDEX(Schritt_4_1_kr_Maschinen!A:A,MATCH(E78,Schritt_4_1_kr_Maschinen!M:M,0)) -> 0 | B78: =INDEX(Schritt_4_1_kr_Maschinen!B:B,MATCH(E78,Schritt_4_1_kr_Maschinen!M:M,0)) -> 0 | C78: =INDEX(Schritt_4_1_kr_Maschinen!C:C,MATCH(E78,Schritt_4_1_kr_Maschinen!M:M,0)) -> 0 | D78: =INDEX(Schritt_4_1_kr_Maschinen!D:D,MATCH(E78,Schritt_4_1_kr_Maschinen!M:M,0)) -> 0 | E78: =IF(ISERROR((SMALL(Schritt_4_1_kr_Maschinen!$M$7:$M$106, ROWS($E$7:E78)))),"",(SMALL(Schritt_4_1_kr_Maschinen!$M$7:$M$106, ROWS($E$7:E78)))) ->  | F78: 0 | G78: =SUM($F$7:F78) -> 1
A79: =INDEX(Schritt_4_1_kr_Maschinen!A:A,MATCH(E79,Schritt_4_1_kr_Maschinen!M:M,0)) -> 0 | B79: =INDEX(Schritt_4_1_kr_Maschinen!B:B,MATCH(E79,Schritt_4_1_kr_Maschinen!M:M,0)) -> 0 | C79: =INDEX(Schritt_4_1_kr_Maschinen!C:C,MATCH(E79,Schritt_4_1_kr_Maschinen!M:M,0)) -> 0 | D79: =INDEX(Schritt_4_1_kr_Maschinen!D:D,MATCH(E79,Schritt_4_1_kr_Maschinen!M:M,0)) -> 0 | E79: =IF(ISERROR((SMALL(Schritt_4_1_kr_Maschinen!$M$7:$M$106, ROWS($E$7:E79)))),"",(SMALL(Schritt_4_1_kr_Maschinen!$M$7:$M$106, ROWS($E$7:E79)))) ->  | F79: 0 | G79: =SUM($F$7:F79) -> 1
A80: =INDEX(Schritt_4_1_kr_Maschinen!A:A,MATCH(E80,Schritt_4_1_kr_Maschinen!M:M,0)) -> 0 | B80: =INDEX(Schritt_4_1_kr_Maschinen!B:B,MATCH(E80,Schritt_4_1_kr_Maschinen!M:M,0)) -> 0 | C80: =INDEX(Schritt_4_1_kr_Maschinen!C:C,MATCH(E80,Schritt_4_1_kr_Maschinen!M:M,0)) -> 0 | D80: =INDEX(Schritt_4_1_kr_Maschinen!D:D,MATCH(E80,Schritt_4_1_kr_Maschinen!M:M,0)) -> 0 | E80: =IF(ISERROR((SMALL(Schritt_4_1_kr_Maschinen!$M$7:$M$106, ROWS($E$7:E80)))),"",(SMALL(Schritt_4_1_kr_Maschinen!$M$7:$M$106, ROWS($E$7:E80)))) ->  | F80: 0 | G80: =SUM($F$7:F80) -> 1
A81: =INDEX(Schritt_4_1_kr_Maschinen!A:A,MATCH(E81,Schritt_4_1_kr_Maschinen!M:M,0)) -> 0 | B81: =INDEX(Schritt_4_1_kr_Maschinen!B:B,MATCH(E81,Schritt_4_1_kr_Maschinen!M:M,0)) -> 0 | C81: =INDEX(Schritt_4_1_kr_Maschinen!C:C,MATCH(E81,Schritt_4_1_kr_Maschinen!M:M,0)) -> 0 | D81: =INDEX(Schritt_4_1_kr_Maschinen!D:D,MATCH(E81,Schritt_4_1_kr_Maschinen!M:M,0)) -> 0 | E81: =IF(ISERROR((SMALL(Schritt_4_1_kr_Maschinen!$M$7:$M$106, ROWS($E$7:E81)))),"",(SMALL(Schritt_4_1_kr_Maschinen!$M$7:$M$106, ROWS($E$7:E81)))) ->  | F81: 0 | G81: =SUM($F$7:F81) -> 1
A82: =INDEX(Schritt_4_1_kr_Maschinen!A:A,MATCH(E82,Schritt_4_1_kr_Maschinen!M:M,0)) -> 0 | B82: =INDEX(Schritt_4_1_kr_Maschinen!B:B,MATCH(E82,Schritt_4_1_kr_Maschinen!M:M,0)) -> 0 | C82: =INDEX(Schritt_4_1_kr_Maschinen!C:C,MATCH(E82,Schritt_4_1_kr_Maschinen!M:M,0)) -> 0 | D82: =INDEX(Schritt_4_1_kr_Maschinen!D:D,MATCH(E82,Schritt_4_1_kr_Maschinen!M:M,0)) -> 0 | E82: =IF(ISERROR((SMALL(Schritt_4_1_kr_Maschinen!$M$7:$M$106, ROWS($E$7:E82)))),"",(SMALL(Schritt_4_1_kr_Maschinen!$M$7:$M$106, ROWS($E$7:E82)))) ->  | F82: 0 | G82: =SUM($F$7:F82) -> 1
A83: =INDEX(Schritt_4_1_kr_Maschinen!A:A,MATCH(E83,Schritt_4_1_kr_Maschinen!M:M,0)) -> 0 | B83: =INDEX(Schritt_4_1_kr_Maschinen!B:B,MATCH(E83,Schritt_4_1_kr_Maschinen!M:M,0)) -> 0 | C83: =INDEX(Schritt_4_1_kr_Maschinen!C:C,MATCH(E83,Schritt_4_1_kr_Maschinen!M:M,0)) -> 0 | D83: =INDEX(Schritt_4_1_kr_Maschinen!D:D,MATCH(E83,Schritt_4_1_kr_Maschinen!M:M,0)) -> 0 | E83: =IF(ISERROR((SMALL(Schritt_4_1_kr_Maschinen!$M$7:$M$106, ROWS($E$7:E83)))),"",(SMALL(Schritt_4_1_kr_Maschinen!$M$7:$M$106, ROWS($E$7:E83)))) ->  | F83: 0 | G83: =SUM($F$7:F83) -> 1
A84: =INDEX(Schritt_4_1_kr_Maschinen!A:A,MATCH(E84,Schritt_4_1_kr_Maschinen!M:M,0)) -> 0 | B84: =INDEX(Schritt_4_1_kr_Maschinen!B:B,MATCH(E84,Schritt_4_1_kr_Maschinen!M:M,0)) -> 0 | C84: =INDEX(Schritt_4_1_kr_Maschinen!C:C,MATCH(E84,Schritt_4_1_kr_Maschinen!M:M,0)) -> 0 | D84: =INDEX(Schritt_4_1_kr_Maschinen!D:D,MATCH(E84,Schritt_4_1_kr_Maschinen!M:M,0)) -> 0 | E84: =IF(ISERROR((SMALL(Schritt_4_1_kr_Maschinen!$M$7:$M$106, ROWS($E$7:E84)))),"",(SMALL(Schritt_4_1_kr_Maschinen!$M$7:$M$106, ROWS($E$7:E84)))) ->  | F84: 0 | G84: =SUM($F$7:F84) -> 1
A85: =INDEX(Schritt_4_1_kr_Maschinen!A:A,MATCH(E85,Schritt_4_1_kr_Maschinen!M:M,0)) -> 0 | B85: =INDEX(Schritt_4_1_kr_Maschinen!B:B,MATCH(E85,Schritt_4_1_kr_Maschinen!M:M,0)) -> 0 | C85: =INDEX(Schritt_4_1_kr_Maschinen!C:C,MATCH(E85,Schritt_4_1_kr_Maschinen!M:M,0)) -> 0 | D85: =INDEX(Schritt_4_1_kr_Maschinen!D:D,MATCH(E85,Schritt_4_1_kr_Maschinen!M:M,0)) -> 0 | E85: =IF(ISERROR((SMALL(Schritt_4_1_kr_Maschinen!$M$7:$M$106, ROWS($E$7:E85)))),"",(SMALL(Schritt_4_1_kr_Maschinen!$M$7:$M$106, ROWS($E$7:E85)))) ->  | F85: 0 | G85: =SUM($F$7:F85) -> 1
A86: =INDEX(Schritt_4_1_kr_Maschinen!A:A,MATCH(E86,Schritt_4_1_kr_Maschinen!M:M,0)) -> 0 | B86: =INDEX(Schritt_4_1_kr_Maschinen!B:B,MATCH(E86,Schritt_4_1_kr_Maschinen!M:M,0)) -> 0 | C86: =INDEX(Schritt_4_1_kr_Maschinen!C:C,MATCH(E86,Schritt_4_1_kr_Maschinen!M:M,0)) -> 0 | D86: =INDEX(Schritt_4_1_kr_Maschinen!D:D,MATCH(E86,Schritt_4_1_kr_Maschinen!M:M,0)) -> 0 | E86: =IF(ISERROR((SMALL(Schritt_4_1_kr_Maschinen!$M$7:$M$106, ROWS($E$7:E86)))),"",(SMALL(Schritt_4_1_kr_Maschinen!$M$7:$M$106, ROWS($E$7:E86)))) ->  | F86: 0 | G86: =SUM($F$7:F86) -> 1
A87: =INDEX(Schritt_4_1_kr_Maschinen!A:A,MATCH(E87,Schritt_4_1_kr_Maschinen!M:M,0)) -> 0 | B87: =INDEX(Schritt_4_1_kr_Maschinen!B:B,MATCH(E87,Schritt_4_1_kr_Maschinen!M:M,0)) -> 0 | C87: =INDEX(Schritt_4_1_kr_Maschinen!C:C,MATCH(E87,Schritt_4_1_kr_Maschinen!M:M,0)) -> 0 | D87: =INDEX(Schritt_4_1_kr_Maschinen!D:D,MATCH(E87,Schritt_4_1_kr_Maschinen!M:M,0)) -> 0 | E87: =IF(ISERROR((SMALL(Schritt_4_1_kr_Maschinen!$M$7:$M$106, ROWS($E$7:E87)))),"",(SMALL(Schritt_4_1_kr_Maschinen!$M$7:$M$106, ROWS($E$7:E87)))) ->  | F87: 0 | G87: =SUM($F$7:F87) -> 1
A88: =INDEX(Schritt_4_1_kr_Maschinen!A:A,MATCH(E88,Schritt_4_1_kr_Maschinen!M:M,0)) -> 0 | B88: =INDEX(Schritt_4_1_kr_Maschinen!B:B,MATCH(E88,Schritt_4_1_kr_Maschinen!M:M,0)) -> 0 | C88: =INDEX(Schritt_4_1_kr_Maschinen!C:C,MATCH(E88,Schritt_4_1_kr_Maschinen!M:M,0)) -> 0 | D88: =INDEX(Schritt_4_1_kr_Maschinen!D:D,MATCH(E88,Schritt_4_1_kr_Maschinen!M:M,0)) -> 0 | E88: =IF(ISERROR((SMALL(Schritt_4_1_kr_Maschinen!$M$7:$M$106, ROWS($E$7:E88)))),"",(SMALL(Schritt_4_1_kr_Maschinen!$M$7:$M$106, ROWS($E$7:E88)))) ->  | F88: 0 | G88: =SUM($F$7:F88) -> 1
A89: =INDEX(Schritt_4_1_kr_Maschinen!A:A,MATCH(E89,Schritt_4_1_kr_Maschinen!M:M,0)) -> 0 | B89: =INDEX(Schritt_4_1_kr_Maschinen!B:B,MATCH(E89,Schritt_4_1_kr_Maschinen!M:M,0)) -> 0 | C89: =INDEX(Schritt_4_1_kr_Maschinen!C:C,MATCH(E89,Schritt_4_1_kr_Maschinen!M:M,0)) -> 0 | D89: =INDEX(Schritt_4_1_kr_Maschinen!D:D,MATCH(E89,Schritt_4_1_kr_Maschinen!M:M,0)) -> 0 | E89: =IF(ISERROR((SMALL(Schritt_4_1_kr_Maschinen!$M$7:$M$106, ROWS($E$7:E89)))),"",(SMALL(Schritt_4_1_kr_Maschinen!$M$7:$M$106, ROWS($E$7:E89)))) ->  | F89: 0 | G89: =SUM($F$7:F89) -> 1
A90: =INDEX(Schritt_4_1_kr_Maschinen!A:A,MATCH(E90,Schritt_4_1_kr_Maschinen!M:M,0)) -> 0 | B90: =INDEX(Schritt_4_1_kr_Maschinen!B:B,MATCH(E90,Schritt_4_1_kr_Maschinen!M:M,0)) -> 0 | C90: =INDEX(Schritt_4_1_kr_Maschinen!C:C,MATCH(E90,Schritt_4_1_kr_Maschinen!M:M,0)) -> 0 | D90: =INDEX(Schritt_4_1_kr_Maschinen!D:D,MATCH(E90,Schritt_4_1_kr_Maschinen!M:M,0)) -> 0 | E90: =IF(ISERROR((SMALL(Schritt_4_1_kr_Maschinen!$M$7:$M$106, ROWS($E$7:E90)))),"",(SMALL(Schritt_4_1_kr_Maschinen!$M$7:$M$106, ROWS($E$7:E90)))) ->  | F90: 0 | G90: =SUM($F$7:F90) -> 1
A91: =INDEX(Schritt_4_1_kr_Maschinen!A:A,MATCH(E91,Schritt_4_1_kr_Maschinen!M:M,0)) -> 0 | B91: =INDEX(Schritt_4_1_kr_Maschinen!B:B,MATCH(E91,Schritt_4_1_kr_Maschinen!M:M,0)) -> 0 | C91: =INDEX(Schritt_4_1_kr_Maschinen!C:C,MATCH(E91,Schritt_4_1_kr_Maschinen!M:M,0)) -> 0 | D91: =INDEX(Schritt_4_1_kr_Maschinen!D:D,MATCH(E91,Schritt_4_1_kr_Maschinen!M:M,0)) -> 0 | E91: =IF(ISERROR((SMALL(Schritt_4_1_kr_Maschinen!$M$7:$M$106, ROWS($E$7:E91)))),"",(SMALL(Schritt_4_1_kr_Maschinen!$M$7:$M$106, ROWS($E$7:E91)))) ->  | F91: 0 | G91: =SUM($F$7:F91) -> 1
A92: =INDEX(Schritt_4_1_kr_Maschinen!A:A,MATCH(E92,Schritt_4_1_kr_Maschinen!M:M,0)) -> 0 | B92: =INDEX(Schritt_4_1_kr_Maschinen!B:B,MATCH(E92,Schritt_4_1_kr_Maschinen!M:M,0)) -> 0 | C92: =INDEX(Schritt_4_1_kr_Maschinen!C:C,MATCH(E92,Schritt_4_1_kr_Maschinen!M:M,0)) -> 0 | D92: =INDEX(Schritt_4_1_kr_Maschinen!D:D,MATCH(E92,Schritt_4_1_kr_Maschinen!M:M,0)) -> 0 | E92: =IF(ISERROR((SMALL(Schritt_4_1_kr_Maschinen!$M$7:$M$106, ROWS($E$7:E92)))),"",(SMALL(Schritt_4_1_kr_Maschinen!$M$7:$M$106, ROWS($E$7:E92)))) ->  | F92: 0 | G92: =SUM($F$7:F92) -> 1
A93: =INDEX(Schritt_4_1_kr_Maschinen!A:A,MATCH(E93,Schritt_4_1_kr_Maschinen!M:M,0)) -> 0 | B93: =INDEX(Schritt_4_1_kr_Maschinen!B:B,MATCH(E93,Schritt_4_1_kr_Maschinen!M:M,0)) -> 0 | C93: =INDEX(Schritt_4_1_kr_Maschinen!C:C,MATCH(E93,Schritt_4_1_kr_Maschinen!M:M,0)) -> 0 | D93: =INDEX(Schritt_4_1_kr_Maschinen!D:D,MATCH(E93,Schritt_4_1_kr_Maschinen!M:M,0)) -> 0 | E93: =IF(ISERROR((SMALL(Schritt_4_1_kr_Maschinen!$M$7:$M$106, ROWS($E$7:E93)))),"",(SMALL(Schritt_4_1_kr_Maschinen!$M$7:$M$106, ROWS($E$7:E93)))) ->  | F93: 0 | G93: =SUM($F$7:F93) -> 1
A94: =INDEX(Schritt_4_1_kr_Maschinen!A:A,MATCH(E94,Schritt_4_1_kr_Maschinen!M:M,0)) -> 0 | B94: =INDEX(Schritt_4_1_kr_Maschinen!B:B,MATCH(E94,Schritt_4_1_kr_Maschinen!M:M,0)) -> 0 | C94: =INDEX(Schritt_4_1_kr_Maschinen!C:C,MATCH(E94,Schritt_4_1_kr_Maschinen!M:M,0)) -> 0 | D94: =INDEX(Schritt_4_1_kr_Maschinen!D:D,MATCH(E94,Schritt_4_1_kr_Maschinen!M:M,0)) -> 0 | E94: =IF(ISERROR((SMALL(Schritt_4_1_kr_Maschinen!$M$7:$M$106, ROWS($E$7:E94)))),"",(SMALL(Schritt_4_1_kr_Maschinen!$M$7:$M$106, ROWS($E$7:E94)))) ->  | F94: 0 | G94: =SUM($F$7:F94) -> 1
A95: =INDEX(Schritt_4_1_kr_Maschinen!A:A,MATCH(E95,Schritt_4_1_kr_Maschinen!M:M,0)) -> 0 | B95: =INDEX(Schritt_4_1_kr_Maschinen!B:B,MATCH(E95,Schritt_4_1_kr_Maschinen!M:M,0)) -> 0 | C95: =INDEX(Schritt_4_1_kr_Maschinen!C:C,MATCH(E95,Schritt_4_1_kr_Maschinen!M:M,0)) -> 0 | D95: =INDEX(Schritt_4_1_kr_Maschinen!D:D,MATCH(E95,Schritt_4_1_kr_Maschinen!M:M,0)) -> 0 | E95: =IF(ISERROR((SMALL(Schritt_4_1_kr_Maschinen!$M$7:$M$106, ROWS($E$7:E95)))),"",(SMALL(Schritt_4_1_kr_Maschinen!$M$7:$M$106, ROWS($E$7:E95)))) ->  | F95: 0 | G95: =SUM($F$7:F95) -> 1
A96: =INDEX(Schritt_4_1_kr_Maschinen!A:A,MATCH(E96,Schritt_4_1_kr_Maschinen!M:M,0)) -> 0 | B96: =INDEX(Schritt_4_1_kr_Maschinen!B:B,MATCH(E96,Schritt_4_1_kr_Maschinen!M:M,0)) -> 0 | C96: =INDEX(Schritt_4_1_kr_Maschinen!C:C,MATCH(E96,Schritt_4_1_kr_Maschinen!M:M,0)) -> 0 | D96: =INDEX(Schritt_4_1_kr_Maschinen!D:D,MATCH(E96,Schritt_4_1_kr_Maschinen!M:M,0)) -> 0 | E96: =IF(ISERROR((SMALL(Schritt_4_1_kr_Maschinen!$M$7:$M$106, ROWS($E$7:E96)))),"",(SMALL(Schritt_4_1_kr_Maschinen!$M$7:$M$106, ROWS($E$7:E96)))) ->  | F96: 0 | G96: =SUM($F$7:F96) -> 1
A97: =INDEX(Schritt_4_1_kr_Maschinen!A:A,MATCH(E97,Schritt_4_1_kr_Maschinen!M:M,0)) -> 0 | B97: =INDEX(Schritt_4_1_kr_Maschinen!B:B,MATCH(E97,Schritt_4_1_kr_Maschinen!M:M,0)) -> 0 | C97: =INDEX(Schritt_4_1_kr_Maschinen!C:C,MATCH(E97,Schritt_4_1_kr_Maschinen!M:M,0)) -> 0 | D97: =INDEX(Schritt_4_1_kr_Maschinen!D:D,MATCH(E97,Schritt_4_1_kr_Maschinen!M:M,0)) -> 0 | E97: =IF(ISERROR((SMALL(Schritt_4_1_kr_Maschinen!$M$7:$M$106, ROWS($E$7:E97)))),"",(SMALL(Schritt_4_1_kr_Maschinen!$M$7:$M$106, ROWS($E$7:E97)))) ->  | F97: 0 | G97: =SUM($F$7:F97) -> 1
A98: =INDEX(Schritt_4_1_kr_Maschinen!A:A,MATCH(E98,Schritt_4_1_kr_Maschinen!M:M,0)) -> 0 | B98: =INDEX(Schritt_4_1_kr_Maschinen!B:B,MATCH(E98,Schritt_4_1_kr_Maschinen!M:M,0)) -> 0 | C98: =INDEX(Schritt_4_1_kr_Maschinen!C:C,MATCH(E98,Schritt_4_1_kr_Maschinen!M:M,0)) -> 0 | D98: =INDEX(Schritt_4_1_kr_Maschinen!D:D,MATCH(E98,Schritt_4_1_kr_Maschinen!M:M,0)) -> 0 | E98: =IF(ISERROR((SMALL(Schritt_4_1_kr_Maschinen!$M$7:$M$106, ROWS($E$7:E98)))),"",(SMALL(Schritt_4_1_kr_Maschinen!$M$7:$M$106, ROWS($E$7:E98)))) ->  | F98: 0 | G98: =SUM($F$7:F98) -> 1
A99: =INDEX(Schritt_4_1_kr_Maschinen!A:A,MATCH(E99,Schritt_4_1_kr_Maschinen!M:M,0)) -> 0 | B99: =INDEX(Schritt_4_1_kr_Maschinen!B:B,MATCH(E99,Schritt_4_1_kr_Maschinen!M:M,0)) -> 0 | C99: =INDEX(Schritt_4_1_kr_Maschinen!C:C,MATCH(E99,Schritt_4_1_kr_Maschinen!M:M,0)) -> 0 | D99: =INDEX(Schritt_4_1_kr_Maschinen!D:D,MATCH(E99,Schritt_4_1_kr_Maschinen!M:M,0)) -> 0 | E99: =IF(ISERROR((SMALL(Schritt_4_1_kr_Maschinen!$M$7:$M$106, ROWS($E$7:E99)))),"",(SMALL(Schritt_4_1_kr_Maschinen!$M$7:$M$106, ROWS($E$7:E99)))) ->  | F99: 0 | G99: =SUM($F$7:F99) -> 1
A100: =INDEX(Schritt_4_1_kr_Maschinen!A:A,MATCH(E100,Schritt_4_1_kr_Maschinen!M:M,0)) -> 0 | B100: =INDEX(Schritt_4_1_kr_Maschinen!B:B,MATCH(E100,Schritt_4_1_kr_Maschinen!M:M,0)) -> 0 | C100: =INDEX(Schritt_4_1_kr_Maschinen!C:C,MATCH(E100,Schritt_4_1_kr_Maschinen!M:M,0)) -> 0 | D100: =INDEX(Schritt_4_1_kr_Maschinen!D:D,MATCH(E100,Schritt_4_1_kr_Maschinen!M:M,0)) -> 0 | E100: =IF(ISERROR((SMALL(Schritt_4_1_kr_Maschinen!$M$7:$M$106, ROWS($E$7:E100)))),"",(SMALL(Schritt_4_1_kr_Maschinen!$M$7:$M$106, ROWS($E$7:E100)))) ->  | F100: 0 | G100: =SUM($F$7:F100) -> 1
A101: =INDEX(Schritt_4_1_kr_Maschinen!A:A,MATCH(E101,Schritt_4_1_kr_Maschinen!M:M,0)) -> 0 | B101: =INDEX(Schritt_4_1_kr_Maschinen!B:B,MATCH(E101,Schritt_4_1_kr_Maschinen!M:M,0)) -> 0 | C101: =INDEX(Schritt_4_1_kr_Maschinen!C:C,MATCH(E101,Schritt_4_1_kr_Maschinen!M:M,0)) -> 0 | D101: =INDEX(Schritt_4_1_kr_Maschinen!D:D,MATCH(E101,Schritt_4_1_kr_Maschinen!M:M,0)) -> 0 | E101: =IF(ISERROR((SMALL(Schritt_4_1_kr_Maschinen!$M$7:$M$106, ROWS($E$7:E101)))),"",(SMALL(Schritt_4_1_kr_Maschinen!$M$7:$M$106, ROWS($E$7:E101)))) ->  | F101: 0 | G101: =SUM($F$7:F101) -> 1
A102: =INDEX(Schritt_4_1_kr_Maschinen!A:A,MATCH(E102,Schritt_4_1_kr_Maschinen!M:M,0)) -> 0 | B102: =INDEX(Schritt_4_1_kr_Maschinen!B:B,MATCH(E102,Schritt_4_1_kr_Maschinen!M:M,0)) -> 0 | C102: =INDEX(Schritt_4_1_kr_Maschinen!C:C,MATCH(E102,Schritt_4_1_kr_Maschinen!M:M,0)) -> 0 | D102: =INDEX(Schritt_4_1_kr_Maschinen!D:D,MATCH(E102,Schritt_4_1_kr_Maschinen!M:M,0)) -> 0 | E102: =IF(ISERROR((SMALL(Schritt_4_1_kr_Maschinen!$M$7:$M$106, ROWS($E$7:E102)))),"",(SMALL(Schritt_4_1_kr_Maschinen!$M$7:$M$106, ROWS($E$7:E102)))) ->  | F102: 0 | G102: =SUM($F$7:F102) -> 1
A103: =INDEX(Schritt_4_1_kr_Maschinen!A:A,MATCH(E103,Schritt_4_1_kr_Maschinen!M:M,0)) -> 0 | B103: =INDEX(Schritt_4_1_kr_Maschinen!B:B,MATCH(E103,Schritt_4_1_kr_Maschinen!M:M,0)) -> 0 | C103: =INDEX(Schritt_4_1_kr_Maschinen!C:C,MATCH(E103,Schritt_4_1_kr_Maschinen!M:M,0)) -> 0 | D103: =INDEX(Schritt_4_1_kr_Maschinen!D:D,MATCH(E103,Schritt_4_1_kr_Maschinen!M:M,0)) -> 0 | E103: =IF(ISERROR((SMALL(Schritt_4_1_kr_Maschinen!$M$7:$M$106, ROWS($E$7:E103)))),"",(SMALL(Schritt_4_1_kr_Maschinen!$M$7:$M$106, ROWS($E$7:E103)))) ->  | F103: 0 | G103: =SUM($F$7:F103) -> 1
A104: =INDEX(Schritt_4_1_kr_Maschinen!A:A,MATCH(E104,Schritt_4_1_kr_Maschinen!M:M,0)) -> 0 | B104: =INDEX(Schritt_4_1_kr_Maschinen!B:B,MATCH(E104,Schritt_4_1_kr_Maschinen!M:M,0)) -> 0 | C104: =INDEX(Schritt_4_1_kr_Maschinen!C:C,MATCH(E104,Schritt_4_1_kr_Maschinen!M:M,0)) -> 0 | D104: =INDEX(Schritt_4_1_kr_Maschinen!D:D,MATCH(E104,Schritt_4_1_kr_Maschinen!M:M,0)) -> 0 | E104: =IF(ISERROR((SMALL(Schritt_4_1_kr_Maschinen!$M$7:$M$106, ROWS($E$7:E104)))),"",(SMALL(Schritt_4_1_kr_Maschinen!$M$7:$M$106, ROWS($E$7:E104)))) ->  | F104: 0 | G104: =SUM($F$7:F104) -> 1
A105: =INDEX(Schritt_4_1_kr_Maschinen!A:A,MATCH(E105,Schritt_4_1_kr_Maschinen!M:M,0)) -> 0 | B105: =INDEX(Schritt_4_1_kr_Maschinen!B:B,MATCH(E105,Schritt_4_1_kr_Maschinen!M:M,0)) -> 0 | C105: =INDEX(Schritt_4_1_kr_Maschinen!C:C,MATCH(E105,Schritt_4_1_kr_Maschinen!M:M,0)) -> 0 | D105: =INDEX(Schritt_4_1_kr_Maschinen!D:D,MATCH(E105,Schritt_4_1_kr_Maschinen!M:M,0)) -> 0 | E105: =IF(ISERROR((SMALL(Schritt_4_1_kr_Maschinen!$M$7:$M$106, ROWS($E$7:E105)))),"",(SMALL(Schritt_4_1_kr_Maschinen!$M$7:$M$106, ROWS($E$7:E105)))) ->  | F105: 0 | G105: =SUM($F$7:F105) -> 1
A106: =INDEX(Schritt_4_1_kr_Maschinen!A:A,MATCH(E106,Schritt_4_1_kr_Maschinen!M:M,0)) -> 0 | B106: =INDEX(Schritt_4_1_kr_Maschinen!B:B,MATCH(E106,Schritt_4_1_kr_Maschinen!M:M,0)) -> 0 | C106: =INDEX(Schritt_4_1_kr_Maschinen!C:C,MATCH(E106,Schritt_4_1_kr_Maschinen!M:M,0)) -> 0 | D106: =INDEX(Schritt_4_1_kr_Maschinen!D:D,MATCH(E106,Schritt_4_1_kr_Maschinen!M:M,0)) -> 0 | E106: =IF(ISERROR((SMALL(Schritt_4_1_kr_Maschinen!$M$7:$M$106, ROWS($E$7:E106)))),"",(SMALL(Schritt_4_1_kr_Maschinen!$M$7:$M$106, ROWS($E$7:E106)))) ->  | F106: 0 | G106: =SUM($F$7:F106) -> 1

Sheet Schritt 4_2_KM_Detail
A1: Schritt 4.2 Detailierte Betrachtung der kritischen Maschinen
A2: Maschinen (Prozesse) die kritisch zu bewerten | E2: genauere Bewertung des Problems | L2: Verbesserungsmaßnahme
A3: Das sind Maschinen, die mehrfach vorkommende, ungeplante Störungen oder Ausfälle aufweisen; die keine volle Leistungsauslastung haben; die ungenügendes Ersatzteilmanagement haben.
A6: Seriennummer | B6: Maschinenname | C6: Baujahr | D6: Probleme | E6: Benennen Sie die Probleme genauer | F6: Anzahl ungeplanter Stopps (a) | G6: Durchschnittliche Dauer pro Stopp (b) in min | H6: Dauer der Stopps im Jahr gesamt in min | I6: Ursachen für die Stopps | J6: Gibt es für die Maschine/das Problem die Ersatzteile? | K6: Wie lange dauert die Ersatzteilversorgung? | L6: Datum der Überprüfung | M6: Vorgeschlagene Maßnahme | N6: Zweck der Maßnahme | O6: Geschätzte Kosten für die Maßnahme (d) in €
A7: 11 | B7: Schweißanlage | C7: 2008 | D7: ja | F7: 8 | G7: 30 | O7: 10000
A8: 12 | B8: Schweißanlage | C8: 2019 | D8: ja | F8: 10 | G8: 60
A9: 7 | B9: Kantbank | C9: 2004 | D9: ja | F9: 3 | G9: 15

Sheet Schritt 4_3_KM_Wirtschaft
A1: Schritt 4.3 Wirtschaftliche Betrachtung
A2: Maschinen (Prozesse) die kritisch zu bewerten | E2: Wie groß ist der Einfluss der Maschine auf den Umsatz | F2: Durchschnittlicher Umsatzverlust pro Stopp (c) in €/min | G2: Umsatzverlust gesamt (UV) in € | H2: Umsatzverlust gesamt pro Jahr (UVJ) in € /Jahr | I2: Ist das Umsatzverlust gesamt pro Jahr (UVJ) [€ /Jahr] einmallig oder wiederkehrend in jedem Jahr? | J2: Verbesserungsmaßnahme
A3: Das sind Maschinen, die mehrfach vorkommende, ungeplante Störungen oder Ausfälle aufweisen; die keine volle Leistungsauslastung haben; die ungenügendes Ersatzteilmanagement haben.
J5: Datum der Überprüfung | K5: Vorgeschlagene Maßnahme | L5: Zweck der Maßnahme | M5: Geschätzte Kosten für die Maßnahme (d) in € | N5: Amortisationszeit (AZ) in Jahre
A6: Seriennummer | B6: Maschinenname | C6: Baujahr | D6: Probleme
A7: 11 | B7: Schweißanlage | C7: 2008 | D7: ja | F7: 20 | G7: ='Schritt 4_2_KM_Detail'!F7*'Schritt 4_2_KM_Detail'!G7*'Schritt 4_3_KM_Wirtschaft'!F7 -> 4800 | H7: =G7 -> 4800 | J7: ='Schritt 4_2_KM_Detail'!L7 -> 0 | K7: ='Schritt 4_2_KM_Detail'!M7 -> 0 | L7: ='Schritt 4_2_KM_Detail'!N7 -> 0 | M7: ='Schritt 4_2_KM_Detail'!O7 -> 10000 | N7: =M7/H7 -> 2.083333333
A8: 12 | B8: Schweißanlage | C8: 2019 | D8: ja | F8: 30 | G8: ='Schritt 4_2_KM_Detail'!F8*'Schritt 4_2_KM_Detail'!G8*'Schritt 4_3_KM_Wirtschaft'!F8 -> 18000 | H8: =G8 -> 18000 | J8: ='Schritt 4_2_KM_Detail'!L8 -> 0 | K8: ='Schritt 4_2_KM_Detail'!M8 -> 0 | L8: ='Schritt 4_2_KM_Detail'!N8 -> 0 | M8: 1000 | N8: 0.05555555556
A9: 7 | B9: Kantbank | C9: 2004 | D9: ja | F9: 8 | G9: ='Schritt 4_2_KM_Detail'!F9*'Schritt 4_2_KM_Detail'!G9*'Schritt 4_3_KM_Wirtschaft'!F9 -> 360 | H9: 360 | J9: ='Schritt 4_2_KM_Detail'!L9 -> 0 | K9: ='Schritt 4_2_KM_Detail'!M9 -> 0 | L9: ='Schritt 4_2_KM_Detail'!N9 -> 0 | M9: 200 | N9: 0.5555555556
G10: ='Schritt 4_2_KM_Detail'!F10*'Schritt 4_2_KM_Detail'!G10*'Schritt 4_3_KM_Wirtschaft'!F10 -> 0 | H10: 0 | J10: ='Schritt 4_2_KM_Detail'!L10 -> 0 | K10: ='Schritt 4_2_KM_Detail'!M10 -> 0 | L10: ='Schritt 4_2_KM_Detail'!N10 -> 0 | M10: ='Schritt 4_2_KM_Detail'!O10 -> 0
G11: ='Schritt 4_2_KM_Detail'!F11*'Schritt 4_2_KM_Detail'!G11*'Schritt 4_3_KM_Wirtschaft'!F11 -> 0 | H11: 0 | J11: ='Schritt 4_2_KM_Detail'!L11 -> 0 | K11: ='Schritt 4_2_KM_Detail'!M11 -> 0 | L11: ='Schritt 4_2_KM_Detail'!N11 -> 0 | M11: ='Schritt 4_2_KM_Detail'!O11 -> 0
G12: ='Schritt 4_2_KM_Detail'!F12*'Schritt 4_2_KM_Detail'!G12*'Schritt 4_3_KM_Wirtschaft'!F12 -> 0 | H12: 0 | J12: ='Schritt 4_2_KM_Detail'!L12 -> 0 | K12: ='Schritt 4_2_KM_Detail'!M12 -> 0 | L12: ='Schritt 4_2_KM_Detail'!N12 -> 0 | M12: ='Schritt 4_2_KM_Detail'!O12 -> 0
G13: ='Schritt 4_2_KM_Detail'!F13*'Schritt 4_2_KM_Detail'!G13*'Schritt 4_3_KM_Wirtschaft'!F13 -> 0 | H13: 0 | J13: ='Schritt 4_2_KM_Detail'!L13 -> 0 | K13: ='Schritt 4_2_KM_Detail'!M13 -> 0 | L13: ='Schritt 4_2_KM_Detail'!N13 -> 0 | M13: ='Schritt 4_2_KM_Detail'!O13 -> 0
G14: ='Schritt 4_2_KM_Detail'!F14*'Schritt 4_2_KM_Detail'!G14*'Schritt 4_3_KM_Wirtschaft'!F14 -> 0 | H14: 0 | J14: ='Schritt 4_2_KM_Detail'!L14 -> 0 | K14: ='Schritt 4_2_KM_Detail'!M14 -> 0 | L14: ='Schritt 4_2_KM_Detail'!N14 -> 0 | M14: ='Schritt 4_2_KM_Detail'!O14 -> 0
G15: ='Schritt 4_2_KM_Detail'!F15*'Schritt 4_2_KM_Detail'!G15*'Schritt 4_3_KM_Wirtschaft'!F15 -> 0 | H15: 0 | J15: ='Schritt 4_2_KM_Detail'!L15 -> 0 | K15: ='Schritt 4_2_KM_Detail'!M15 -> 0 | L15: ='Schritt 4_2_KM_Detail'!N15 -> 0 | M15: ='Schritt 4_2_KM_Detail'!O15 -> 0
G16: ='Schritt 4_2_KM_Detail'!F16*'Schritt 4_2_KM_Detail'!G16*'Schritt 4_3_KM_Wirtschaft'!F16 -> 0 | H16: 0 | J16: ='Schritt 4_2_KM_Detail'!L16 -> 0 | K16: ='Schritt 4_2_KM_Detail'!M16 -> 0 | L16: ='Schritt 4_2_KM_Detail'!N16 -> 0 | M16: ='Schritt 4_2_KM_Detail'!O16 -> 0
G17: ='Schritt 4_2_KM_Detail'!F17*'Schritt 4_2_KM_Detail'!G17*'Schritt 4_3_KM_Wirtschaft'!F17 -> 0 | H17: 0 | J17: ='Schritt 4_2_KM_Detail'!L17 -> 0 | K17: ='Schritt 4_2_KM_Detail'!M17 -> 0 | L17: ='Schritt 4_2_KM_Detail'!N17 -> 0 | M17: ='Schritt 4_2_KM_Detail'!O17 -> 0
G18: ='Schritt 4_2_KM_Detail'!F18*'Schritt 4_2_KM_Detail'!G18*'Schritt 4_3_KM_Wirtschaft'!F18 -> 0 | H18: 0 | J18: ='Schritt 4_2_KM_Detail'!L18 -> 0 | K18: ='Schritt 4_2_KM_Detail'!M18 -> 0 | L18: ='Schritt 4_2_KM_Detail'!N18 -> 0 | M18: ='Schritt 4_2_KM_Detail'!O18 -> 0
G19: ='Schritt 4_2_KM_Detail'!F19*'Schritt 4_2_KM_Detail'!G19*'Schritt 4_3_KM_Wirtschaft'!F19 -> 0 | H19: 0 | J19: ='Schritt 4_2_KM_Detail'!L19 -> 0 | K19: ='Schritt 4_2_KM_Detail'!M19 -> 0 | L19: ='Schritt 4_2_KM_Detail'!N19 -> 0 | M19: ='Schritt 4_2_KM_Detail'!O19 -> 0
G20: ='Schritt 4_2_KM_Detail'!F20*'Schritt 4_2_KM_Detail'!G20*'Schritt 4_3_KM_Wirtschaft'!F20 -> 0 | H20: 0 | J20: ='Schritt 4_2_KM_Detail'!L20 -> 0 | K20: ='Schritt 4_2_KM_Detail'!M20 -> 0 | L20: ='Schritt 4_2_KM_Detail'!N20 -> 0 | M20: ='Schritt 4_2_KM_Detail'!O20 -> 0
G21: ='Schritt 4_2_KM_Detail'!F21*'Schritt 4_2_KM_Detail'!G21*'Schritt 4_3_KM_Wirtschaft'!F21 -> 0 | H21: 0 | J21: ='Schritt 4_2_KM_Detail'!L21 -> 0 | K21: ='Schritt 4_2_KM_Detail'!M21 -> 0 | L21: ='Schritt 4_2_KM_Detail'!N21 -> 0 | M21: ='Schritt 4_2_KM_Detail'!O21 -> 0
G22: ='Schritt 4_2_KM_Detail'!F22*'Schritt 4_2_KM_Detail'!G22*'Schritt 4_3_KM_Wirtschaft'!F22 -> 0 | H22: 0 | J22: ='Schritt 4_2_KM_Detail'!L22 -> 0 | K22: ='Schritt 4_2_KM_Detail'!M22 -> 0 | L22: ='Schritt 4_2_KM_Detail'!N22 -> 0 | M22: ='Schritt 4_2_KM_Detail'!O22 -> 0
G23: ='Schritt 4_2_KM_Detail'!F23*'Schritt 4_2_KM_Detail'!G23*'Schritt 4_3_KM_Wirtschaft'!F23 -> 0 | H23: 0 | J23: ='Schritt 4_2_KM_Detail'!L23 -> 0 | K23: ='Schritt 4_2_KM_Detail'!M23 -> 0 | L23: ='Schritt 4_2_KM_Detail'!N23 -> 0 | M23: ='Schritt 4_2_KM_Detail'!O23 -> 0
G24: ='Schritt 4_2_KM_Detail'!F24*'Schritt 4_2_KM_Detail'!G24*'Schritt 4_3_KM_Wirtschaft'!F24 -> 0 | H24: 0 | J24: ='Schritt 4_2_KM_Detail'!L24 -> 0 | K24: ='Schritt 4_2_KM_Detail'!M24 -> 0 | L24: ='Schritt 4_2_KM_Detail'!N24 -> 0 | M24: ='Schritt 4_2_KM_Detail'!O24 -> 0
G25: ='Schritt 4_2_KM_Detail'!F25*'Schritt 4_2_KM_Detail'!G25*'Schritt 4_3_KM_Wirtschaft'!F25 -> 0 | H25: 0 | J25: ='Schritt 4_2_KM_Detail'!L25 -> 0 | K25: ='Schritt 4_2_KM_Detail'!M25 -> 0 | L25: ='Schritt 4_2_KM_Detail'!N25 -> 0 | M25: ='Schritt 4_2_KM_Detail'!O25 -> 0
G26: ='Schritt 4_2_KM_Detail'!F26*'Schritt 4_2_KM_Detail'!G26*'Schritt 4_3_KM_Wirtschaft'!F26 -> 0 | H26: 0 | J26: ='Schritt 4_2_KM_Detail'!L26 -> 0 | K26: ='Schritt 4_2_KM_Detail'!M26 -> 0 | L26: ='Schritt 4_2_KM_Detail'!N26 -> 0 | M26: ='Schritt 4_2_KM_Detail'!O26 -> 0
G27: ='Schritt 4_2_KM_Detail'!F27*'Schritt 4_2_KM_Detail'!G27*'Schritt 4_3_KM_Wirtschaft'!F27 -> 0 | H27: 0 | J27: ='Schritt 4_2_KM_Detail'!L27 -> 0 | K27: ='Schritt 4_2_KM_Detail'!M27 -> 0 | L27: ='Schritt 4_2_KM_Detail'!N27 -> 0 | M27: ='Schritt 4_2_KM_Detail'!O27 -> 0
G28: ='Schritt 4_2_KM_Detail'!F28*'Schritt 4_2_KM_Detail'!G28*'Schritt 4_3_KM_Wirtschaft'!F28 -> 0 | H28: 0 | J28: ='Schritt 4_2_KM_Detail'!L28 -> 0 | K28: ='Schritt 4_2_KM_Detail'!M28 -> 0 | L28: ='Schritt 4_2_KM_Detail'!N28 -> 0 | M28: ='Schritt 4_2_KM_Detail'!O28 -> 0
G29: ='Schritt 4_2_KM_Detail'!F29*'Schritt 4_2_KM_Detail'!G29*'Schritt 4_3_KM_Wirtschaft'!F29 -> 0 | H29: 0 | J29: ='Schritt 4_2_KM_Detail'!L29 -> 0 | K29: ='Schritt 4_2_KM_Detail'!M29 -> 0 | L29: ='Schritt 4_2_KM_Detail'!N29 -> 0 | M29: ='Schritt 4_2_KM_Detail'!O29 -> 0
G30: ='Schritt 4_2_KM_Detail'!F30*'Schritt 4_2_KM_Detail'!G30*'Schritt 4_3_KM_Wirtschaft'!F30 -> 0 | H30: 0 | J30: ='Schritt 4_2_KM_Detail'!L30 -> 0 | K30: ='Schritt 4_2_KM_Detail'!M30 -> 0 | L30: ='Schritt 4_2_KM_Detail'!N30 -> 0 | M30: ='Schritt 4_2_KM_Detail'!O30 -> 0
G31: ='Schritt 4_2_KM_Detail'!F31*'Schritt 4_2_KM_Detail'!G31*'Schritt 4_3_KM_Wirtschaft'!F31 -> 0 | H31: 0 | J31: ='Schritt 4_2_KM_Detail'!L31 -> 0 | K31: ='Schritt 4_2_KM_Detail'!M31 -> 0 | L31: ='Schritt 4_2_KM_Detail'!N31 -> 0 | M31: ='Schritt 4_2_KM_Detail'!O31 -> 0
G32: ='Schritt 4_2_KM_Detail'!F32*'Schritt 4_2_KM_Detail'!G32*'Schritt 4_3_KM_Wirtschaft'!F32 -> 0 | H32: 0 | J32: ='Schritt 4_2_KM_Detail'!L32 -> 0 | K32: ='Schritt 4_2_KM_Detail'!M32 -> 0 | L32: ='Schritt 4_2_KM_Detail'!N32 -> 0 | M32: ='Schritt 4_2_KM_Detail'!O32 -> 0
G33: ='Schritt 4_2_KM_Detail'!F33*'Schritt 4_2_KM_Detail'!G33*'Schritt 4_3_KM_Wirtschaft'!F33 -> 0 | H33: 0 | J33: ='Schritt 4_2_KM_Detail'!L33 -> 0 | K33: ='Schritt 4_2_KM_Detail'!M33 -> 0 | L33: ='Schritt 4_2_KM_Detail'!N33 -> 0 | M33: ='Schritt 4_2_KM_Detail'!O33 -> 0
G34: ='Schritt 4_2_KM_Detail'!F34*'Schritt 4_2_KM_Detail'!G34*'Schritt 4_3_KM_Wirtschaft'!F34 -> 0 | H34: 0 | J34: ='Schritt 4_2_KM_Detail'!L34 -> 0 | K34: ='Schritt 4_2_KM_Detail'!M34 -> 0 | L34: ='Schritt 4_2_KM_Detail'!N34 -> 0 | M34: ='Schritt 4_2_KM_Detail'!O34 -> 0
G35: ='Schritt 4_2_KM_Detail'!F35*'Schritt 4_2_KM_Detail'!G35*'Schritt 4_3_KM_Wirtschaft'!F35 -> 0 | H35: 0 | J35: ='Schritt 4_2_KM_Detail'!L35 -> 0 | K35: ='Schritt 4_2_KM_Detail'!M35 -> 0 | L35: ='Schritt 4_2_KM_Detail'!N35 -> 0 | M35: ='Schritt 4_2_KM_Detail'!O35 -> 0
G36: ='Schritt 4_2_KM_Detail'!F36*'Schritt 4_2_KM_Detail'!G36*'Schritt 4_3_KM_Wirtschaft'!F36 -> 0 | H36: 0 | J36: ='Schritt 4_2_KM_Detail'!L36 -> 0 | K36: ='Schritt 4_2_KM_Detail'!M36 -> 0 | L36: ='Schritt 4_2_KM_Detail'!N36 -> 0 | M36: ='Schritt 4_2_KM_Detail'!O36 -> 0
G37: ='Schritt 4_2_KM_Detail'!F37*'Schritt 4_2_KM_Detail'!G37*'Schritt 4_3_KM_Wirtschaft'!F37 -> 0 | H37: 0 | J37: ='Schritt 4_2_KM_Detail'!L37 -> 0 | K37: ='Schritt 4_2_KM_Detail'!M37 -> 0 | L37: ='Schritt 4_2_KM_Detail'!N37 -> 0 | M37: ='Schritt 4_2_KM_Detail'!O37 -> 0
G38: ='Schritt 4_2_KM_Detail'!F38*'Schritt 4_2_KM_Detail'!G38*'Schritt 4_3_KM_Wirtschaft'!F38 -> 0 | H38: 0 | J38: ='Schritt 4_2_KM_Detail'!L38 -> 0 | K38: ='Schritt 4_2_KM_Detail'!M38 -> 0 | L38: ='Schritt 4_2_KM_Detail'!N38 -> 0 | M38: ='Schritt 4_2_KM_Detail'!O38 -> 0
G39: ='Schritt 4_2_KM_Detail'!F39*'Schritt 4_2_KM_Detail'!G39*'Schritt 4_3_KM_Wirtschaft'!F39 -> 0 | H39: 0 | J39: ='Schritt 4_2_KM_Detail'!L39 -> 0 | K39: ='Schritt 4_2_KM_Detail'!M39 -> 0 | L39: ='Schritt 4_2_KM_Detail'!N39 -> 0 | M39: ='Schritt 4_2_KM_Detail'!O39 -> 0 | N39: =M39/H39 -> 
G40: ='Schritt 4_2_KM_Detail'!F40*'Schritt 4_2_KM_Detail'!G40*'Schritt 4_3_KM_Wirtschaft'!F40 -> 0 | H40: 0 | J40: ='Schritt 4_2_KM_Detail'!L40 -> 0 | K40: ='Schritt 4_2_KM_Detail'!M40 -> 0 | L40: ='Schritt 4_2_KM_Detail'!N40 -> 0 | M40: ='Schritt 4_2_KM_Detail'!O40 -> 0
G41: ='Schritt 4_2_KM_Detail'!F41*'Schritt 4_2_KM_Detail'!G41*'Schritt 4_3_KM_Wirtschaft'!F41 -> 0 | H41: 0 | J41: ='Schritt 4_2_KM_Detail'!L41 -> 0 | K41: ='Schritt 4_2_KM_Detail'!M41 -> 0 | L41: ='Schritt 4_2_KM_Detail'!N41 -> 0 | M41: ='Schritt 4_2_KM_Detail'!O41 -> 0
G42: ='Schritt 4_2_KM_Detail'!F42*'Schritt 4_2_KM_Detail'!G42*'Schritt 4_3_KM_Wirtschaft'!F42 -> 0 | H42: 0 | J42: ='Schritt 4_2_KM_Detail'!L42 -> 0 | K42: ='Schritt 4_2_KM_Detail'!M42 -> 0 | L42: ='Schritt 4_2_KM_Detail'!N42 -> 0 | M42: ='Schritt 4_2_KM_Detail'!O42 -> 0
G43: ='Schritt 4_2_KM_Detail'!F43*'Schritt 4_2_KM_Detail'!G43*'Schritt 4_3_KM_Wirtschaft'!F43 -> 0 | H43: 0 | J43: ='Schritt 4_2_KM_Detail'!L43 -> 0 | K43: ='Schritt 4_2_KM_Detail'!M43 -> 0 | L43: ='Schritt 4_2_KM_Detail'!N43 -> 0 | M43: ='Schritt 4_2_KM_Detail'!O43 -> 0
G44: ='Schritt 4_2_KM_Detail'!F44*'Schritt 4_2_KM_Detail'!G44*'Schritt 4_3_KM_Wirtschaft'!F44 -> 0 | H44: 0 | J44: ='Schritt 4_2_KM_Detail'!L44 -> 0 | K44: ='Schritt 4_2_KM_Detail'!M44 -> 0 | L44: ='Schritt 4_2_KM_Detail'!N44 -> 0 | M44: ='Schritt 4_2_KM_Detail'!O44 -> 0
G45: ='Schritt 4_2_KM_Detail'!F45*'Schritt 4_2_KM_Detail'!G45*'Schritt 4_3_KM_Wirtschaft'!F45 -> 0 | H45: 0 | J45: ='Schritt 4_2_KM_Detail'!L45 -> 0 | K45: ='Schritt 4_2_KM_Detail'!M45 -> 0 | L45: ='Schritt 4_2_KM_Detail'!N45 -> 0 | M45: ='Schritt 4_2_KM_Detail'!O45 -> 0
G46: ='Schritt 4_2_KM_Detail'!F46*'Schritt 4_2_KM_Detail'!G46*'Schritt 4_3_KM_Wirtschaft'!F46 -> 0 | H46: 0 | J46: ='Schritt 4_2_KM_Detail'!L46 -> 0 | K46: ='Schritt 4_2_KM_Detail'!M46 -> 0 | L46: ='Schritt 4_2_KM_Detail'!N46 -> 0 | M46: ='Schritt 4_2_KM_Detail'!O46 -> 0
G47: ='Schritt 4_2_KM_Detail'!F47*'Schritt 4_2_KM_Detail'!G47*'Schritt 4_3_KM_Wirtschaft'!F47 -> 0 | H47: 0 | J47: ='Schritt 4_2_KM_Detail'!L47 -> 0 | K47: ='Schritt 4_2_KM_Detail'!M47 -> 0 | L47: ='Schritt 4_2_KM_Detail'!N47 -> 0 | M47: ='Schritt 4_2_KM_Detail'!O47 -> 0
G48: ='Schritt 4_2_KM_Detail'!F48*'Schritt 4_2_KM_Detail'!G48*'Schritt 4_3_KM_Wirtschaft'!F48 -> 0 | H48: 0 | J48: ='Schritt 4_2_KM_Detail'!L48 -> 0 | K48: ='Schritt 4_2_KM_Detail'!M48 -> 0 | L48: ='Schritt 4_2_KM_Detail'!N48 -> 0 | M48: ='Schritt 4_2_KM_Detail'!O48 -> 0
G49: ='Schritt 4_2_KM_Detail'!F49*'Schritt 4_2_KM_Detail'!G49*'Schritt 4_3_KM_Wirtschaft'!F49 -> 0 | H49: 0 | J49: ='Schritt 4_2_KM_Detail'!L49 -> 0 | K49: ='Schritt 4_2_KM_Detail'!M49 -> 0 | L49: ='Schritt 4_2_KM_Detail'!N49 -> 0 | M49: ='Schritt 4_2_KM_Detail'!O49 -> 0
G50: ='Schritt 4_2_KM_Detail'!F50*'Schritt 4_2_KM_Detail'!G50*'Schritt 4_3_KM_Wirtschaft'!F50 -> 0 | H50: 0 | J50: ='Schritt 4_2_KM_Detail'!L50 -> 0 | K50: ='Schritt 4_2_KM_Detail'!M50 -> 0 | L50: ='Schritt 4_2_KM_Detail'!N50 -> 0 | M50: ='Schritt 4_2_KM_Detail'!O50 -> 0
G51: ='Schritt 4_2_KM_Detail'!F51*'Schritt 4_2_KM_Detail'!G51*'Schritt 4_3_KM_Wirtschaft'!F51 -> 0 | H51: 0 | J51: ='Schritt 4_2_KM_Detail'!L51 -> 0 | K51: ='Schritt 4_2_KM_Detail'!M51 -> 0 | L51: ='Schritt 4_2_KM_Detail'!N51 -> 0 | M51: ='Schritt 4_2_KM_Detail'!O51 -> 0
G52: ='Schritt 4_2_KM_Detail'!F52*'Schritt 4_2_KM_Detail'!G52*'Schritt 4_3_KM_Wirtschaft'!F52 -> 0 | H52: 0 | J52: ='Schritt 4_2_KM_Detail'!L52 -> 0 | K52: ='Schritt 4_2_KM_Detail'!M52 -> 0 | L52: ='Schritt 4_2_KM_Detail'!N52 -> 0 | M52: ='Schritt 4_2_KM_Detail'!O52 -> 0
G53: ='Schritt 4_2_KM_Detail'!F53*'Schritt 4_2_KM_Detail'!G53*'Schritt 4_3_KM_Wirtschaft'!F53 -> 0 | H53: 0 | J53: ='Schritt 4_2_KM_Detail'!L53 -> 0 | K53: ='Schritt 4_2_KM_Detail'!M53 -> 0 | L53: ='Schritt 4_2_KM_Detail'!N53 -> 0 | M53: ='Schritt 4_2_KM_Detail'!O53 -> 0
G54: ='Schritt 4_2_KM_Detail'!F54*'Schritt 4_2_KM_Detail'!G54*'Schritt 4_3_KM_Wirtschaft'!F54 -> 0 | H54: 0 | J54: ='Schritt 4_2_KM_Detail'!L54 -> 0 | K54: ='Schritt 4_2_KM_Detail'!M54 -> 0 | L54: ='Schritt 4_2_KM_Detail'!N54 -> 0 | M54: ='Schritt 4_2_KM_Detail'!O54 -> 0
G55: ='Schritt 4_2_KM_Detail'!F55*'Schritt 4_2_KM_Detail'!G55*'Schritt 4_3_KM_Wirtschaft'!F55 -> 0 | H55: 0 | J55: ='Schritt 4_2_KM_Detail'!L55 -> 0 | K55: ='Schritt 4_2_KM_Detail'!M55 -> 0 | L55: ='Schritt 4_2_KM_Detail'!N55 -> 0 | M55: ='Schritt 4_2_KM_Detail'!O55 -> 0
G56: ='Schritt 4_2_KM_Detail'!F56*'Schritt 4_2_KM_Detail'!G56*'Schritt 4_3_KM_Wirtschaft'!F56 -> 0 | H56: 0 | J56: ='Schritt 4_2_KM_Detail'!L56 -> 0 | K56: ='Schritt 4_2_KM_Detail'!M56 -> 0 | L56: ='Schritt 4_2_KM_Detail'!N56 -> 0 | M56: ='Schritt 4_2_KM_Detail'!O56 -> 0
G57: ='Schritt 4_2_KM_Detail'!F57*'Schritt 4_2_KM_Detail'!G57*'Schritt 4_3_KM_Wirtschaft'!F57 -> 0 | H57: 0 | J57: ='Schritt 4_2_KM_Detail'!L57 -> 0 | K57: ='Schritt 4_2_KM_Detail'!M57 -> 0 | L57: ='Schritt 4_2_KM_Detail'!N57 -> 0 | M57: ='Schritt 4_2_KM_Detail'!O57 -> 0
G58: ='Schritt 4_2_KM_Detail'!F58*'Schritt 4_2_KM_Detail'!G58*'Schritt 4_3_KM_Wirtschaft'!F58 -> 0 | H58: 0 | J58: ='Schritt 4_2_KM_Detail'!L58 -> 0 | K58: ='Schritt 4_2_KM_Detail'!M58 -> 0 | L58: ='Schritt 4_2_KM_Detail'!N58 -> 0 | M58: ='Schritt 4_2_KM_Detail'!O58 -> 0
G59: ='Schritt 4_2_KM_Detail'!F59*'Schritt 4_2_KM_Detail'!G59*'Schritt 4_3_KM_Wirtschaft'!F59 -> 0 | H59: 0 | J59: ='Schritt 4_2_KM_Detail'!L59 -> 0 | K59: ='Schritt 4_2_KM_Detail'!M59 -> 0 | L59: ='Schritt 4_2_KM_Detail'!N59 -> 0 | M59: ='Schritt 4_2_KM_Detail'!O59 -> 0
G60: ='Schritt 4_2_KM_Detail'!F60*'Schritt 4_2_KM_Detail'!G60*'Schritt 4_3_KM_Wirtschaft'!F60 -> 0 | H60: 0 | J60: ='Schritt 4_2_KM_Detail'!L60 -> 0 | K60: ='Schritt 4_2_KM_Detail'!M60 -> 0 | L60: ='Schritt 4_2_KM_Detail'!N60 -> 0 | M60: ='Schritt 4_2_KM_Detail'!O60 -> 0
G61: ='Schritt 4_2_KM_Detail'!F61*'Schritt 4_2_KM_Detail'!G61*'Schritt 4_3_KM_Wirtschaft'!F61 -> 0 | H61: 0 | J61: ='Schritt 4_2_KM_Detail'!L61 -> 0 | K61: ='Schritt 4_2_KM_Detail'!M61 -> 0 | L61: ='Schritt 4_2_KM_Detail'!N61 -> 0 | M61: ='Schritt 4_2_KM_Detail'!O61 -> 0
G62: ='Schritt 4_2_KM_Detail'!F62*'Schritt 4_2_KM_Detail'!G62*'Schritt 4_3_KM_Wirtschaft'!F62 -> 0 | H62: 0 | J62: ='Schritt 4_2_KM_Detail'!L62 -> 0 | K62: ='Schritt 4_2_KM_Detail'!M62 -> 0 | L62: ='Schritt 4_2_KM_Detail'!N62 -> 0 | M62: ='Schritt 4_2_KM_Detail'!O62 -> 0
G63: ='Schritt 4_2_KM_Detail'!F63*'Schritt 4_2_KM_Detail'!G63*'Schritt 4_3_KM_Wirtschaft'!F63 -> 0 | H63: 0 | J63: ='Schritt 4_2_KM_Detail'!L63 -> 0 | K63: ='Schritt 4_2_KM_Detail'!M63 -> 0 | L63: ='Schritt 4_2_KM_Detail'!N63 -> 0 | M63: ='Schritt 4_2_KM_Detail'!O63 -> 0
G64: ='Schritt 4_2_KM_Detail'!F64*'Schritt 4_2_KM_Detail'!G64*'Schritt 4_3_KM_Wirtschaft'!F64 -> 0 | H64: 0 | J64: ='Schritt 4_2_KM_Detail'!L64 -> 0 | K64: ='Schritt 4_2_KM_Detail'!M64 -> 0 | L64: ='Schritt 4_2_KM_Detail'!N64 -> 0 | M64: ='Schritt 4_2_KM_Detail'!O64 -> 0
G65: ='Schritt 4_2_KM_Detail'!F65*'Schritt 4_2_KM_Detail'!G65*'Schritt 4_3_KM_Wirtschaft'!F65 -> 0 | H65: 0 | J65: ='Schritt 4_2_KM_Detail'!L65 -> 0 | K65: ='Schritt 4_2_KM_Detail'!M65 -> 0 | L65: ='Schritt 4_2_KM_Detail'!N65 -> 0 | M65: ='Schritt 4_2_KM_Detail'!O65 -> 0
G66: ='Schritt 4_2_KM_Detail'!F66*'Schritt 4_2_KM_Detail'!G66*'Schritt 4_3_KM_Wirtschaft'!F66 -> 0 | H66: 0 | J66: ='Schritt 4_2_KM_Detail'!L66 -> 0 | K66: ='Schritt 4_2_KM_Detail'!M66 -> 0 | L66: ='Schritt 4_2_KM_Detail'!N66 -> 0 | M66: ='Schritt 4_2_KM_Detail'!O66 -> 0
G67: ='Schritt 4_2_KM_Detail'!F67*'Schritt 4_2_KM_Detail'!G67*'Schritt 4_3_KM_Wirtschaft'!F67 -> 0 | H67: 0 | J67: ='Schritt 4_2_KM_Detail'!L67 -> 0 | K67: ='Schritt 4_2_KM_Detail'!M67 -> 0 | L67: ='Schritt 4_2_KM_Detail'!N67 -> 0 | M67: ='Schritt 4_2_KM_Detail'!O67 -> 0
G68: ='Schritt 4_2_KM_Detail'!F68*'Schritt 4_2_KM_Detail'!G68*'Schritt 4_3_KM_Wirtschaft'!F68 -> 0 | H68: 0 | J68: ='Schritt 4_2_KM_Detail'!L68 -> 0 | K68: ='Schritt 4_2_KM_Detail'!M68 -> 0 | L68: ='Schritt 4_2_KM_Detail'!N68 -> 0 | M68: ='Schritt 4_2_KM_Detail'!O68 -> 0
G69: ='Schritt 4_2_KM_Detail'!F69*'Schritt 4_2_KM_Detail'!G69*'Schritt 4_3_KM_Wirtschaft'!F69 -> 0 | H69: 0 | J69: ='Schritt 4_2_KM_Detail'!L69 -> 0 | K69: ='Schritt 4_2_KM_Detail'!M69 -> 0 | L69: ='Schritt 4_2_KM_Detail'!N69 -> 0 | M69: ='Schritt 4_2_KM_Detail'!O69 -> 0
G70: ='Schritt 4_2_KM_Detail'!F70*'Schritt 4_2_KM_Detail'!G70*'Schritt 4_3_KM_Wirtschaft'!F70 -> 0 | H70: 0 | J70: ='Schritt 4_2_KM_Detail'!L70 -> 0 | K70: ='Schritt 4_2_KM_Detail'!M70 -> 0 | L70: ='Schritt 4_2_KM_Detail'!N70 -> 0 | M70: ='Schritt 4_2_KM_Detail'!O70 -> 0
G71: ='Schritt 4_2_KM_Detail'!F71*'Schritt 4_2_KM_Detail'!G71*'Schritt 4_3_KM_Wirtschaft'!F71 -> 0 | H71: 0 | J71: ='Schritt 4_2_KM_Detail'!L71 -> 0 | K71: ='Schritt 4_2_KM_Detail'!M71 -> 0 | L71: ='Schritt 4_2_KM_Detail'!N71 -> 0 | M71: ='Schritt 4_2_KM_Detail'!O71 -> 0 | N71: =M71/H71 -> 
G72: ='Schritt 4_2_KM_Detail'!F72*'Schritt 4_2_KM_Detail'!G72*'Schritt 4_3_KM_Wirtschaft'!F72 -> 0 | H72: =G72 -> 0 | J72: ='Schritt 4_2_KM_Detail'!L72 -> 0 | K72: ='Schritt 4_2_KM_Detail'!M72 -> 0 | L72: ='Schritt 4_2_KM_Detail'!N72 -> 0 | M72: ='Schritt 4_2_KM_Detail'!O72 -> 0
G73: ='Schritt 4_2_KM_Detail'!F73*'Schritt 4_2_KM_Detail'!G73*'Schritt 4_3_KM_Wirtschaft'!F73 -> 0 | H73: 0 | J73: ='Schritt 4_2_KM_Detail'!L73 -> 0 | K73: ='Schritt 4_2_KM_Detail'!M73 -> 0 | L73: ='Schritt 4_2_KM_Detail'!N73 -> 0 | M73: ='Schritt 4_2_KM_Detail'!O73 -> 0
G74: ='Schritt 4_2_KM_Detail'!F74*'Schritt 4_2_KM_Detail'!G74*'Schritt 4_3_KM_Wirtschaft'!F74 -> 0 | H74: 0 | J74: ='Schritt 4_2_KM_Detail'!L74 -> 0 | K74: ='Schritt 4_2_KM_Detail'!M74 -> 0 | L74: ='Schritt 4_2_KM_Detail'!N74 -> 0 | M74: ='Schritt 4_2_KM_Detail'!O74 -> 0
G75: ='Schritt 4_2_KM_Detail'!F75*'Schritt 4_2_KM_Detail'!G75*'Schritt 4_3_KM_Wirtschaft'!F75 -> 0 | H75: 0 | J75: ='Schritt 4_2_KM_Detail'!L75 -> 0 | K75: ='Schritt 4_2_KM_Detail'!M75 -> 0 | L75: ='Schritt 4_2_KM_Detail'!N75 -> 0 | M75: ='Schritt 4_2_KM_Detail'!O75 -> 0
G76: ='Schritt 4_2_KM_Detail'!F76*'Schritt 4_2_KM_Detail'!G76*'Schritt 4_3_KM_Wirtschaft'!F76 -> 0 | H76: 0 | J76: ='Schritt 4_2_KM_Detail'!L76 -> 0 | K76: ='Schritt 4_2_KM_Detail'!M76 -> 0 | L76: ='Schritt 4_2_KM_Detail'!N76 -> 0 | M76: ='Schritt 4_2_KM_Detail'!O76 -> 0
G77: ='Schritt 4_2_KM_Detail'!F77*'Schritt 4_2_KM_Detail'!G77*'Schritt 4_3_KM_Wirtschaft'!F77 -> 0 | H77: 0 | J77: ='Schritt 4_2_KM_Detail'!L77 -> 0 | K77: ='Schritt 4_2_KM_Detail'!M77 -> 0 | L77: ='Schritt 4_2_KM_Detail'!N77 -> 0 | M77: ='Schritt 4_2_KM_Detail'!O77 -> 0
G78: ='Schritt 4_2_KM_Detail'!F78*'Schritt 4_2_KM_Detail'!G78*'Schritt 4_3_KM_Wirtschaft'!F78 -> 0 | H78: 0 | J78: ='Schritt 4_2_KM_Detail'!L78 -> 0 | K78: ='Schritt 4_2_KM_Detail'!M78 -> 0 | L78: ='Schritt 4_2_KM_Detail'!N78 -> 0 | M78: ='Schritt 4_2_KM_Detail'!O78 -> 0
G79: ='Schritt 4_2_KM_Detail'!F79*'Schritt 4_2_KM_Detail'!G79*'Schritt 4_3_KM_Wirtschaft'!F79 -> 0 | H79: 0 | J79: ='Schritt 4_2_KM_Detail'!L79 -> 0 | K79: ='Schritt 4_2_KM_Detail'!M79 -> 0 | L79: ='Schritt 4_2_KM_Detail'!N79 -> 0 | M79: ='Schritt 4_2_KM_Detail'!O79 -> 0
G80: ='Schritt 4_2_KM_Detail'!F80*'Schritt 4_2_KM_Detail'!G80*'Schritt 4_3_KM_Wirtschaft'!F80 -> 0 | H80: 0 | J80: ='Schritt 4_2_KM_Detail'!L80 -> 0 | K80: ='Schritt 4_2_KM_Detail'!M80 -> 0 | L80: ='Schritt 4_2_KM_Detail'!N80 -> 0 | M80: ='Schritt 4_2_KM_Detail'!O80 -> 0
G81: ='Schritt 4_2_KM_Detail'!F81*'Schritt 4_2_KM_Detail'!G81*'Schritt 4_3_KM_Wirtschaft'!F81 -> 0 | H81: 0 | J81: ='Schritt 4_2_KM_Detail'!L81 -> 0 | K81: ='Schritt 4_2_KM_Detail'!M81 -> 0 | L81: ='Schritt 4_2_KM_Detail'!N81 -> 0 | M81: ='Schritt 4_2_KM_Detail'!O81 -> 0
G82: ='Schritt 4_2_KM_Detail'!F82*'Schritt 4_2_KM_Detail'!G82*'Schritt 4_3_KM_Wirtschaft'!F82 -> 0 | H82: 0 | J82: ='Schritt 4_2_KM_Detail'!L82 -> 0 | K82: ='Schritt 4_2_KM_Detail'!M82 -> 0 | L82: ='Schritt 4_2_KM_Detail'!N82 -> 0 | M82: ='Schritt 4_2_KM_Detail'!O82 -> 0
G83: ='Schritt 4_2_KM_Detail'!F83*'Schritt 4_2_KM_Detail'!G83*'Schritt 4_3_KM_Wirtschaft'!F83 -> 0 | H83: 0 | J83: ='Schritt 4_2_KM_Detail'!L83 -> 0 | K83: ='Schritt 4_2_KM_Detail'!M83 -> 0 | L83: ='Schritt 4_2_KM_Detail'!N83 -> 0 | M83: ='Schritt 4_2_KM_Detail'!O83 -> 0
G84: ='Schritt 4_2_KM_Detail'!F84*'Schritt 4_2_KM_Detail'!G84*'Schritt 4_3_KM_Wirtschaft'!F84 -> 0 | H84: 0 | J84: ='Schritt 4_2_KM_Detail'!L84 -> 0 | K84: ='Schritt 4_2_KM_Detail'!M84 -> 0 | L84: ='Schritt 4_2_KM_Detail'!N84 -> 0 | M84: ='Schritt 4_2_KM_Detail'!O84 -> 0
G85: ='Schritt 4_2_KM_Detail'!F85*'Schritt 4_2_KM_Detail'!G85*'Schritt 4_3_KM_Wirtschaft'!F85 -> 0 | H85: 0 | J85: ='Schritt 4_2_KM_Detail'!L85 -> 0 | K85: ='Schritt 4_2_KM_Detail'!M85 -> 0 | L85: ='Schritt 4_2_KM_Detail'!N85 -> 0 | M85: ='Schritt 4_2_KM_Detail'!O85 -> 0
G86: ='Schritt 4_2_KM_Detail'!F86*'Schritt 4_2_KM_Detail'!G86*'Schritt 4_3_KM_Wirtschaft'!F86 -> 0 | H86: 0 | J86: ='Schritt 4_2_KM_Detail'!L86 -> 0 | K86: ='Schritt 4_2_KM_Detail'!M86 -> 0 | L86: ='Schritt 4_2_KM_Detail'!N86 -> 0 | M86: ='Schritt 4_2_KM_Detail'!O86 -> 0
G87: ='Schritt 4_2_KM_Detail'!F87*'Schritt 4_2_KM_Detail'!G87*'Schritt 4_3_KM_Wirtschaft'!F87 -> 0 | H87: 0 | J87: ='Schritt 4_2_KM_Detail'!L87 -> 0 | K87: ='Schritt 4_2_KM_Detail'!M87 -> 0 | L87: ='Schritt 4_2_KM_Detail'!N87 -> 0 | M87: ='Schritt 4_2_KM_Detail'!O87 -> 0
G88: ='Schritt 4_2_KM_Detail'!F88*'Schritt 4_2_KM_Detail'!G88*'Schritt 4_3_KM_Wirtschaft'!F88 -> 0 | H88: 0 | J88: ='Schritt 4_2_KM_Detail'!L88 -> 0 | K88: ='Schritt 4_2_KM_Detail'!M88 -> 0 | L88: ='Schritt 4_2_KM_Detail'!N88 -> 0 | M88: ='Schritt 4_2_KM_Detail'!O88 -> 0
G89: ='Schritt 4_2_KM_Detail'!F89*'Schritt 4_2_KM_Detail'!G89*'Schritt 4_3_KM_Wirtschaft'!F89 -> 0 | H89: 0 | J89: ='Schritt 4_2_KM_Detail'!L89 -> 0 | K89: ='Schritt 4_2_KM_Detail'!M89 -> 0 | L89: ='Schritt 4_2_KM_Detail'!N89 -> 0 | M89: ='Schritt 4_2_KM_Detail'!O89 -> 0
G90: ='Schritt 4_2_KM_Detail'!F90*'Schritt 4_2_KM_Detail'!G90*'Schritt 4_3_KM_Wirtschaft'!F90 -> 0 | H90: 0 | J90: ='Schritt 4_2_KM_Detail'!L90 -> 0 | K90: ='Schritt 4_2_KM_Detail'!M90 -> 0 | L90: ='Schritt 4_2_KM_Detail'!N90 -> 0 | M90: ='Schritt 4_2_KM_Detail'!O90 -> 0
G91: ='Schritt 4_2_KM_Detail'!F91*'Schritt 4_2_KM_Detail'!G91*'Schritt 4_3_KM_Wirtschaft'!F91 -> 0 | H91: 0 | J91: ='Schritt 4_2_KM_Detail'!L91 -> 0 | K91: ='Schritt 4_2_KM_Detail'!M91 -> 0 | L91: ='Schritt 4_2_KM_Detail'!N91 -> 0 | M91: ='Schritt 4_2_KM_Detail'!O91 -> 0
G92: ='Schritt 4_2_KM_Detail'!F92*'Schritt 4_2_KM_Detail'!G92*'Schritt 4_3_KM_Wirtschaft'!F92 -> 0 | H92: 0 | J92: ='Schritt 4_2_KM_Detail'!L92 -> 0 | K92: ='Schritt 4_2_KM_Detail'!M92 -> 0 | L92: ='Schritt 4_2_KM_Detail'!N92 -> 0 | M92: ='Schritt 4_2_KM_Detail'!O92 -> 0
G93: ='Schritt 4_2_KM_Detail'!F93*'Schritt 4_2_KM_Detail'!G93*'Schritt 4_3_KM_Wirtschaft'!F93 -> 0 | H93: 0 | J93: ='Schritt 4_2_KM_Detail'!L93 -> 0 | K93: ='Schritt 4_2_KM_Detail'!M93 -> 0 | L93: ='Schritt 4_2_KM_Detail'!N93 -> 0 | M93: ='Schritt 4_2_KM_Detail'!O93 -> 0
G94: ='Schritt 4_2_KM_Detail'!F94*'Schritt 4_2_KM_Detail'!G94*'Schritt 4_3_KM_Wirtschaft'!F94 -> 0 | H94: 0 | J94: ='Schritt 4_2_KM_Detail'!L94 -> 0 | K94: ='Schritt 4_2_KM_Detail'!M94 -> 0 | L94: ='Schritt 4_2_KM_Detail'!N94 -> 0 | M94: ='Schritt 4_2_KM_Detail'!O94 -> 0
G95: ='Schritt 4_2_KM_Detail'!F95*'Schritt 4_2_KM_Detail'!G95*'Schritt 4_3_KM_Wirtschaft'!F95 -> 0 | H95: 0 | J95: ='Schritt 4_2_KM_Detail'!L95 -> 0 | K95: ='Schritt 4_2_KM_Detail'!M95 -> 0 | L95: ='Schritt 4_2_KM_Detail'!N95 -> 0 | M95: ='Schritt 4_2_KM_Detail'!O95 -> 0
G96: ='Schritt 4_2_KM_Detail'!F96*'Schritt 4_2_KM_Detail'!G96*'Schritt 4_3_KM_Wirtschaft'!F96 -> 0 | H96: 0 | J96: ='Schritt 4_2_KM_Detail'!L96 -> 0 | K96: ='Schritt 4_2_KM_Detail'!M96 -> 0 | L96: ='Schritt 4_2_KM_Detail'!N96 -> 0 | M96: ='Schritt 4_2_KM_Detail'!O96 -> 0
G97: ='Schritt 4_2_KM_Detail'!F97*'Schritt 4_2_KM_Detail'!G97*'Schritt 4_3_KM_Wirtschaft'!F97 -> 0 | H97: 0 | J97: ='Schritt 4_2_KM_Detail'!L97 -> 0 | K97: ='Schritt 4_2_KM_Detail'!M97 -> 0 | L97: ='Schritt 4_2_KM_Detail'!N97 -> 0 | M97: ='Schritt 4_2_KM_Detail'!O97 -> 0
G98: ='Schritt 4_2_KM_Detail'!F98*'Schritt 4_2_KM_Detail'!G98*'Schritt 4_3_KM_Wirtschaft'!F98 -> 0 | H98: 0 | J98: ='Schritt 4_2_KM_Detail'!L98 -> 0 | K98: ='Schritt 4_2_KM_Detail'!M98 -> 0 | L98: ='Schritt 4_2_KM_Detail'!N98 -> 0 | M98: ='Schritt 4_2_KM_Detail'!O98 -> 0
G99: ='Schritt 4_2_KM_Detail'!F99*'Schritt 4_2_KM_Detail'!G99*'Schritt 4_3_KM_Wirtschaft'!F99 -> 0 | H99: 0 | J99: ='Schritt 4_2_KM_Detail'!L99 -> 0 | K99: ='Schritt 4_2_KM_Detail'!M99 -> 0 | L99: ='Schritt 4_2_KM_Detail'!N99 -> 0 | M99: ='Schritt 4_2_KM_Detail'!O99 -> 0
G100: ='Schritt 4_2_KM_Detail'!F100*'Schritt 4_2_KM_Detail'!G100*'Schritt 4_3_KM_Wirtschaft'!F100 -> 0 | H100: 0 | J100: ='Schritt 4_2_KM_Detail'!L100 -> 0 | K100: ='Schritt 4_2_KM_Detail'!M100 -> 0 | L100: ='Schritt 4_2_KM_Detail'!N100 -> 0 | M100: ='Schritt 4_2_KM_Detail'!O100 -> 0
G101: ='Schritt 4_2_KM_Detail'!F101*'Schritt 4_2_KM_Detail'!G101*'Schritt 4_3_KM_Wirtschaft'!F101 -> 0 | H101: 0 | J101: ='Schritt 4_2_KM_Detail'!L101 -> 0 | K101: ='Schritt 4_2_KM_Detail'!M101 -> 0 | L101: ='Schritt 4_2_KM_Detail'!N101 -> 0 | M101: ='Schritt 4_2_KM_Detail'!O101 -> 0
G102: ='Schritt 4_2_KM_Detail'!F102*'Schritt 4_2_KM_Detail'!G102*'Schritt 4_3_KM_Wirtschaft'!F102 -> 0 | H102: 0 | J102: ='Schritt 4_2_KM_Detail'!L102 -> 0 | K102: ='Schritt 4_2_KM_Detail'!M102 -> 0 | L102: ='Schritt 4_2_KM_Detail'!N102 -> 0 | M102: ='Schritt 4_2_KM_Detail'!O102 -> 0
G103: ='Schritt 4_2_KM_Detail'!F103*'Schritt 4_2_KM_Detail'!G103*'Schritt 4_3_KM_Wirtschaft'!F103 -> 0 | H103: 0 | J103: ='Schritt 4_2_KM_Detail'!L103 -> 0 | K103: ='Schritt 4_2_KM_Detail'!M103 -> 0 | L103: ='Schritt 4_2_KM_Detail'!N103 -> 0 | M103: ='Schritt 4_2_KM_Detail'!O103 -> 0 | N103: =M103/H103 -> 
G104: ='Schritt 4_2_KM_Detail'!F104*'Schritt 4_2_KM_Detail'!G104*'Schritt 4_3_KM_Wirtschaft'!F104 -> 0 | H104: 0 | J104: ='Schritt 4_2_KM_Detail'!L104 -> 0 | K104: ='Schritt 4_2_KM_Detail'!M104 -> 0 | L104: ='Schritt 4_2_KM_Detail'!N104 -> 0 | M104: ='Schritt 4_2_KM_Detail'!O104 -> 0
G105: ='Schritt 4_2_KM_Detail'!F105*'Schritt 4_2_KM_Detail'!G105*'Schritt 4_3_KM_Wirtschaft'!F105 -> 0 | H105: 0 | J105: ='Schritt 4_2_KM_Detail'!L105 -> 0 | K105: ='Schritt 4_2_KM_Detail'!M105 -> 0 | L105: ='Schritt 4_2_KM_Detail'!N105 -> 0 | M105: ='Schritt 4_2_KM_Detail'!O105 -> 0
G106: ='Schritt 4_2_KM_Detail'!F106*'Schritt 4_2_KM_Detail'!G106*'Schritt 4_3_KM_Wirtschaft'!F106 -> 0 | H106: 0 | J106: ='Schritt 4_2_KM_Detail'!L106 -> 0 | K106: ='Schritt 4_2_KM_Detail'!M106 -> 0 | L106: ='Schritt 4_2_KM_Detail'!N106 -> 0 | M106: ='Schritt 4_2_KM_Detail'!O106 -> 0

Sheet Schritt_5_Entscheidung
A1: Schritt 6 Entscheidung
A37: Falls Sie den Schritt 4_2 und Schritt 4_3 für die detailierte Betrachtung der kritischen Maschinen durchgeführt haben und es hat sich eine neue Priorisierung der kritischen Maschinen herausgestellt hat, können die Maschinen in folgende Liste eingetragen werden:
A39: Maschinen (Prozesse) die aus detailierter Betrachtung für die Einführung von PdM geeignet sind | E39: Einfluss der Maschine auf den Umsatz | F39: Durchschnittlicher Umsatzverlust pro Stopp (c) in €/min | G39: Umsatzverlust gesamt (UV) in € | H39: Umsatzverlust gesamt pro Jahr (UVJ) in € /Jahr | I39: Ist das Umsatzverlust gesamt pro Jahr (UVJ) [€ /Jahr] einmallig oder wiederkehrend in jedem Jahr? | J39: Verbesserungsmaßnahme
A40: Seriennummer | B40: Maschinenname | C40: Baujahr | D40: Probleme | J40: Datum der Überprüfung | K40: Vorgeschlagene Maßnahme | L40: Zweck der Maßnahme | M40: Geschätzte Kosten für die Maßnahme (d) in € | N40: Amortisationszeit (AZ) in Jahre
A42: 11 | B42: Schweißanlage | C42: 2008 | D42: ja | F42: 20 | G42: 4800 | H42: 4800 | J42: 0 | K42: 0 | L42: 0 | M42: 10000 | N42: 2.083333333

Sheet Schritt6__Implementierung
A1: Schritt 6 Implementierung
A2: •Daten erfassen | B2: Ein weiterer zu berücksichtigender Faktor für den Erfolg des PdM-Programms ist das Vorhandensein ausreichender Informationen, die umsetzbare Einblicke in das Maschinenverhalten bieten können.
A3: •Daten übertragen | B3: Die Signalmittel liefern Daten in verschiedenen Formaten und Größen. Um diese riesigen Datenmengen zu kontrollieren und übermitteln, werden Big-Data-Datenbanken für die Speicherung und das Internet of Things für die Netzwerkübertragung hinzugezogen (vgl. Jakob Schreiner/ Julia Moßner, 2019).
A4: •Daten speichern
A5: •Daten analysieren | B5: Predictive Analytics ist der Oberbegriff für die Analyse und Bewertung der erhobenen Daten sowie der Berechnung von Eintrittswahrscheinlichkeiten für bestimmte Ergebnisse. Es werden Regelmäßigkeiten aus der Datenmenge mit Hilfe von Algorithmen erkannt, die dann bestimmte Reparaturen oder Austauschteile diagnostizieren.
A6: •Anpassung und Optimierung | B6: Ist der Prototyp erfolgreich, gehen Sie in eine Testproduktion. Das kann ein Testkunde sein oder ein spezifischer Case in der Produktionsanlage. Sammeln Sie Erfahrung, optimieren sie das Modell und erweitern Sie die Vorhersage in Richtung Entscheidungshilfe und Wartungsplaneinbindung. Dann kann ein solcher Service innerhalb der Firma und/oder an Ihre Kunden verkauft werden. Ein präventive Wartungsplan wird so nicht über den Haufen geworfen, sondern geht stetig, mit Bedacht, aber unabdingbar in eine zustandsorientierte und vorausschauende Wartung über.

Sheet Hilfstabelle
D1: Farbendefinition Auswertung Reifegrad | I1: Ausweichmöglichkeiten
A2: ja | D2: niedrig | E2: mittel | F2: hoch | I2: Ist die Maschine/Anlage redundant? | J2: Gibt es die Möglichkeit auf andere Maschine/Anlage auszuweichen? | K2: Besteht es die Möglichkeit durch Vergabe an Lieferanten den Auftrag fertigzustellen | L2: Ist die Maschine im Schichtbetrieb? | M2: Gibt es für die Maschine die Ersatzteilversorgung?
A3: nein | D3: 1 | E3: 3 | F3: 5
A4: nicht bekannt | D4: 1 | E4: 3 | F4: 5
D5: 1 | E5: 3 | F5: 5
A6: niedrigster Wert | B6: Höchster Wert | D6: 1 | E6: 3 | F6: 5 | I6: =IF(Schritt_4_1_kr_Maschinen!G7="ja",5,IF(Schritt_4_1_kr_Maschinen!G7="nein",1,"")) -> 1 | J6: =IF(Schritt_4_1_kr_Maschinen!H7="ja",5,IF(Schritt_4_1_kr_Maschinen!H7="nein",1,"")) -> 5 | K6: =IF(Schritt_4_1_kr_Maschinen!I7="ja",5,IF(Schritt_4_1_kr_Maschinen!I7="nein",1,"")) -> 1 | L6: =IF(Schritt_4_1_kr_Maschinen!J7="ja",1,IF(Schritt_4_1_kr_Maschinen!J7="nein",5,"")) -> 1 | M6: =IF(Schritt_4_1_kr_Maschinen!K7="ja",5,IF(Schritt_4_1_kr_Maschinen!K7="nein",1,"")) -> 5
A7: 1 | B7: 5 | D7: 1 | E7: 3 | F7: 5 | I7: =IF(Schritt_4_1_kr_Maschinen!G8="ja",5,IF(Schritt_4_1_kr_Maschinen!G8="nein",1,"")) -> 1 | J7: =IF(Schritt_4_1_kr_Maschinen!H8="ja",5,IF(Schritt_4_1_kr_Maschinen!H8="nein",1,"")) -> 5 | K7: =IF(Schritt_4_1_kr_Maschinen!I8="ja",5,IF(Schritt_4_1_kr_Maschinen!I8="nein",1,"")) -> 1 | L7: =IF(Schritt_4_1_kr_Maschinen!J8="ja",1,IF(Schritt_4_1_kr_Maschinen!J8="nein",5,"")) -> 1 | M7: =IF(Schritt_4_1_kr_Maschinen!K8="ja",5,IF(Schritt_4_1_kr_Maschinen!K8="nein",1,"")) -> 5
D8: 1 | E8: 3 | F8: 5 | I8: =IF(Schritt_4_1_kr_Maschinen!G9="ja",5,IF(Schritt_4_1_kr_Maschinen!G9="nein",1,"")) -> 1 | J8: =IF(Schritt_4_1_kr_Maschinen!H9="ja",5,IF(Schritt_4_1_kr_Maschinen!H9="nein",1,"")) -> 1 | K8: =IF(Schritt_4_1_kr_Maschinen!I9="ja",5,IF(Schritt_4_1_kr_Maschinen!I9="nein",1,"")) -> 1 | L8: =IF(Schritt_4_1_kr_Maschinen!J9="ja",1,IF(Schritt_4_1_kr_Maschinen!J9="nein",5,"")) -> 5 | M8: =IF(Schritt_4_1_kr_Maschinen!K9="ja",5,IF(Schritt_4_1_kr_Maschinen!K9="nein",1,"")) -> 5
I9: =IF(Schritt_4_1_kr_Maschinen!G10="ja",5,IF(Schritt_4_1_kr_Maschinen!G10="nein",1,"")) -> 1 | J9: =IF(Schritt_4_1_kr_Maschinen!H10="ja",5,IF(Schritt_4_1_kr_Maschinen!H10="nein",1,"")) -> 5 | K9: =IF(Schritt_4_1_kr_Maschinen!I10="ja",5,IF(Schritt_4_1_kr_Maschinen!I10="nein",1,"")) -> 1 | L9: =IF(Schritt_4_1_kr_Maschinen!J10="ja",1,IF(Schritt_4_1_kr_Maschinen!J10="nein",5,"")) -> 1 | M9: =IF(Schritt_4_1_kr_Maschinen!K10="ja",5,IF(Schritt_4_1_kr_Maschinen!K10="nein",1,"")) -> 1
I10: =IF(Schritt_4_1_kr_Maschinen!G11="ja",5,IF(Schritt_4_1_kr_Maschinen!G11="nein",1,"")) -> 1 | J10: =IF(Schritt_4_1_kr_Maschinen!H11="ja",5,IF(Schritt_4_1_kr_Maschinen!H11="nein",1,"")) -> 5 | K10: =IF(Schritt_4_1_kr_Maschinen!I11="ja",5,IF(Schritt_4_1_kr_Maschinen!I11="nein",1,"")) -> 1 | L10: =IF(Schritt_4_1_kr_Maschinen!J11="ja",1,IF(Schritt_4_1_kr_Maschinen!J11="nein",5,"")) -> 1 | M10: =IF(Schritt_4_1_kr_Maschinen!K11="ja",5,IF(Schritt_4_1_kr_Maschinen!K11="nein",1,"")) -> 5
D11: Farbendefinition Auswertung kritische Maschinen | I11: =IF(Schritt_4_1_kr_Maschinen!G12="ja",5,IF(Schritt_4_1_kr_Maschinen!G12="nein",1,"")) -> 5 | J11: =IF(Schritt_4_1_kr_Maschinen!H12="ja",5,IF(Schritt_4_1_kr_Maschinen!H12="nein",1,"")) -> 5 | K11: =IF(Schritt_4_1_kr_Maschinen!I12="ja",5,IF(Schritt_4_1_kr_Maschinen!I12="nein",1,"")) -> 1 | L11: =IF(Schritt_4_1_kr_Maschinen!J12="ja",1,IF(Schritt_4_1_kr_Maschinen!J12="nein",5,"")) -> 1 | M11: =IF(Schritt_4_1_kr_Maschinen!K12="ja",5,IF(Schritt_4_1_kr_Maschinen!K12="nein",1,"")) -> 5
D12: kritisch | E12: weniger kritisch | F12: unkritisch | I12: =IF(Schritt_4_1_kr_Maschinen!G13="ja",5,IF(Schritt_4_1_kr_Maschinen!G13="nein",1,"")) -> 5 | J12: =IF(Schritt_4_1_kr_Maschinen!H13="ja",5,IF(Schritt_4_1_kr_Maschinen!H13="nein",1,"")) -> 1 | K12: =IF(Schritt_4_1_kr_Maschinen!I13="ja",5,IF(Schritt_4_1_kr_Maschinen!I13="nein",1,"")) -> 1 | L12: =IF(Schritt_4_1_kr_Maschinen!J13="ja",1,IF(Schritt_4_1_kr_Maschinen!J13="nein",5,"")) -> 1 | M12: =IF(Schritt_4_1_kr_Maschinen!K13="ja",5,IF(Schritt_4_1_kr_Maschinen!K13="nein",1,"")) -> 5
D13: 1 | E13: 3 | F13: 5 | I13: =IF(Schritt_4_1_kr_Maschinen!G14="ja",5,IF(Schritt_4_1_kr_Maschinen!G14="nein",1,"")) -> 1 | J13: =IF(Schritt_4_1_kr_Maschinen!H14="ja",5,IF(Schritt_4_1_kr_Maschinen!H14="nein",1,"")) -> 5 | K13: =IF(Schritt_4_1_kr_Maschinen!I14="ja",5,IF(Schritt_4_1_kr_Maschinen!I14="nein",1,"")) -> 1 | L13: =IF(Schritt_4_1_kr_Maschinen!J14="ja",1,IF(Schritt_4_1_kr_Maschinen!J14="nein",5,"")) -> 5 | M13: =IF(Schritt_4_1_kr_Maschinen!K14="ja",5,IF(Schritt_4_1_kr_Maschinen!K14="nein",1,"")) -> 1
D14: 1 | E14: 3 | F14: 5 | I14: =IF(Schritt_4_1_kr_Maschinen!G15="ja",5,IF(Schritt_4_1_kr_Maschinen!G15="nein",1,"")) -> 5 | J14: =IF(Schritt_4_1_kr_Maschinen!H15="ja",5,IF(Schritt_4_1_kr_Maschinen!H15="nein",1,"")) -> 5 | K14: =IF(Schritt_4_1_kr_Maschinen!I15="ja",5,IF(Schritt_4_1_kr_Maschinen!I15="nein",1,"")) -> 1 | L14: =IF(Schritt_4_1_kr_Maschinen!J15="ja",1,IF(Schritt_4_1_kr_Maschinen!J15="nein",5,"")) -> 1 | M14: =IF(Schritt_4_1_kr_Maschinen!K15="ja",5,IF(Schritt_4_1_kr_Maschinen!K15="nein",1,"")) -> 5
D15: 1 | E15: 3 | F15: 5 | I15: =IF(Schritt_4_1_kr_Maschinen!G16="ja",5,IF(Schritt_4_1_kr_Maschinen!G16="nein",1,"")) -> 1 | J15: =IF(Schritt_4_1_kr_Maschinen!H16="ja",5,IF(Schritt_4_1_kr_Maschinen!H16="nein",1,"")) -> 5 | K15: =IF(Schritt_4_1_kr_Maschinen!I16="ja",5,IF(Schritt_4_1_kr_Maschinen!I16="nein",1,"")) -> 1 | L15: =IF(Schritt_4_1_kr_Maschinen!J16="ja",1,IF(Schritt_4_1_kr_Maschinen!J16="nein",5,"")) -> 1 | M15: =IF(Schritt_4_1_kr_Maschinen!K16="ja",5,IF(Schritt_4_1_kr_Maschinen!K16="nein",1,"")) -> 1
D16: 1 | E16: 3 | F16: 5 | I16: =IF(Schritt_4_1_kr_Maschinen!G17="ja",5,IF(Schritt_4_1_kr_Maschinen!G17="nein",1,"")) -> 1 | J16: =IF(Schritt_4_1_kr_Maschinen!H17="ja",5,IF(Schritt_4_1_kr_Maschinen!H17="nein",1,"")) -> 1 | K16: =IF(Schritt_4_1_kr_Maschinen!I17="ja",5,IF(Schritt_4_1_kr_Maschinen!I17="nein",1,"")) -> 1 | L16: =IF(Schritt_4_1_kr_Maschinen!J17="ja",1,IF(Schritt_4_1_kr_Maschinen!J17="nein",5,"")) -> 5 | M16: =IF(Schritt_4_1_kr_Maschinen!K17="ja",5,IF(Schritt_4_1_kr_Maschinen!K17="nein",1,"")) -> 1
D17: 1 | E17: 3 | F17: 5 | I17: =IF(Schritt_4_1_kr_Maschinen!G18="ja",5,IF(Schritt_4_1_kr_Maschinen!G18="nein",1,"")) -> 1 | J17: =IF(Schritt_4_1_kr_Maschinen!H18="ja",5,IF(Schritt_4_1_kr_Maschinen!H18="nein",1,"")) -> 5 | K17: =IF(Schritt_4_1_kr_Maschinen!I18="ja",5,IF(Schritt_4_1_kr_Maschinen!I18="nein",1,"")) -> 1 | L17: =IF(Schritt_4_1_kr_Maschinen!J18="ja",1,IF(Schritt_4_1_kr_Maschinen!J18="nein",5,"")) -> 1 | M17: =IF(Schritt_4_1_kr_Maschinen!K18="ja",5,IF(Schritt_4_1_kr_Maschinen!K18="nein",1,"")) -> 
D18: 1 | E18: 3 | F18: 5 | I18: =IF(Schritt_4_1_kr_Maschinen!G19="ja",5,IF(Schritt_4_1_kr_Maschinen!G19="nein",1,"")) ->  | J18: =IF(Schritt_4_1_kr_Maschinen!H19="ja",5,IF(Schritt_4_1_kr_Maschinen!H19="nein",1,"")) ->  | K18: =IF(Schritt_4_1_kr_Maschinen!I19="ja",5,IF(Schritt_4_1_kr_Maschinen!I19="nein",1,"")) ->  | L18: =IF(Schritt_4_1_kr_Maschinen!J19="ja",5,IF(Schritt_4_1_kr_Maschinen!J19="nein",1,"")) ->  | M18: =IF(Schritt_4_1_kr_Maschinen!K19="ja",5,IF(Schritt_4_1_kr_Maschinen!K19="nein",1,"")) -> 
I19: =IF(Schritt_4_1_kr_Maschinen!G20="ja",5,IF(Schritt_4_1_kr_Maschinen!G20="nein",1,"")) ->  | J19: =IF(Schritt_4_1_kr_Maschinen!H20="ja",5,IF(Schritt_4_1_kr_Maschinen!H20="nein",1,"")) ->  | K19: =IF(Schritt_4_1_kr_Maschinen!I20="ja",5,IF(Schritt_4_1_kr_Maschinen!I20="nein",1,"")) ->  | L19: =IF(Schritt_4_1_kr_Maschinen!J20="ja",5,IF(Schritt_4_1_kr_Maschinen!J20="nein",1,"")) ->  | M19: =IF(Schritt_4_1_kr_Maschinen!K20="ja",5,IF(Schritt_4_1_kr_Maschinen!K20="nein",1,"")) -> 
I20: =IF(Schritt_4_1_kr_Maschinen!G21="ja",5,IF(Schritt_4_1_kr_Maschinen!G21="nein",1,"")) ->  | J20: =IF(Schritt_4_1_kr_Maschinen!H21="ja",5,IF(Schritt_4_1_kr_Maschinen!H21="nein",1,"")) ->  | K20: =IF(Schritt_4_1_kr_Maschinen!I21="ja",5,IF(Schritt_4_1_kr_Maschinen!I21="nein",1,"")) ->  | L20: =IF(Schritt_4_1_kr_Maschinen!J21="ja",5,IF(Schritt_4_1_kr_Maschinen!J21="nein",1,"")) ->  | M20: =IF(Schritt_4_1_kr_Maschinen!K21="ja",5,IF(Schritt_4_1_kr_Maschinen!K21="nein",1,"")) -> 
I21: =IF(Schritt_4_1_kr_Maschinen!G22="ja",5,IF(Schritt_4_1_kr_Maschinen!G22="nein",1,"")) ->  | J21: =IF(Schritt_4_1_kr_Maschinen!H22="ja",5,IF(Schritt_4_1_kr_Maschinen!H22="nein",1,"")) ->  | K21: =IF(Schritt_4_1_kr_Maschinen!I22="ja",5,IF(Schritt_4_1_kr_Maschinen!I22="nein",1,"")) ->  | L21: =IF(Schritt_4_1_kr_Maschinen!J22="ja",5,IF(Schritt_4_1_kr_Maschinen!J22="nein",1,"")) ->  | M21: =IF(Schritt_4_1_kr_Maschinen!K22="ja",5,IF(Schritt_4_1_kr_Maschinen!K22="nein",1,"")) -> 
I22: =IF(Schritt_4_1_kr_Maschinen!G23="ja",5,IF(Schritt_4_1_kr_Maschinen!G23="nein",1,"")) ->  | J22: =IF(Schritt_4_1_kr_Maschinen!H23="ja",5,IF(Schritt_4_1_kr_Maschinen!H23="nein",1,"")) ->  | K22: =IF(Schritt_4_1_kr_Maschinen!I23="ja",5,IF(Schritt_4_1_kr_Maschinen!I23="nein",1,"")) ->  | L22: =IF(Schritt_4_1_kr_Maschinen!J23="ja",5,IF(Schritt_4_1_kr_Maschinen!J23="nein",1,"")) ->  | M22: =IF(Schritt_4_1_kr_Maschinen!K23="ja",5,IF(Schritt_4_1_kr_Maschinen!K23="nein",1,"")) -> 
I23: =IF(Schritt_4_1_kr_Maschinen!G24="ja",5,IF(Schritt_4_1_kr_Maschinen!G24="nein",1,"")) ->  | J23: =IF(Schritt_4_1_kr_Maschinen!H24="ja",5,IF(Schritt_4_1_kr_Maschinen!H24="nein",1,"")) ->  | K23: =IF(Schritt_4_1_kr_Maschinen!I24="ja",5,IF(Schritt_4_1_kr_Maschinen!I24="nein",1,"")) ->  | L23: =IF(Schritt_4_1_kr_Maschinen!J24="ja",5,IF(Schritt_4_1_kr_Maschinen!J24="nein",1,"")) ->  | M23: =IF(Schritt_4_1_kr_Maschinen!K24="ja",5,IF(Schritt_4_1_kr_Maschinen!K24="nein",1,"")) -> 
I24: =IF(Schritt_4_1_kr_Maschinen!G25="ja",5,IF(Schritt_4_1_kr_Maschinen!G25="nein",1,"")) ->  | J24: =IF(Schritt_4_1_kr_Maschinen!H25="ja",5,IF(Schritt_4_1_kr_Maschinen!H25="nein",1,"")) ->  | K24: =IF(Schritt_4_1_kr_Maschinen!I25="ja",5,IF(Schritt_4_1_kr_Maschinen!I25="nein",1,"")) ->  | L24: =IF(Schritt_4_1_kr_Maschinen!J25="ja",5,IF(Schritt_4_1_kr_Maschinen!J25="nein",1,"")) ->  | M24: =IF(Schritt_4_1_kr_Maschinen!K25="ja",5,IF(Schritt_4_1_kr_Maschinen!K25="nein",1,"")) -> 
I25: =IF(Schritt_4_1_kr_Maschinen!G26="ja",5,IF(Schritt_4_1_kr_Maschinen!G26="nein",1,"")) ->  | J25: =IF(Schritt_4_1_kr_Maschinen!H26="ja",5,IF(Schritt_4_1_kr_Maschinen!H26="nein",1,"")) ->  | K25: =IF(Schritt_4_1_kr_Maschinen!I26="ja",5,IF(Schritt_4_1_kr_Maschinen!I26="nein",1,"")) ->  | L25: =IF(Schritt_4_1_kr_Maschinen!J26="ja",5,IF(Schritt_4_1_kr_Maschinen!J26="nein",1,"")) ->  | M25: =IF(Schritt_4_1_kr_Maschinen!K26="ja",5,IF(Schritt_4_1_kr_Maschinen!K26="nein",1,"")) -> 
I26: =IF(Schritt_4_1_kr_Maschinen!G27="ja",5,IF(Schritt_4_1_kr_Maschinen!G27="nein",1,"")) ->  | J26: =IF(Schritt_4_1_kr_Maschinen!H27="ja",5,IF(Schritt_4_1_kr_Maschinen!H27="nein",1,"")) ->  | K26: =IF(Schritt_4_1_kr_Maschinen!I27="ja",5,IF(Schritt_4_1_kr_Maschinen!I27="nein",1,"")) ->  | L26: =IF(Schritt_4_1_kr_Maschinen!J27="ja",5,IF(Schritt_4_1_kr_Maschinen!J27="nein",1,"")) ->  | M26: =IF(Schritt_4_1_kr_Maschinen!K27="ja",5,IF(Schritt_4_1_kr_Maschinen!K27="nein",1,"")) -> 
I27: =IF(Schritt_4_1_kr_Maschinen!G28="ja",5,IF(Schritt_4_1_kr_Maschinen!G28="nein",1,"")) ->  | J27: =IF(Schritt_4_1_kr_Maschinen!H28="ja",5,IF(Schritt_4_1_kr_Maschinen!H28="nein",1,"")) ->  | K27: =IF(Schritt_4_1_kr_Maschinen!I28="ja",5,IF(Schritt_4_1_kr_Maschinen!I28="nein",1,"")) ->  | L27: =IF(Schritt_4_1_kr_Maschinen!J28="ja",5,IF(Schritt_4_1_kr_Maschinen!J28="nein",1,"")) ->  | M27: =IF(Schritt_4_1_kr_Maschinen!K28="ja",5,IF(Schritt_4_1_kr_Maschinen!K28="nein",1,"")) -> 
I28: =IF(Schritt_4_1_kr_Maschinen!G29="ja",5,IF(Schritt_4_1_kr_Maschinen!G29="nein",1,"")) ->  | J28: =IF(Schritt_4_1_kr_Maschinen!H29="ja",5,IF(Schritt_4_1_kr_Maschinen!H29="nein",1,"")) ->  | K28: =IF(Schritt_4_1_kr_Maschinen!I29="ja",5,IF(Schritt_4_1_kr_Maschinen!I29="nein",1,"")) ->  | L28: =IF(Schritt_4_1_kr_Maschinen!J29="ja",5,IF(Schritt_4_1_kr_Maschinen!J29="nein",1,"")) ->  | M28: =IF(Schritt_4_1_kr_Maschinen!K29="ja",5,IF(Schritt_4_1_kr_Maschinen!K29="nein",1,"")) -> 
I29: =IF(Schritt_4_1_kr_Maschinen!G30="ja",5,IF(Schritt_4_1_kr_Maschinen!G30="nein",1,"")) ->  | J29: =IF(Schritt_4_1_kr_Maschinen!H30="ja",5,IF(Schritt_4_1_kr_Maschinen!H30="nein",1,"")) ->  | K29: =IF(Schritt_4_1_kr_Maschinen!I30="ja",5,IF(Schritt_4_1_kr_Maschinen!I30="nein",1,"")) ->  | L29: =IF(Schritt_4_1_kr_Maschinen!J30="ja",5,IF(Schritt_4_1_kr_Maschinen!J30="nein",1,"")) ->  | M29: =IF(Schritt_4_1_kr_Maschinen!K30="ja",5,IF(Schritt_4_1_kr_Maschinen!K30="nein",1,"")) -> 
I30: =IF(Schritt_4_1_kr_Maschinen!G31="ja",5,IF(Schritt_4_1_kr_Maschinen!G31="nein",1,"")) ->  | J30: =IF(Schritt_4_1_kr_Maschinen!H31="ja",5,IF(Schritt_4_1_kr_Maschinen!H31="nein",1,"")) ->  | K30: =IF(Schritt_4_1_kr_Maschinen!I31="ja",5,IF(Schritt_4_1_kr_Maschinen!I31="nein",1,"")) ->  | L30: =IF(Schritt_4_1_kr_Maschinen!J31="ja",5,IF(Schritt_4_1_kr_Maschinen!J31="nein",1,"")) ->  | M30: =IF(Schritt_4_1_kr_Maschinen!K31="ja",5,IF(Schritt_4_1_kr_Maschinen!K31="nein",1,"")) -> 
I31: =IF(Schritt_4_1_kr_Maschinen!G32="ja",5,IF(Schritt_4_1_kr_Maschinen!G32="nein",1,"")) ->  | J31: =IF(Schritt_4_1_kr_Maschinen!H32="ja",5,IF(Schritt_4_1_kr_Maschinen!H32="nein",1,"")) ->  | K31: =IF(Schritt_4_1_kr_Maschinen!I32="ja",5,IF(Schritt_4_1_kr_Maschinen!I32="nein",1,"")) ->  | L31: =IF(Schritt_4_1_kr_Maschinen!J32="ja",5,IF(Schritt_4_1_kr_Maschinen!J32="nein",1,"")) ->  | M31: =IF(Schritt_4_1_kr_Maschinen!K32="ja",5,IF(Schritt_4_1_kr_Maschinen!K32="nein",1,"")) -> 
I32: =IF(Schritt_4_1_kr_Maschinen!G33="ja",5,IF(Schritt_4_1_kr_Maschinen!G33="nein",1,"")) ->  | J32: =IF(Schritt_4_1_kr_Maschinen!H33="ja",5,IF(Schritt_4_1_kr_Maschinen!H33="nein",1,"")) ->  | K32: =IF(Schritt_4_1_kr_Maschinen!I33="ja",5,IF(Schritt_4_1_kr_Maschinen!I33="nein",1,"")) ->  | L32: =IF(Schritt_4_1_kr_Maschinen!J33="ja",5,IF(Schritt_4_1_kr_Maschinen!J33="nein",1,"")) ->  | M32: =IF(Schritt_4_1_kr_Maschinen!K33="ja",5,IF(Schritt_4_1_kr_Maschinen!K33="nein",1,"")) -> 
I33: =IF(Schritt_4_1_kr_Maschinen!G34="ja",5,IF(Schritt_4_1_kr_Maschinen!G34="nein",1,"")) ->  | J33: =IF(Schritt_4_1_kr_Maschinen!H34="ja",5,IF(Schritt_4_1_kr_Maschinen!H34="nein",1,"")) ->  | K33: =IF(Schritt_4_1_kr_Maschinen!I34="ja",5,IF(Schritt_4_1_kr_Maschinen!I34="nein",1,"")) ->  | L33: =IF(Schritt_4_1_kr_Maschinen!J34="ja",5,IF(Schritt_4_1_kr_Maschinen!J34="nein",1,"")) ->  | M33: =IF(Schritt_4_1_kr_Maschinen!K34="ja",5,IF(Schritt_4_1_kr_Maschinen!K34="nein",1,"")) -> 
I34: =IF(Schritt_4_1_kr_Maschinen!G35="ja",5,IF(Schritt_4_1_kr_Maschinen!G35="nein",1,"")) ->  | J34: =IF(Schritt_4_1_kr_Maschinen!H35="ja",5,IF(Schritt_4_1_kr_Maschinen!H35="nein",1,"")) ->  | K34: =IF(Schritt_4_1_kr_Maschinen!I35="ja",5,IF(Schritt_4_1_kr_Maschinen!I35="nein",1,"")) ->  | L34: =IF(Schritt_4_1_kr_Maschinen!J35="ja",5,IF(Schritt_4_1_kr_Maschinen!J35="nein",1,"")) ->  | M34: =IF(Schritt_4_1_kr_Maschinen!K35="ja",5,IF(Schritt_4_1_kr_Maschinen!K35="nein",1,"")) -> 
I35: =IF(Schritt_4_1_kr_Maschinen!G36="ja",5,IF(Schritt_4_1_kr_Maschinen!G36="nein",1,"")) ->  | J35: =IF(Schritt_4_1_kr_Maschinen!H36="ja",5,IF(Schritt_4_1_kr_Maschinen!H36="nein",1,"")) ->  | K35: =IF(Schritt_4_1_kr_Maschinen!I36="ja",5,IF(Schritt_4_1_kr_Maschinen!I36="nein",1,"")) ->  | L35: =IF(Schritt_4_1_kr_Maschinen!J36="ja",5,IF(Schritt_4_1_kr_Maschinen!J36="nein",1,"")) ->  | M35: =IF(Schritt_4_1_kr_Maschinen!K36="ja",5,IF(Schritt_4_1_kr_Maschinen!K36="nein",1,"")) -> 
I36: =IF(Schritt_4_1_kr_Maschinen!G37="ja",5,IF(Schritt_4_1_kr_Maschinen!G37="nein",1,"")) ->  | J36: =IF(Schritt_4_1_kr_Maschinen!H37="ja",5,IF(Schritt_4_1_kr_Maschinen!H37="nein",1,"")) ->  | K36: =IF(Schritt_4_1_kr_Maschinen!I37="ja",5,IF(Schritt_4_1_kr_Maschinen!I37="nein",1,"")) ->  | L36: =IF(Schritt_4_1_kr_Maschinen!J37="ja",5,IF(Schritt_4_1_kr_Maschinen!J37="nein",1,"")) ->  | M36: =IF(Schritt_4_1_kr_Maschinen!K37="ja",5,IF(Schritt_4_1_kr_Maschinen!K37="nein",1,"")) -> 
I37: =IF(Schritt_4_1_kr_Maschinen!G38="ja",5,IF(Schritt_4_1_kr_Maschinen!G38="nein",1,"")) ->  | J37: =IF(Schritt_4_1_kr_Maschinen!H38="ja",5,IF(Schritt_4_1_kr_Maschinen!H38="nein",1,"")) ->  | K37: =IF(Schritt_4_1_kr_Maschinen!I38="ja",5,IF(Schritt_4_1_kr_Maschinen!I38="nein",1,"")) ->  | L37: =IF(Schritt_4_1_kr_Maschinen!J38="ja",5,IF(Schritt_4_1_kr_Maschinen!J38="nein",1,"")) ->  | M37: =IF(Schritt_4_1_kr_Maschinen!K38="ja",5,IF(Schritt_4_1_kr_Maschinen!K38="nein",1,"")) -> 
I38: =IF(Schritt_4_1_kr_Maschinen!G39="ja",5,IF(Schritt_4_1_kr_Maschinen!G39="nein",1,"")) ->  | J38: =IF(Schritt_4_1_kr_Maschinen!H39="ja",5,IF(Schritt_4_1_kr_Maschinen!H39="nein",1,"")) ->  | K38: =IF(Schritt_4_1_kr_Maschinen!I39="ja",5,IF(Schritt_4_1_kr_Maschinen!I39="nein",1,"")) ->  | L38: =IF(Schritt_4_1_kr_Maschinen!J39="ja",5,IF(Schritt_4_1_kr_Maschinen!J39="nein",1,"")) ->  | M38: =IF(Schritt_4_1_kr_Maschinen!K39="ja",5,IF(Schritt_4_1_kr_Maschinen!K39="nein",1,"")) -> 
I39: =IF(Schritt_4_1_kr_Maschinen!G40="ja",5,IF(Schritt_4_1_kr_Maschinen!G40="nein",1,"")) ->  | J39: =IF(Schritt_4_1_kr_Maschinen!H40="ja",5,IF(Schritt_4_1_kr_Maschinen!H40="nein",1,"")) ->  | K39: =IF(Schritt_4_1_kr_Maschinen!I40="ja",5,IF(Schritt_4_1_kr_Maschinen!I40="nein",1,"")) ->  | L39: =IF(Schritt_4_1_kr_Maschinen!J40="ja",5,IF(Schritt_4_1_kr_Maschinen!J40="nein",1,"")) ->  | M39: =IF(Schritt_4_1_kr_Maschinen!K40="ja",5,IF(Schritt_4_1_kr_Maschinen!K40="nein",1,"")) -> 
I40: =IF(Schritt_4_1_kr_Maschinen!G41="ja",5,IF(Schritt_4_1_kr_Maschinen!G41="nein",1,"")) ->  | J40: =IF(Schritt_4_1_kr_Maschinen!H41="ja",5,IF(Schritt_4_1_kr_Maschinen!H41="nein",1,"")) ->  | K40: =IF(Schritt_4_1_kr_Maschinen!I41="ja",5,IF(Schritt_4_1_kr_Maschinen!I41="nein",1,"")) ->  | L40: =IF(Schritt_4_1_kr_Maschinen!J41="ja",5,IF(Schritt_4_1_kr_Maschinen!J41="nein",1,"")) ->  | M40: =IF(Schritt_4_1_kr_Maschinen!K41="ja",5,IF(Schritt_4_1_kr_Maschinen!K41="nein",1,"")) -> 
I41: =IF(Schritt_4_1_kr_Maschinen!G42="ja",5,IF(Schritt_4_1_kr_Maschinen!G42="nein",1,"")) ->  | J41: =IF(Schritt_4_1_kr_Maschinen!H42="ja",5,IF(Schritt_4_1_kr_Maschinen!H42="nein",1,"")) ->  | K41: =IF(Schritt_4_1_kr_Maschinen!I42="ja",5,IF(Schritt_4_1_kr_Maschinen!I42="nein",1,"")) ->  | L41: =IF(Schritt_4_1_kr_Maschinen!J42="ja",5,IF(Schritt_4_1_kr_Maschinen!J42="nein",1,"")) ->  | M41: =IF(Schritt_4_1_kr_Maschinen!K42="ja",5,IF(Schritt_4_1_kr_Maschinen!K42="nein",1,"")) -> 
I42: =IF(Schritt_4_1_kr_Maschinen!G43="ja",5,IF(Schritt_4_1_kr_Maschinen!G43="nein",1,"")) ->  | J42: =IF(Schritt_4_1_kr_Maschinen!H43="ja",5,IF(Schritt_4_1_kr_Maschinen!H43="nein",1,"")) ->  | K42: =IF(Schritt_4_1_kr_Maschinen!I43="ja",5,IF(Schritt_4_1_kr_Maschinen!I43="nein",1,"")) ->  | L42: =IF(Schritt_4_1_kr_Maschinen!J43="ja",5,IF(Schritt_4_1_kr_Maschinen!J43="nein",1,"")) ->  | M42: =IF(Schritt_4_1_kr_Maschinen!K43="ja",5,IF(Schritt_4_1_kr_Maschinen!K43="nein",1,"")) -> 
I43: =IF(Schritt_4_1_kr_Maschinen!G44="ja",5,IF(Schritt_4_1_kr_Maschinen!G44="nein",1,"")) ->  | J43: =IF(Schritt_4_1_kr_Maschinen!H44="ja",5,IF(Schritt_4_1_kr_Maschinen!H44="nein",1,"")) ->  | K43: =IF(Schritt_4_1_kr_Maschinen!I44="ja",5,IF(Schritt_4_1_kr_Maschinen!I44="nein",1,"")) ->  | L43: =IF(Schritt_4_1_kr_Maschinen!J44="ja",5,IF(Schritt_4_1_kr_Maschinen!J44="nein",1,"")) ->  | M43: =IF(Schritt_4_1_kr_Maschinen!K44="ja",5,IF(Schritt_4_1_kr_Maschinen!K44="nein",1,"")) -> 
I44: =IF(Schritt_4_1_kr_Maschinen!G45="ja",5,IF(Schritt_4_1_kr_Maschinen!G45="nein",1,"")) ->  | J44: =IF(Schritt_4_1_kr_Maschinen!H45="ja",5,IF(Schritt_4_1_kr_Maschinen!H45="nein",1,"")) ->  | K44: =IF(Schritt_4_1_kr_Maschinen!I45="ja",5,IF(Schritt_4_1_kr_Maschinen!I45="nein",1,"")) ->  | L44: =IF(Schritt_4_1_kr_Maschinen!J45="ja",5,IF(Schritt_4_1_kr_Maschinen!J45="nein",1,"")) ->  | M44: =IF(Schritt_4_1_kr_Maschinen!K45="ja",5,IF(Schritt_4_1_kr_Maschinen!K45="nein",1,"")) -> 
I45: =IF(Schritt_4_1_kr_Maschinen!G46="ja",5,IF(Schritt_4_1_kr_Maschinen!G46="nein",1,"")) ->  | J45: =IF(Schritt_4_1_kr_Maschinen!H46="ja",5,IF(Schritt_4_1_kr_Maschinen!H46="nein",1,"")) ->  | K45: =IF(Schritt_4_1_kr_Maschinen!I46="ja",5,IF(Schritt_4_1_kr_Maschinen!I46="nein",1,"")) ->  | L45: =IF(Schritt_4_1_kr_Maschinen!J46="ja",5,IF(Schritt_4_1_kr_Maschinen!J46="nein",1,"")) ->  | M45: =IF(Schritt_4_1_kr_Maschinen!K46="ja",5,IF(Schritt_4_1_kr_Maschinen!K46="nein",1,"")) -> 
I46: =IF(Schritt_4_1_kr_Maschinen!G47="ja",5,IF(Schritt_4_1_kr_Maschinen!G47="nein",1,"")) ->  | J46: =IF(Schritt_4_1_kr_Maschinen!H47="ja",5,IF(Schritt_4_1_kr_Maschinen!H47="nein",1,"")) ->  | K46: =IF(Schritt_4_1_kr_Maschinen!I47="ja",5,IF(Schritt_4_1_kr_Maschinen!I47="nein",1,"")) ->  | L46: =IF(Schritt_4_1_kr_Maschinen!J47="ja",5,IF(Schritt_4_1_kr_Maschinen!J47="nein",1,"")) ->  | M46: =IF(Schritt_4_1_kr_Maschinen!K47="ja",5,IF(Schritt_4_1_kr_Maschinen!K47="nein",1,"")) -> 
I47: =IF(Schritt_4_1_kr_Maschinen!G48="ja",5,IF(Schritt_4_1_kr_Maschinen!G48="nein",1,"")) ->  | J47: =IF(Schritt_4_1_kr_Maschinen!H48="ja",5,IF(Schritt_4_1_kr_Maschinen!H48="nein",1,"")) ->  | K47: =IF(Schritt_4_1_kr_Maschinen!I48="ja",5,IF(Schritt_4_1_kr_Maschinen!I48="nein",1,"")) ->  | L47: =IF(Schritt_4_1_kr_Maschinen!J48="ja",5,IF(Schritt_4_1_kr_Maschinen!J48="nein",1,"")) ->  | M47: =IF(Schritt_4_1_kr_Maschinen!K48="ja",5,IF(Schritt_4_1_kr_Maschinen!K48="nein",1,"")) -> 
I48: =IF(Schritt_4_1_kr_Maschinen!G49="ja",5,IF(Schritt_4_1_kr_Maschinen!G49="nein",1,"")) ->  | J48: =IF(Schritt_4_1_kr_Maschinen!H49="ja",5,IF(Schritt_4_1_kr_Maschinen!H49="nein",1,"")) ->  | K48: =IF(Schritt_4_1_kr_Maschinen!I49="ja",5,IF(Schritt_4_1_kr_Maschinen!I49="nein",1,"")) ->  | L48: =IF(Schritt_4_1_kr_Maschinen!J49="ja",5,IF(Schritt_4_1_kr_Maschinen!J49="nein",1,"")) ->  | M48: =IF(Schritt_4_1_kr_Maschinen!K49="ja",5,IF(Schritt_4_1_kr_Maschinen!K49="nein",1,"")) -> 
I49: =IF(Schritt_4_1_kr_Maschinen!G50="ja",5,IF(Schritt_4_1_kr_Maschinen!G50="nein",1,"")) ->  | J49: =IF(Schritt_4_1_kr_Maschinen!H50="ja",5,IF(Schritt_4_1_kr_Maschinen!H50="nein",1,"")) ->  | K49: =IF(Schritt_4_1_kr_Maschinen!I50="ja",5,IF(Schritt_4_1_kr_Maschinen!I50="nein",1,"")) ->  | L49: =IF(Schritt_4_1_kr_Maschinen!J50="ja",5,IF(Schritt_4_1_kr_Maschinen!J50="nein",1,"")) ->  | M49: =IF(Schritt_4_1_kr_Maschinen!K50="ja",5,IF(Schritt_4_1_kr_Maschinen!K50="nein",1,"")) -> 
I50: =IF(Schritt_4_1_kr_Maschinen!G51="ja",5,IF(Schritt_4_1_kr_Maschinen!G51="nein",1,"")) ->  | J50: =IF(Schritt_4_1_kr_Maschinen!H51="ja",5,IF(Schritt_4_1_kr_Maschinen!H51="nein",1,"")) ->  | K50: =IF(Schritt_4_1_kr_Maschinen!I51="ja",5,IF(Schritt_4_1_kr_Maschinen!I51="nein",1,"")) ->  | L50: =IF(Schritt_4_1_kr_Maschinen!J51="ja",5,IF(Schritt_4_1_kr_Maschinen!J51="nein",1,"")) ->  | M50: =IF(Schritt_4_1_kr_Maschinen!K51="ja",5,IF(Schritt_4_1_kr_Maschinen!K51="nein",1,"")) -> 
I51: =IF(Schritt_4_1_kr_Maschinen!G52="ja",5,IF(Schritt_4_1_kr_Maschinen!G52="nein",1,"")) ->  | J51: =IF(Schritt_4_1_kr_Maschinen!H52="ja",5,IF(Schritt_4_1_kr_Maschinen!H52="nein",1,"")) ->  | K51: =IF(Schritt_4_1_kr_Maschinen!I52="ja",5,IF(Schritt_4_1_kr_Maschinen!I52="nein",1,"")) ->  | L51: =IF(Schritt_4_1_kr_Maschinen!J52="ja",5,IF(Schritt_4_1_kr_Maschinen!J52="nein",1,"")) ->  | M51: =IF(Schritt_4_1_kr_Maschinen!K52="ja",5,IF(Schritt_4_1_kr_Maschinen!K52="nein",1,"")) -> 
I52: =IF(Schritt_4_1_kr_Maschinen!G53="ja",5,IF(Schritt_4_1_kr_Maschinen!G53="nein",1,"")) ->  | J52: =IF(Schritt_4_1_kr_Maschinen!H53="ja",5,IF(Schritt_4_1_kr_Maschinen!H53="nein",1,"")) ->  | K52: =IF(Schritt_4_1_kr_Maschinen!I53="ja",5,IF(Schritt_4_1_kr_Maschinen!I53="nein",1,"")) ->  | L52: =IF(Schritt_4_1_kr_Maschinen!J53="ja",5,IF(Schritt_4_1_kr_Maschinen!J53="nein",1,"")) ->  | M52: =IF(Schritt_4_1_kr_Maschinen!K53="ja",5,IF(Schritt_4_1_kr_Maschinen!K53="nein",1,"")) -> 
I53: =IF(Schritt_4_1_kr_Maschinen!G54="ja",5,IF(Schritt_4_1_kr_Maschinen!G54="nein",1,"")) ->  | J53: =IF(Schritt_4_1_kr_Maschinen!H54="ja",5,IF(Schritt_4_1_kr_Maschinen!H54="nein",1,"")) ->  | K53: =IF(Schritt_4_1_kr_Maschinen!I54="ja",5,IF(Schritt_4_1_kr_Maschinen!I54="nein",1,"")) ->  | L53: =IF(Schritt_4_1_kr_Maschinen!J54="ja",5,IF(Schritt_4_1_kr_Maschinen!J54="nein",1,"")) ->  | M53: =IF(Schritt_4_1_kr_Maschinen!K54="ja",5,IF(Schritt_4_1_kr_Maschinen!K54="nein",1,"")) -> 
I54: =IF(Schritt_4_1_kr_Maschinen!G55="ja",5,IF(Schritt_4_1_kr_Maschinen!G55="nein",1,"")) ->  | J54: =IF(Schritt_4_1_kr_Maschinen!H55="ja",5,IF(Schritt_4_1_kr_Maschinen!H55="nein",1,"")) ->  | K54: =IF(Schritt_4_1_kr_Maschinen!I55="ja",5,IF(Schritt_4_1_kr_Maschinen!I55="nein",1,"")) ->  | L54: =IF(Schritt_4_1_kr_Maschinen!J55="ja",5,IF(Schritt_4_1_kr_Maschinen!J55="nein",1,"")) ->  | M54: =IF(Schritt_4_1_kr_Maschinen!K55="ja",5,IF(Schritt_4_1_kr_Maschinen!K55="nein",1,"")) -> 
I55: =IF(Schritt_4_1_kr_Maschinen!G56="ja",5,IF(Schritt_4_1_kr_Maschinen!G56="nein",1,"")) ->  | J55: =IF(Schritt_4_1_kr_Maschinen!H56="ja",5,IF(Schritt_4_1_kr_Maschinen!H56="nein",1,"")) ->  | K55: =IF(Schritt_4_1_kr_Maschinen!I56="ja",5,IF(Schritt_4_1_kr_Maschinen!I56="nein",1,"")) ->  | L55: =IF(Schritt_4_1_kr_Maschinen!J56="ja",5,IF(Schritt_4_1_kr_Maschinen!J56="nein",1,"")) ->  | M55: =IF(Schritt_4_1_kr_Maschinen!K56="ja",5,IF(Schritt_4_1_kr_Maschinen!K56="nein",1,"")) -> 
I56: =IF(Schritt_4_1_kr_Maschinen!G57="ja",5,IF(Schritt_4_1_kr_Maschinen!G57="nein",1,"")) ->  | J56: =IF(Schritt_4_1_kr_Maschinen!H57="ja",5,IF(Schritt_4_1_kr_Maschinen!H57="nein",1,"")) ->  | K56: =IF(Schritt_4_1_kr_Maschinen!I57="ja",5,IF(Schritt_4_1_kr_Maschinen!I57="nein",1,"")) ->  | L56: =IF(Schritt_4_1_kr_Maschinen!J57="ja",5,IF(Schritt_4_1_kr_Maschinen!J57="nein",1,"")) ->  | M56: =IF(Schritt_4_1_kr_Maschinen!K57="ja",5,IF(Schritt_4_1_kr_Maschinen!K57="nein",1,"")) -> 
I57: =IF(Schritt_4_1_kr_Maschinen!G58="ja",5,IF(Schritt_4_1_kr_Maschinen!G58="nein",1,"")) ->  | J57: =IF(Schritt_4_1_kr_Maschinen!H58="ja",5,IF(Schritt_4_1_kr_Maschinen!H58="nein",1,"")) ->  | K57: =IF(Schritt_4_1_kr_Maschinen!I58="ja",5,IF(Schritt_4_1_kr_Maschinen!I58="nein",1,"")) ->  | L57: =IF(Schritt_4_1_kr_Maschinen!J58="ja",5,IF(Schritt_4_1_kr_Maschinen!J58="nein",1,"")) ->  | M57: =IF(Schritt_4_1_kr_Maschinen!K58="ja",5,IF(Schritt_4_1_kr_Maschinen!K58="nein",1,"")) -> 
I58: =IF(Schritt_4_1_kr_Maschinen!G59="ja",5,IF(Schritt_4_1_kr_Maschinen!G59="nein",1,"")) ->  | J58: =IF(Schritt_4_1_kr_Maschinen!H59="ja",5,IF(Schritt_4_1_kr_Maschinen!H59="nein",1,"")) ->  | K58: =IF(Schritt_4_1_kr_Maschinen!I59="ja",5,IF(Schritt_4_1_kr_Maschinen!I59="nein",1,"")) ->  | L58: =IF(Schritt_4_1_kr_Maschinen!J59="ja",5,IF(Schritt_4_1_kr_Maschinen!J59="nein",1,"")) ->  | M58: =IF(Schritt_4_1_kr_Maschinen!K59="ja",5,IF(Schritt_4_1_kr_Maschinen!K59="nein",1,"")) -> 
I59: =IF(Schritt_4_1_kr_Maschinen!G60="ja",5,IF(Schritt_4_1_kr_Maschinen!G60="nein",1,"")) ->  | J59: =IF(Schritt_4_1_kr_Maschinen!H60="ja",5,IF(Schritt_4_1_kr_Maschinen!H60="nein",1,"")) ->  | K59: =IF(Schritt_4_1_kr_Maschinen!I60="ja",5,IF(Schritt_4_1_kr_Maschinen!I60="nein",1,"")) ->  | L59: =IF(Schritt_4_1_kr_Maschinen!J60="ja",5,IF(Schritt_4_1_kr_Maschinen!J60="nein",1,"")) ->  | M59: =IF(Schritt_4_1_kr_Maschinen!K60="ja",5,IF(Schritt_4_1_kr_Maschinen!K60="nein",1,"")) -> 
I60: =IF(Schritt_4_1_kr_Maschinen!G61="ja",5,IF(Schritt_4_1_kr_Maschinen!G61="nein",1,"")) ->  | J60: =IF(Schritt_4_1_kr_Maschinen!H61="ja",5,IF(Schritt_4_1_kr_Maschinen!H61="nein",1,"")) ->  | K60: =IF(Schritt_4_1_kr_Maschinen!I61="ja",5,IF(Schritt_4_1_kr_Maschinen!I61="nein",1,"")) ->  | L60: =IF(Schritt_4_1_kr_Maschinen!J61="ja",5,IF(Schritt_4_1_kr_Maschinen!J61="nein",1,"")) ->  | M60: =IF(Schritt_4_1_kr_Maschinen!K61="ja",5,IF(Schritt_4_1_kr_Maschinen!K61="nein",1,"")) -> 
I61: =IF(Schritt_4_1_kr_Maschinen!G62="ja",5,IF(Schritt_4_1_kr_Maschinen!G62="nein",1,"")) ->  | J61: =IF(Schritt_4_1_kr_Maschinen!H62="ja",5,IF(Schritt_4_1_kr_Maschinen!H62="nein",1,"")) ->  | K61: =IF(Schritt_4_1_kr_Maschinen!I62="ja",5,IF(Schritt_4_1_kr_Maschinen!I62="nein",1,"")) ->  | L61: =IF(Schritt_4_1_kr_Maschinen!J62="ja",5,IF(Schritt_4_1_kr_Maschinen!J62="nein",1,"")) ->  | M61: =IF(Schritt_4_1_kr_Maschinen!K62="ja",5,IF(Schritt_4_1_kr_Maschinen!K62="nein",1,"")) -> 
I62: =IF(Schritt_4_1_kr_Maschinen!G63="ja",5,IF(Schritt_4_1_kr_Maschinen!G63="nein",1,"")) ->  | J62: =IF(Schritt_4_1_kr_Maschinen!H63="ja",5,IF(Schritt_4_1_kr_Maschinen!H63="nein",1,"")) ->  | K62: =IF(Schritt_4_1_kr_Maschinen!I63="ja",5,IF(Schritt_4_1_kr_Maschinen!I63="nein",1,"")) ->  | L62: =IF(Schritt_4_1_kr_Maschinen!J63="ja",5,IF(Schritt_4_1_kr_Maschinen!J63="nein",1,"")) ->  | M62: =IF(Schritt_4_1_kr_Maschinen!K63="ja",5,IF(Schritt_4_1_kr_Maschinen!K63="nein",1,"")) -> 
I63: =IF(Schritt_4_1_kr_Maschinen!G64="ja",5,IF(Schritt_4_1_kr_Maschinen!G64="nein",1,"")) ->  | J63: =IF(Schritt_4_1_kr_Maschinen!H64="ja",5,IF(Schritt_4_1_kr_Maschinen!H64="nein",1,"")) ->  | K63: =IF(Schritt_4_1_kr_Maschinen!I64="ja",5,IF(Schritt_4_1_kr_Maschinen!I64="nein",1,"")) ->  | L63: =IF(Schritt_4_1_kr_Maschinen!J64="ja",5,IF(Schritt_4_1_kr_Maschinen!J64="nein",1,"")) ->  | M63: =IF(Schritt_4_1_kr_Maschinen!K64="ja",5,IF(Schritt_4_1_kr_Maschinen!K64="nein",1,"")) -> 
I64: =IF(Schritt_4_1_kr_Maschinen!G65="ja",5,IF(Schritt_4_1_kr_Maschinen!G65="nein",1,"")) ->  | J64: =IF(Schritt_4_1_kr_Maschinen!H65="ja",5,IF(Schritt_4_1_kr_Maschinen!H65="nein",1,"")) ->  | K64: =IF(Schritt_4_1_kr_Maschinen!I65="ja",5,IF(Schritt_4_1_kr_Maschinen!I65="nein",1,"")) ->  | L64: =IF(Schritt_4_1_kr_Maschinen!J65="ja",5,IF(Schritt_4_1_kr_Maschinen!J65="nein",1,"")) ->  | M64: =IF(Schritt_4_1_kr_Maschinen!K65="ja",5,IF(Schritt_4_1_kr_Maschinen!K65="nein",1,"")) -> 
I65: =IF(Schritt_4_1_kr_Maschinen!G66="ja",5,IF(Schritt_4_1_kr_Maschinen!G66="nein",1,"")) ->  | J65: =IF(Schritt_4_1_kr_Maschinen!H66="ja",5,IF(Schritt_4_1_kr_Maschinen!H66="nein",1,"")) ->  | K65: =IF(Schritt_4_1_kr_Maschinen!I66="ja",5,IF(Schritt_4_1_kr_Maschinen!I66="nein",1,"")) ->  | L65: =IF(Schritt_4_1_kr_Maschinen!J66="ja",5,IF(Schritt_4_1_kr_Maschinen!J66="nein",1,"")) ->  | M65: =IF(Schritt_4_1_kr_Maschinen!K66="ja",5,IF(Schritt_4_1_kr_Maschinen!K66="nein",1,"")) -> 
I66: =IF(Schritt_4_1_kr_Maschinen!G67="ja",5,IF(Schritt_4_1_kr_Maschinen!G67="nein",1,"")) ->  | J66: =IF(Schritt_4_1_kr_Maschinen!H67="ja",5,IF(Schritt_4_1_kr_Maschinen!H67="nein",1,"")) ->  | K66: =IF(Schritt_4_1_kr_Maschinen!I67="ja",5,IF(Schritt_4_1_kr_Maschinen!I67="nein",1,"")) ->  | L66: =IF(Schritt_4_1_kr_Maschinen!J67="ja",5,IF(Schritt_4_1_kr_Maschinen!J67="nein",1,"")) ->  | M66: =IF(Schritt_4_1_kr_Maschinen!K67="ja",5,IF(Schritt_4_1_kr_Maschinen!K67="nein",1,"")) -> 
I67: =IF(Schritt_4_1_kr_Maschinen!G68="ja",5,IF(Schritt_4_1_kr_Maschinen!G68="nein",1,"")) ->  | J67: =IF(Schritt_4_1_kr_Maschinen!H68="ja",5,IF(Schritt_4_1_kr_Maschinen!H68="nein",1,"")) ->  | K67: =IF(Schritt_4_1_kr_Maschinen!I68="ja",5,IF(Schritt_4_1_kr_Maschinen!I68="nein",1,"")) ->  | L67: =IF(Schritt_4_1_kr_Maschinen!J68="ja",5,IF(Schritt_4_1_kr_Maschinen!J68="nein",1,"")) ->  | M67: =IF(Schritt_4_1_kr_Maschinen!K68="ja",5,IF(Schritt_4_1_kr_Maschinen!K68="nein",1,"")) -> 
I68: =IF(Schritt_4_1_kr_Maschinen!G69="ja",5,IF(Schritt_4_1_kr_Maschinen!G69="nein",1,"")) ->  | J68: =IF(Schritt_4_1_kr_Maschinen!H69="ja",5,IF(Schritt_4_1_kr_Maschinen!H69="nein",1,"")) ->  | K68: =IF(Schritt_4_1_kr_Maschinen!I69="ja",5,IF(Schritt_4_1_kr_Maschinen!I69="nein",1,"")) ->  | L68: =IF(Schritt_4_1_kr_Maschinen!J69="ja",5,IF(Schritt_4_1_kr_Maschinen!J69="nein",1,"")) ->  | M68: =IF(Schritt_4_1_kr_Maschinen!K69="ja",5,IF(Schritt_4_1_kr_Maschinen!K69="nein",1,"")) -> 
I69: =IF(Schritt_4_1_kr_Maschinen!G70="ja",5,IF(Schritt_4_1_kr_Maschinen!G70="nein",1,"")) ->  | J69: =IF(Schritt_4_1_kr_Maschinen!H70="ja",5,IF(Schritt_4_1_kr_Maschinen!H70="nein",1,"")) ->  | K69: =IF(Schritt_4_1_kr_Maschinen!I70="ja",5,IF(Schritt_4_1_kr_Maschinen!I70="nein",1,"")) ->  | L69: =IF(Schritt_4_1_kr_Maschinen!J70="ja",5,IF(Schritt_4_1_kr_Maschinen!J70="nein",1,"")) ->  | M69: =IF(Schritt_4_1_kr_Maschinen!K70="ja",5,IF(Schritt_4_1_kr_Maschinen!K70="nein",1,"")) -> 
I70: =IF(Schritt_4_1_kr_Maschinen!G71="ja",5,IF(Schritt_4_1_kr_Maschinen!G71="nein",1,"")) ->  | J70: =IF(Schritt_4_1_kr_Maschinen!H71="ja",5,IF(Schritt_4_1_kr_Maschinen!H71="nein",1,"")) ->  | K70: =IF(Schritt_4_1_kr_Maschinen!I71="ja",5,IF(Schritt_4_1_kr_Maschinen!I71="nein",1,"")) ->  | L70: =IF(Schritt_4_1_kr_Maschinen!J71="ja",5,IF(Schritt_4_1_kr_Maschinen!J71="nein",1,"")) ->  | M70: =IF(Schritt_4_1_kr_Maschinen!K71="ja",5,IF(Schritt_4_1_kr_Maschinen!K71="nein",1,"")) -> 
I71: =IF(Schritt_4_1_kr_Maschinen!G72="ja",5,IF(Schritt_4_1_kr_Maschinen!G72="nein",1,"")) ->  | J71: =IF(Schritt_4_1_kr_Maschinen!H72="ja",5,IF(Schritt_4_1_kr_Maschinen!H72="nein",1,"")) ->  | K71: =IF(Schritt_4_1_kr_Maschinen!I72="ja",5,IF(Schritt_4_1_kr_Maschinen!I72="nein",1,"")) ->  | L71: =IF(Schritt_4_1_kr_Maschinen!J72="ja",5,IF(Schritt_4_1_kr_Maschinen!J72="nein",1,"")) ->  | M71: =IF(Schritt_4_1_kr_Maschinen!K72="ja",5,IF(Schritt_4_1_kr_Maschinen!K72="nein",1,"")) -> 
I72: =IF(Schritt_4_1_kr_Maschinen!G73="ja",5,IF(Schritt_4_1_kr_Maschinen!G73="nein",1,"")) ->  | J72: =IF(Schritt_4_1_kr_Maschinen!H73="ja",5,IF(Schritt_4_1_kr_Maschinen!H73="nein",1,"")) ->  | K72: =IF(Schritt_4_1_kr_Maschinen!I73="ja",5,IF(Schritt_4_1_kr_Maschinen!I73="nein",1,"")) ->  | L72: =IF(Schritt_4_1_kr_Maschinen!J73="ja",5,IF(Schritt_4_1_kr_Maschinen!J73="nein",1,"")) ->  | M72: =IF(Schritt_4_1_kr_Maschinen!K73="ja",5,IF(Schritt_4_1_kr_Maschinen!K73="nein",1,"")) -> 
I73: =IF(Schritt_4_1_kr_Maschinen!G74="ja",5,IF(Schritt_4_1_kr_Maschinen!G74="nein",1,"")) ->  | J73: =IF(Schritt_4_1_kr_Maschinen!H74="ja",5,IF(Schritt_4_1_kr_Maschinen!H74="nein",1,"")) ->  | K73: =IF(Schritt_4_1_kr_Maschinen!I74="ja",5,IF(Schritt_4_1_kr_Maschinen!I74="nein",1,"")) ->  | L73: =IF(Schritt_4_1_kr_Maschinen!J74="ja",5,IF(Schritt_4_1_kr_Maschinen!J74="nein",1,"")) ->  | M73: =IF(Schritt_4_1_kr_Maschinen!K74="ja",5,IF(Schritt_4_1_kr_Maschinen!K74="nein",1,"")) -> 
I74: =IF(Schritt_4_1_kr_Maschinen!G75="ja",5,IF(Schritt_4_1_kr_Maschinen!G75="nein",1,"")) ->  | J74: =IF(Schritt_4_1_kr_Maschinen!H75="ja",5,IF(Schritt_4_1_kr_Maschinen!H75="nein",1,"")) ->  | K74: =IF(Schritt_4_1_kr_Maschinen!I75="ja",5,IF(Schritt_4_1_kr_Maschinen!I75="nein",1,"")) ->  | L74: =IF(Schritt_4_1_kr_Maschinen!J75="ja",5,IF(Schritt_4_1_kr_Maschinen!J75="nein",1,"")) ->  | M74: =IF(Schritt_4_1_kr_Maschinen!K75="ja",5,IF(Schritt_4_1_kr_Maschinen!K75="nein",1,"")) -> 
I75: =IF(Schritt_4_1_kr_Maschinen!G76="ja",5,IF(Schritt_4_1_kr_Maschinen!G76="nein",1,"")) ->  | J75: =IF(Schritt_4_1_kr_Maschinen!H76="ja",5,IF(Schritt_4_1_kr_Maschinen!H76="nein",1,"")) ->  | K75: =IF(Schritt_4_1_kr_Maschinen!I76="ja",5,IF(Schritt_4_1_kr_Maschinen!I76="nein",1,"")) ->  | L75: =IF(Schritt_4_1_kr_Maschinen!J76="ja",5,IF(Schritt_4_1_kr_Maschinen!J76="nein",1,"")) ->  | M75: =IF(Schritt_4_1_kr_Maschinen!K76="ja",5,IF(Schritt_4_1_kr_Maschinen!K76="nein",1,"")) -> 
I76: =IF(Schritt_4_1_kr_Maschinen!G77="ja",5,IF(Schritt_4_1_kr_Maschinen!G77="nein",1,"")) ->  | J76: =IF(Schritt_4_1_kr_Maschinen!H77="ja",5,IF(Schritt_4_1_kr_Maschinen!H77="nein",1,"")) ->  | K76: =IF(Schritt_4_1_kr_Maschinen!I77="ja",5,IF(Schritt_4_1_kr_Maschinen!I77="nein",1,"")) ->  | L76: =IF(Schritt_4_1_kr_Maschinen!J77="ja",5,IF(Schritt_4_1_kr_Maschinen!J77="nein",1,"")) ->  | M76: =IF(Schritt_4_1_kr_Maschinen!K77="ja",5,IF(Schritt_4_1_kr_Maschinen!K77="nein",1,"")) -> 
I77: =IF(Schritt_4_1_kr_Maschinen!G78="ja",5,IF(Schritt_4_1_kr_Maschinen!G78="nein",1,"")) ->  | J77: =IF(Schritt_4_1_kr_Maschinen!H78="ja",5,IF(Schritt_4_1_kr_Maschinen!H78="nein",1,"")) ->  | K77: =IF(Schritt_4_1_kr_Maschinen!I78="ja",5,IF(Schritt_4_1_kr_Maschinen!I78="nein",1,"")) ->  | L77: =IF(Schritt_4_1_kr_Maschinen!J78="ja",5,IF(Schritt_4_1_kr_Maschinen!J78="nein",1,"")) ->  | M77: =IF(Schritt_4_1_kr_Maschinen!K78="ja",5,IF(Schritt_4_1_kr_Maschinen!K78="nein",1,"")) -> 
I78: =IF(Schritt_4_1_kr_Maschinen!G79="ja",5,IF(Schritt_4_1_kr_Maschinen!G79="nein",1,"")) ->  | J78: =IF(Schritt_4_1_kr_Maschinen!H79="ja",5,IF(Schritt_4_1_kr_Maschinen!H79="nein",1,"")) ->  | K78: =IF(Schritt_4_1_kr_Maschinen!I79="ja",5,IF(Schritt_4_1_kr_Maschinen!I79="nein",1,"")) ->  | L78: =IF(Schritt_4_1_kr_Maschinen!J79="ja",5,IF(Schritt_4_1_kr_Maschinen!J79="nein",1,"")) ->  | M78: =IF(Schritt_4_1_kr_Maschinen!K79="ja",5,IF(Schritt_4_1_kr_Maschinen!K79="nein",1,"")) -> 
I79: =IF(Schritt_4_1_kr_Maschinen!G80="ja",5,IF(Schritt_4_1_kr_Maschinen!G80="nein",1,"")) ->  | J79: =IF(Schritt_4_1_kr_Maschinen!H80="ja",5,IF(Schritt_4_1_kr_Maschinen!H80="nein",1,"")) ->  | K79: =IF(Schritt_4_1_kr_Maschinen!I80="ja",5,IF(Schritt_4_1_kr_Maschinen!I80="nein",1,"")) ->  | L79: =IF(Schritt_4_1_kr_Maschinen!J80="ja",5,IF(Schritt_4_1_kr_Maschinen!J80="nein",1,"")) ->  | M79: =IF(Schritt_4_1_kr_Maschinen!K80="ja",5,IF(Schritt_4_1_kr_Maschinen!K80="nein",1,"")) -> 
I80: =IF(Schritt_4_1_kr_Maschinen!G81="ja",5,IF(Schritt_4_1_kr_Maschinen!G81="nein",1,"")) ->  | J80: =IF(Schritt_4_1_kr_Maschinen!H81="ja",5,IF(Schritt_4_1_kr_Maschinen!H81="nein",1,"")) ->  | K80: =IF(Schritt_4_1_kr_Maschinen!I81="ja",5,IF(Schritt_4_1_kr_Maschinen!I81="nein",1,"")) ->  | L80: =IF(Schritt_4_1_kr_Maschinen!J81="ja",5,IF(Schritt_4_1_kr_Maschinen!J81="nein",1,"")) ->  | M80: =IF(Schritt_4_1_kr_Maschinen!K81="ja",5,IF(Schritt_4_1_kr_Maschinen!K81="nein",1,"")) -> 
I81: =IF(Schritt_4_1_kr_Maschinen!G82="ja",5,IF(Schritt_4_1_kr_Maschinen!G82="nein",1,"")) ->  | J81: =IF(Schritt_4_1_kr_Maschinen!H82="ja",5,IF(Schritt_4_1_kr_Maschinen!H82="nein",1,"")) ->  | K81: =IF(Schritt_4_1_kr_Maschinen!I82="ja",5,IF(Schritt_4_1_kr_Maschinen!I82="nein",1,"")) ->  | L81: =IF(Schritt_4_1_kr_Maschinen!J82="ja",5,IF(Schritt_4_1_kr_Maschinen!J82="nein",1,"")) ->  | M81: =IF(Schritt_4_1_kr_Maschinen!K82="ja",5,IF(Schritt_4_1_kr_Maschinen!K82="nein",1,"")) -> 
I82: =IF(Schritt_4_1_kr_Maschinen!G83="ja",5,IF(Schritt_4_1_kr_Maschinen!G83="nein",1,"")) ->  | J82: =IF(Schritt_4_1_kr_Maschinen!H83="ja",5,IF(Schritt_4_1_kr_Maschinen!H83="nein",1,"")) ->  | K82: =IF(Schritt_4_1_kr_Maschinen!I83="ja",5,IF(Schritt_4_1_kr_Maschinen!I83="nein",1,"")) ->  | L82: =IF(Schritt_4_1_kr_Maschinen!J83="ja",5,IF(Schritt_4_1_kr_Maschinen!J83="nein",1,"")) ->  | M82: =IF(Schritt_4_1_kr_Maschinen!K83="ja",5,IF(Schritt_4_1_kr_Maschinen!K83="nein",1,"")) -> 
I83: =IF(Schritt_4_1_kr_Maschinen!G84="ja",5,IF(Schritt_4_1_kr_Maschinen!G84="nein",1,"")) ->  | J83: =IF(Schritt_4_1_kr_Maschinen!H84="ja",5,IF(Schritt_4_1_kr_Maschinen!H84="nein",1,"")) ->  | K83: =IF(Schritt_4_1_kr_Maschinen!I84="ja",5,IF(Schritt_4_1_kr_Maschinen!I84="nein",1,"")) ->  | L83: =IF(Schritt_4_1_kr_Maschinen!J84="ja",5,IF(Schritt_4_1_kr_Maschinen!J84="nein",1,"")) ->  | M83: =IF(Schritt_4_1_kr_Maschinen!K84="ja",5,IF(Schritt_4_1_kr_Maschinen!K84="nein",1,"")) -> 
I84: =IF(Schritt_4_1_kr_Maschinen!G85="ja",5,IF(Schritt_4_1_kr_Maschinen!G85="nein",1,"")) ->  | J84: =IF(Schritt_4_1_kr_Maschinen!H85="ja",5,IF(Schritt_4_1_kr_Maschinen!H85="nein",1,"")) ->  | K84: =IF(Schritt_4_1_kr_Maschinen!I85="ja",5,IF(Schritt_4_1_kr_Maschinen!I85="nein",1,"")) ->  | L84: =IF(Schritt_4_1_kr_Maschinen!J85="ja",5,IF(Schritt_4_1_kr_Maschinen!J85="nein",1,"")) ->  | M84: =IF(Schritt_4_1_kr_Maschinen!K85="ja",5,IF(Schritt_4_1_kr_Maschinen!K85="nein",1,"")) -> 
I85: =IF(Schritt_4_1_kr_Maschinen!G86="ja",5,IF(Schritt_4_1_kr_Maschinen!G86="nein",1,"")) ->  | J85: =IF(Schritt_4_1_kr_Maschinen!H86="ja",5,IF(Schritt_4_1_kr_Maschinen!H86="nein",1,"")) ->  | K85: =IF(Schritt_4_1_kr_Maschinen!I86="ja",5,IF(Schritt_4_1_kr_Maschinen!I86="nein",1,"")) ->  | L85: =IF(Schritt_4_1_kr_Maschinen!J86="ja",5,IF(Schritt_4_1_kr_Maschinen!J86="nein",1,"")) ->  | M85: =IF(Schritt_4_1_kr_Maschinen!K86="ja",5,IF(Schritt_4_1_kr_Maschinen!K86="nein",1,"")) -> 
I86: =IF(Schritt_4_1_kr_Maschinen!G87="ja",5,IF(Schritt_4_1_kr_Maschinen!G87="nein",1,"")) ->  | J86: =IF(Schritt_4_1_kr_Maschinen!H87="ja",5,IF(Schritt_4_1_kr_Maschinen!H87="nein",1,"")) ->  | K86: =IF(Schritt_4_1_kr_Maschinen!I87="ja",5,IF(Schritt_4_1_kr_Maschinen!I87="nein",1,"")) ->  | L86: =IF(Schritt_4_1_kr_Maschinen!J87="ja",5,IF(Schritt_4_1_kr_Maschinen!J87="nein",1,"")) ->  | M86: =IF(Schritt_4_1_kr_Maschinen!K87="ja",5,IF(Schritt_4_1_kr_Maschinen!K87="nein",1,"")) -> 
I87: =IF(Schritt_4_1_kr_Maschinen!G88="ja",5,IF(Schritt_4_1_kr_Maschinen!G88="nein",1,"")) ->  | J87: =IF(Schritt_4_1_kr_Maschinen!H88="ja",5,IF(Schritt_4_1_kr_Maschinen!H88="nein",1,"")) ->  | K87: =IF(Schritt_4_1_kr_Maschinen!I88="ja",5,IF(Schritt_4_1_kr_Maschinen!I88="nein",1,"")) ->  | L87: =IF(Schritt_4_1_kr_Maschinen!J88="ja",5,IF(Schritt_4_1_kr_Maschinen!J88="nein",1,"")) ->  | M87: =IF(Schritt_4_1_kr_Maschinen!K88="ja",5,IF(Schritt_4_1_kr_Maschinen!K88="nein",1,"")) -> 
I88: =IF(Schritt_4_1_kr_Maschinen!G89="ja",5,IF(Schritt_4_1_kr_Maschinen!G89="nein",1,"")) ->  | J88: =IF(Schritt_4_1_kr_Maschinen!H89="ja",5,IF(Schritt_4_1_kr_Maschinen!H89="nein",1,"")) ->  | K88: =IF(Schritt_4_1_kr_Maschinen!I89="ja",5,IF(Schritt_4_1_kr_Maschinen!I89="nein",1,"")) ->  | L88: =IF(Schritt_4_1_kr_Maschinen!J89="ja",5,IF(Schritt_4_1_kr_Maschinen!J89="nein",1,"")) ->  | M88: =IF(Schritt_4_1_kr_Maschinen!K89="ja",5,IF(Schritt_4_1_kr_Maschinen!K89="nein",1,"")) -> 
I89: =IF(Schritt_4_1_kr_Maschinen!G90="ja",5,IF(Schritt_4_1_kr_Maschinen!G90="nein",1,"")) ->  | J89: =IF(Schritt_4_1_kr_Maschinen!H90="ja",5,IF(Schritt_4_1_kr_Maschinen!H90="nein",1,"")) ->  | K89: =IF(Schritt_4_1_kr_Maschinen!I90="ja",5,IF(Schritt_4_1_kr_Maschinen!I90="nein",1,"")) ->  | L89: =IF(Schritt_4_1_kr_Maschinen!J90="ja",5,IF(Schritt_4_1_kr_Maschinen!J90="nein",1,"")) ->  | M89: =IF(Schritt_4_1_kr_Maschinen!K90="ja",5,IF(Schritt_4_1_kr_Maschinen!K90="nein",1,"")) -> 
I90: =IF(Schritt_4_1_kr_Maschinen!G91="ja",5,IF(Schritt_4_1_kr_Maschinen!G91="nein",1,"")) ->  | J90: =IF(Schritt_4_1_kr_Maschinen!H91="ja",5,IF(Schritt_4_1_kr_Maschinen!H91="nein",1,"")) ->  | K90: =IF(Schritt_4_1_kr_Maschinen!I91="ja",5,IF(Schritt_4_1_kr_Maschinen!I91="nein",1,"")) ->  | L90: =IF(Schritt_4_1_kr_Maschinen!J91="ja",5,IF(Schritt_4_1_kr_Maschinen!J91="nein",1,"")) ->  | M90: =IF(Schritt_4_1_kr_Maschinen!K91="ja",5,IF(Schritt_4_1_kr_Maschinen!K91="nein",1,"")) -> 
I91: =IF(Schritt_4_1_kr_Maschinen!G92="ja",5,IF(Schritt_4_1_kr_Maschinen!G92="nein",1,"")) ->  | J91: =IF(Schritt_4_1_kr_Maschinen!H92="ja",5,IF(Schritt_4_1_kr_Maschinen!H92="nein",1,"")) ->  | K91: =IF(Schritt_4_1_kr_Maschinen!I92="ja",5,IF(Schritt_4_1_kr_Maschinen!I92="nein",1,"")) ->  | L91: =IF(Schritt_4_1_kr_Maschinen!J92="ja",5,IF(Schritt_4_1_kr_Maschinen!J92="nein",1,"")) ->  | M91: =IF(Schritt_4_1_kr_Maschinen!K92="ja",5,IF(Schritt_4_1_kr_Maschinen!K92="nein",1,"")) -> 
I92: =IF(Schritt_4_1_kr_Maschinen!G93="ja",5,IF(Schritt_4_1_kr_Maschinen!G93="nein",1,"")) ->  | J92: =IF(Schritt_4_1_kr_Maschinen!H93="ja",5,IF(Schritt_4_1_kr_Maschinen!H93="nein",1,"")) ->  | K92: =IF(Schritt_4_1_kr_Maschinen!I93="ja",5,IF(Schritt_4_1_kr_Maschinen!I93="nein",1,"")) ->  | L92: =IF(Schritt_4_1_kr_Maschinen!J93="ja",5,IF(Schritt_4_1_kr_Maschinen!J93="nein",1,"")) ->  | M92: =IF(Schritt_4_1_kr_Maschinen!K93="ja",5,IF(Schritt_4_1_kr_Maschinen!K93="nein",1,"")) -> 
I93: =IF(Schritt_4_1_kr_Maschinen!G94="ja",5,IF(Schritt_4_1_kr_Maschinen!G94="nein",1,"")) ->  | J93: =IF(Schritt_4_1_kr_Maschinen!H94="ja",5,IF(Schritt_4_1_kr_Maschinen!H94="nein",1,"")) ->  | K93: =IF(Schritt_4_1_kr_Maschinen!I94="ja",5,IF(Schritt_4_1_kr_Maschinen!I94="nein",1,"")) ->  | L93: =IF(Schritt_4_1_kr_Maschinen!J94="ja",5,IF(Schritt_4_1_kr_Maschinen!J94="nein",1,"")) ->  | M93: =IF(Schritt_4_1_kr_Maschinen!K94="ja",5,IF(Schritt_4_1_kr_Maschinen!K94="nein",1,"")) -> 
I94: =IF(Schritt_4_1_kr_Maschinen!G95="ja",5,IF(Schritt_4_1_kr_Maschinen!G95="nein",1,"")) ->  | J94: =IF(Schritt_4_1_kr_Maschinen!H95="ja",5,IF(Schritt_4_1_kr_Maschinen!H95="nein",1,"")) ->  | K94: =IF(Schritt_4_1_kr_Maschinen!I95="ja",5,IF(Schritt_4_1_kr_Maschinen!I95="nein",1,"")) ->  | L94: =IF(Schritt_4_1_kr_Maschinen!J95="ja",5,IF(Schritt_4_1_kr_Maschinen!J95="nein",1,"")) ->  | M94: =IF(Schritt_4_1_kr_Maschinen!K95="ja",5,IF(Schritt_4_1_kr_Maschinen!K95="nein",1,"")) -> 
I95: =IF(Schritt_4_1_kr_Maschinen!G96="ja",5,IF(Schritt_4_1_kr_Maschinen!G96="nein",1,"")) ->  | J95: =IF(Schritt_4_1_kr_Maschinen!H96="ja",5,IF(Schritt_4_1_kr_Maschinen!H96="nein",1,"")) ->  | K95: =IF(Schritt_4_1_kr_Maschinen!I96="ja",5,IF(Schritt_4_1_kr_Maschinen!I96="nein",1,"")) ->  | L95: =IF(Schritt_4_1_kr_Maschinen!J96="ja",5,IF(Schritt_4_1_kr_Maschinen!J96="nein",1,"")) ->  | M95: =IF(Schritt_4_1_kr_Maschinen!K96="ja",5,IF(Schritt_4_1_kr_Maschinen!K96="nein",1,"")) -> 
I96: =IF(Schritt_4_1_kr_Maschinen!G97="ja",5,IF(Schritt_4_1_kr_Maschinen!G97="nein",1,"")) ->  | J96: =IF(Schritt_4_1_kr_Maschinen!H97="ja",5,IF(Schritt_4_1_kr_Maschinen!H97="nein",1,"")) ->  | K96: =IF(Schritt_4_1_kr_Maschinen!I97="ja",5,IF(Schritt_4_1_kr_Maschinen!I97="nein",1,"")) ->  | L96: =IF(Schritt_4_1_kr_Maschinen!J97="ja",5,IF(Schritt_4_1_kr_Maschinen!J97="nein",1,"")) ->  | M96: =IF(Schritt_4_1_kr_Maschinen!K97="ja",5,IF(Schritt_4_1_kr_Maschinen!K97="nein",1,"")) -> 
I97: =IF(Schritt_4_1_kr_Maschinen!G98="ja",5,IF(Schritt_4_1_kr_Maschinen!G98="nein",1,"")) ->  | J97: =IF(Schritt_4_1_kr_Maschinen!H98="ja",5,IF(Schritt_4_1_kr_Maschinen!H98="nein",1,"")) ->  | K97: =IF(Schritt_4_1_kr_Maschinen!I98="ja",5,IF(Schritt_4_1_kr_Maschinen!I98="nein",1,"")) ->  | L97: =IF(Schritt_4_1_kr_Maschinen!J98="ja",5,IF(Schritt_4_1_kr_Maschinen!J98="nein",1,"")) ->  | M97: =IF(Schritt_4_1_kr_Maschinen!K98="ja",5,IF(Schritt_4_1_kr_Maschinen!K98="nein",1,"")) -> 
I98: =IF(Schritt_4_1_kr_Maschinen!G99="ja",5,IF(Schritt_4_1_kr_Maschinen!G99="nein",1,"")) ->  | J98: =IF(Schritt_4_1_kr_Maschinen!H99="ja",5,IF(Schritt_4_1_kr_Maschinen!H99="nein",1,"")) ->  | K98: =IF(Schritt_4_1_kr_Maschinen!I99="ja",5,IF(Schritt_4_1_kr_Maschinen!I99="nein",1,"")) ->  | L98: =IF(Schritt_4_1_kr_Maschinen!J99="ja",5,IF(Schritt_4_1_kr_Maschinen!J99="nein",1,"")) ->  | M98: =IF(Schritt_4_1_kr_Maschinen!K99="ja",5,IF(Schritt_4_1_kr_Maschinen!K99="nein",1,"")) -> 
I99: =IF(Schritt_4_1_kr_Maschinen!G100="ja",5,IF(Schritt_4_1_kr_Maschinen!G100="nein",1,"")) ->  | J99: =IF(Schritt_4_1_kr_Maschinen!H100="ja",5,IF(Schritt_4_1_kr_Maschinen!H100="nein",1,"")) ->  | K99: =IF(Schritt_4_1_kr_Maschinen!I100="ja",5,IF(Schritt_4_1_kr_Maschinen!I100="nein",1,"")) ->  | L99: =IF(Schritt_4_1_kr_Maschinen!J100="ja",5,IF(Schritt_4_1_kr_Maschinen!J100="nein",1,"")) ->  | M99: =IF(Schritt_4_1_kr_Maschinen!K100="ja",5,IF(Schritt_4_1_kr_Maschinen!K100="nein",1,"")) -> 
I100: =IF(Schritt_4_1_kr_Maschinen!G101="ja",5,IF(Schritt_4_1_kr_Maschinen!G101="nein",1,"")) ->  | J100: =IF(Schritt_4_1_kr_Maschinen!H101="ja",5,IF(Schritt_4_1_kr_Maschinen!H101="nein",1,"")) ->  | K100: =IF(Schritt_4_1_kr_Maschinen!I101="ja",5,IF(Schritt_4_1_kr_Maschinen!I101="nein",1,"")) ->  | L100: =IF(Schritt_4_1_kr_Maschinen!J101="ja",5,IF(Schritt_4_1_kr_Maschinen!J101="nein",1,"")) ->  | M100: =IF(Schritt_4_1_kr_Maschinen!K101="ja",5,IF(Schritt_4_1_kr_Maschinen!K101="nein",1,"")) -> 
I101: =IF(Schritt_4_1_kr_Maschinen!G102="ja",5,IF(Schritt_4_1_kr_Maschinen!G102="nein",1,"")) ->  | J101: =IF(Schritt_4_1_kr_Maschinen!H102="ja",5,IF(Schritt_4_1_kr_Maschinen!H102="nein",1,"")) ->  | K101: =IF(Schritt_4_1_kr_Maschinen!I102="ja",5,IF(Schritt_4_1_kr_Maschinen!I102="nein",1,"")) ->  | L101: =IF(Schritt_4_1_kr_Maschinen!J102="ja",5,IF(Schritt_4_1_kr_Maschinen!J102="nein",1,"")) ->  | M101: =IF(Schritt_4_1_kr_Maschinen!K102="ja",5,IF(Schritt_4_1_kr_Maschinen!K102="nein",1,"")) -> 
I102: =IF(Schritt_4_1_kr_Maschinen!G103="ja",5,IF(Schritt_4_1_kr_Maschinen!G103="nein",1,"")) ->  | J102: =IF(Schritt_4_1_kr_Maschinen!H103="ja",5,IF(Schritt_4_1_kr_Maschinen!H103="nein",1,"")) ->  | K102: =IF(Schritt_4_1_kr_Maschinen!I103="ja",5,IF(Schritt_4_1_kr_Maschinen!I103="nein",1,"")) ->  | L102: =IF(Schritt_4_1_kr_Maschinen!J103="ja",5,IF(Schritt_4_1_kr_Maschinen!J103="nein",1,"")) ->  | M102: =IF(Schritt_4_1_kr_Maschinen!K103="ja",5,IF(Schritt_4_1_kr_Maschinen!K103="nein",1,"")) -> 
I103: =IF(Schritt_4_1_kr_Maschinen!G104="ja",5,IF(Schritt_4_1_kr_Maschinen!G104="nein",1,"")) ->  | J103: =IF(Schritt_4_1_kr_Maschinen!H104="ja",5,IF(Schritt_4_1_kr_Maschinen!H104="nein",1,"")) ->  | K103: =IF(Schritt_4_1_kr_Maschinen!I104="ja",5,IF(Schritt_4_1_kr_Maschinen!I104="nein",1,"")) ->  | L103: =IF(Schritt_4_1_kr_Maschinen!J104="ja",5,IF(Schritt_4_1_kr_Maschinen!J104="nein",1,"")) ->  | M103: =IF(Schritt_4_1_kr_Maschinen!K104="ja",5,IF(Schritt_4_1_kr_Maschinen!K104="nein",1,"")) -> 
I104: =IF(Schritt_4_1_kr_Maschinen!G105="ja",5,IF(Schritt_4_1_kr_Maschinen!G105="nein",1,"")) ->  | J104: =IF(Schritt_4_1_kr_Maschinen!H105="ja",5,IF(Schritt_4_1_kr_Maschinen!H105="nein",1,"")) ->  | K104: =IF(Schritt_4_1_kr_Maschinen!I105="ja",5,IF(Schritt_4_1_kr_Maschinen!I105="nein",1,"")) ->  | L104: =IF(Schritt_4_1_kr_Maschinen!J105="ja",5,IF(Schritt_4_1_kr_Maschinen!J105="nein",1,"")) ->  | M104: =IF(Schritt_4_1_kr_Maschinen!K105="ja",5,IF(Schritt_4_1_kr_Maschinen!K105="nein",1,"")) -> 
I105: =IF(Schritt_4_1_kr_Maschinen!G106="ja",5,IF(Schritt_4_1_kr_Maschinen!G106="nein",1,"")) ->  | J105: =IF(Schritt_4_1_kr_Maschinen!H106="ja",5,IF(Schritt_4_1_kr_Maschinen!H106="nein",1,"")) ->  | K105: =IF(Schritt_4_1_kr_Maschinen!I106="ja",5,IF(Schritt_4_1_kr_Maschinen!I106="nein",1,"")) ->  | L105: =IF(Schritt_4_1_kr_Maschinen!J106="ja",5,IF(Schritt_4_1_kr_Maschinen!J106="nein",1,"")) ->  | M105: =IF(Schritt_4_1_kr_Maschinen!K106="ja",5,IF(Schritt_4_1_kr_Maschinen!K106="nein",1,"")) -> 
